Workbook

Sheet Instructions
B2: USAID Clean Energy Emission Reduction (CLEER) Regularization of Unauthorized Electricity Connections
B3: Purpose: | D3: This tool assists USAID operating units in estimating GHG emission reductions associated with the reduction of non-technical electricity losses from regularization.
B4: Version Number: | D4: Version 2.8
B5: Version Date: | D5: 2023-10-01
B6: Activity Type: | D6: Increase Energy System Efficiency - Regularization of Unauthorized Electricity Connections
B9: Instructions:
B10: If your clean energy activity involves multiple actions, each action may have to be estimated separately using this calculator.
B11: Note: Please enable macros before beginning.
B13: Step 1: Enter program information on the "Action Information" section of the "Data Input" page.
B15: Step 2: Enter the data on the "Energy Information and Data" section of the "Data Input" page.
B17: Step 3: List any assumptions made about the action data at the bottom of the "Data Input" page.
B19: Step 4: Click on the "Review Calculations" arrow to proceed to the "Calculations" page.
B21: Step 5: Review calculations and enter alternate values if desired.
B23: Step 6: List any assumptions made about the alternate values at the bottom of the "Calculations" page.
B25: Step 7: Click on the "View Results" arrow to review the final calculation of annual emission reductions.
B27: Step 8: Report emission reductions to the Global Climate Change Office through the FACTS Info database.
B29: Note: Data from multiple actions will have to be aggregated in order to report on an entire activity.
B31: Legend:
C32: Cell Color Legend:
D33: Yellow cells are Input Fields.
D34: Blue cells are input fields for Alternate Values.
D35: Green cells are GHG reduction estimates.
D36: White cells are calculations fields and are not editable.

Sheet Data Input
B2: Action Information and Data Input
B4: Use this form to enter information about the action and its energy use.
B9: Section 1 - Action Information
B10: *required fields
D12: About the Action | H12: Reporting Details and Worksheet Status
D14: Implementing Mechanism Number* | H14: Point of Contact (Name)
D15: Implementing Mechanism Name* | H15: Contact Email
D16: Action Name* | H16: Contact Phone (Including Country Code)
D17: Fiscal Year Reported* | H17: Worksheet Status
D18: Operating Unit | H18: Worksheet Date
D19: Implementing Partner | H19: Description of the Action
D21: Location of the Action
D22: Country*
D23: Subnational Region, State, or Province
D24: City
D25: Geographic Coordinates
B34: Section 2 - Energy Information and Data
B35: *All fields are required
D38: What is the action taken to reduce non-technical line losses?*
J39: =IF(AND(H42="No",H46="No",ElecReplFuel=""),"You must enter either the annual electricity consumption before or after the action was implemented","") -> 
D40: How many customers were impacted by the implemented action?*
D42: Do you know the average annual electricity consumption per customer before the action was implemented?* | M42: =IF(H42="No","Note: A percentage factor based on an average of several case studies will be used to estimate activity emissions","") -> 
A44: =IF(H42="Yes",TRUE,FALSE) -> FALSE | D44: What is the average annual electricity consumption per customer before the action was implemented?* | J44: <Electricity Units>
A45: =A44 -> FALSE
A46: =IF(H42="",FALSE,IF(H42="Yes",TRUE,IF(H42="No",FALSE,FALSE))) -> FALSE | D46: Do you know the average annual electricity consumption per customer after the action was implemented?* | M46: =IF(H46="No","Note: A percentage factor based on an average of several case studies will be used to estimate activity emissions","") -> 
A47: =A46 -> FALSE
A48: =IF(H46="Yes",TRUE,IF(H42="No",TRUE,FALSE)) -> FALSE | D48: What is the average annual electricity consumption per customer after the action was implemented?* | J48: <Electricity Units>
A49: =A48 -> FALSE
D51: =IF(H38<>'Pick Lists'!B52,"",IF(OR(AND(#REF!='Pick Lists'!B74,'Data Input'!#REF!='Pick Lists'!B51),OR(#REF!='Pick Lists'!B72,#REF!='Pick Lists'!B73)),"The calculations will assume the National Grid Electricity emission factor. If desired, users can enter an alternate emission factor on the Calculations page.","")) -> 
B52: Assumptions
B53: Document all assumptions or comments regarding the action or any of the data used for the estimation.
A56: asd

Sheet Calculations
B2: Calculations
B4: Review the emission reduction calculations. Enter alternate values in the blue fields, if desired.
B9: Summary of Data Input
B10: This section summarizes data input in the Energy Information and Data section.
A11: Start
D13: ='Data Input'!D38:F38 -> What is the action taken to reduce non-technical line losses?* | J13: =IF('Data Input'!H38="","",'Data Input'!H38) -> 
D15: ='Data Input'!D40:F40 -> How many customers were impacted by the implemented action?* | J15: =IF('Data Input'!H40="","",'Data Input'!H40) -> 
D17: ='Data Input'!D42:F42 -> Do you know the average annual electricity consumption per customer before the action was implemented?* | J17: =IF('Data Input'!H42="","",'Data Input'!H42) -> 
A18: ='Data Input'!A44 -> FALSE
A19: ='Data Input'!A45 -> FALSE | D19: ='Data Input'!D44 -> What is the average annual electricity consumption per customer before the action was implemented?* | J19: =IF('Data Input'!H44="","",'Data Input'!H44) ->  | L19: ='Data Input'!J44 -> <Electricity Units>
A20: ='Data Input'!A46 -> FALSE
A21: ='Data Input'!A47 -> FALSE | D21: ='Data Input'!D46:F46 -> Do you know the average annual electricity consumption per customer after the action was implemented?* | J21: =IF('Data Input'!H46="","",'Data Input'!H46) -> 
A22: ='Data Input'!A48 -> FALSE
A23: ='Data Input'!A49 -> FALSE | D23: ='Data Input'!D48 -> What is the average annual electricity consumption per customer after the action was implemented?* | J23: =IF('Data Input'!H48="","",'Data Input'!H48) ->  | L23: ='Data Input'!J48 -> <Electricity Units>
B27: Emission Reductions Calculations
C28: NA = Not Applicable due to the options selected.
D30: Electricity Regularization
F32: Default Values | J32: Alternate Values
A34: =IF(AND(elecreplfuelCalc="Yes",J21="Yes"),FALSE,TRUE) -> TRUE | D34: Intervention Factor | F34: =IFERROR(VLOOKUP(CalcTrigger,'Pick Lists'!$B$220:$C$224,2,FALSE),"") -> 
A35: FALSE | D35: =IF(J13='Pick Lists'!B51,"Type of fuel replaced:",IF(F34='Pick Lists'!B72,"Source of electricity offset by the project","Alternate electricity source:")) -> Alternate electricity source: | F35: =IF(F34="","",IF(J13='Pick Lists'!B51,Calculations!J15,IF(OR(F34='Pick Lists'!B72,F34='Pick Lists'!B73),'Pick Lists'!B55,IF(#REF!='Pick Lists'!B51,'Pick Lists'!B55,'Pick Lists'!B56)))) -> 
A36: TRUE | D36: ="Emission Factor (Grid) (gCO₂e/kWh)" -> Emission Factor (Grid) (gCO₂e/kWh) | F36: =IFERROR(VLOOKUP(CountryInput,'Country Parameters'!$B$4:$U$198,10,FALSE),"") -> 
A37: FALSE
A38: FALSE
A39: FALSE
A40: FALSE
A44: =IF(elecreplfuelCalc="no",TRUE,FALSE) -> FALSE | D44: Average Annual Electricity Consumed per Customer Post-Regularization | F44: Intervention Factor | J44: Average Annual Electricity Consumed per Customer Pre-Regularization
A45: =IF(elecreplfuelCalc="no",TRUE,FALSE) -> FALSE | D45: kWh | F45: 1/(1 ̶ Intervention Factor)
A46: =IF(elecreplfuelCalc="no",TRUE,FALSE) -> FALSE | D46: =J23 ->  | E46: X | F46: =1/(1-IF(J34="",F34,J34)) ->  | I46: = | J46: =IFERROR(D46*F46,"") -> 
A47: =IF(elecreplfuelCalc="no",TRUE,FALSE) -> FALSE
D48: Average Annual Electricity Consumed per Customer Pre-Regularization | F48: Number of Customers | J48: Grid Emission Factor | L48: Conversion | N48: Baseline GHG Emissions
D49: kWh | J49: (gCO₂e/kWh) | L49: grams to metric tons | N49: tCO2e
D50: =IFERROR(IF(A44=TRUE,J46,J19)*IF(L19="MWh",1000,1),"") ->  | E50: X | F50: =J15 ->  | I50: X | J50: =IF($J$36="",$F$36,$J$36) ->  | K50: / | L50: =Conversions!D81 -> 1000000 | M50: = | N50: =IFERROR((D50*F50*J50)/L50,"") -> 
A53: =IF(AND(elecreplfuelCalc="yes",$J$21="no"),TRUE,FALSE) -> FALSE | D53: Average Annual Electricity Consumed per Customer Pre-Regularization | F53: Intervention Factor | J53: Average Annual Electricity Consumed per Customer Post-Regularization
A54: =IF(AND(elecreplfuelCalc="yes",$J$21="no"),TRUE,FALSE) -> FALSE | D54: kWh | F54: 1 ̶ Intervention Factor
A55: =IF(AND(elecreplfuelCalc="yes",$J$21="no"),TRUE,FALSE) -> FALSE | D55: =J19 ->  | E55: X | F55: =1-IF(J34="",F34,J34) ->  | I55: = | J55: =IFERROR(D55*(F55),"") -> 
A56: =IF(AND(elecreplfuelCalc="yes",$J$21="no"),TRUE,FALSE) -> FALSE
D57: Average Annual Electricity Consumed per Customer Post-Regularization | F57: Number of Customers | J57: Grid Emission Factor | L57: Conversion | N57: Activity GHG Emissions
D58: kWh | J58: (gCO₂e/kWh) | L58: grams to metric tons | N58: tCO2e
D59: =IFERROR(IF(A53=TRUE,J55,J23)*IF(L23="MWh",1000,1),"") ->  | E59: X | F59: =J15 ->  | I59: X | J59: =IF($J$36="",$F$36,$J$36) ->  | K59: / | L59: =Conversions!D81 -> 1000000 | M59: = | N59: =IFERROR((D59*F59*J59)/L59,"") -> 
B64: Assumptions
B65: Document all assumptions or comments regarding the alternate values used for the estimation.

Sheet Results
B2: Results
B5: This page summarizes total FY emissions reduced or avoided (tCO2e). Report Total FY Emission Reductions in the green field for Indicator 4.8-7.
B7: Results and Summary
B9: Action Information Summary
C10: Implementing Mechanism Number | F10: =IF('Data Input'!F14="","",'Data Input'!F14) -> 
C11: Implementing Mechanism Name | F11: =IF('Data Input'!F15="","",'Data Input'!F15) -> 
C12: Action Name | F12: =IF('Data Input'!F16="","",'Data Input'!F16) -> 
C13: Operating Unit | F13: =IF('Data Input'!F18="","",'Data Input'!F18) -> 
C14: Implementing Partner | F14: =IF('Data Input'!F19="","",'Data Input'!F19) -> 
C15: Country | F15: =IF('Data Input'!F22="","",'Data Input'!F22) -> 
C16: Fiscal Year Reported | F16: =IF('Data Input'!F17="","",'Data Input'!F17) -> 
C17: Clean Energy Result | F17: Increase Energy System Efficiency
B20: Total Fiscal Year Emission Reductions
D22: Baseline Emissions (tCO2e) | F22: Activity Emissions (tCO2e) | H22: Total FY Emission Reductions (tCO2e)
D23: =IFERROR(Calculations!N50,"") ->  | E23: - | F23: =IFERROR(Calculations!N59,"") ->  | G23: = | H23: =IFERROR(IF(D23="","",D23-F23),"") -> 
D25: (kgCO2e) | F25: (kgCO2e) | H25: (kgCO2e)
D26: =IFERROR(IF(D23="","",TEXT(ROUND(IF(D23="","",D23*Conversions!$E$81),1),"#,##0")),"") ->  | E26: - | F26: =IFERROR(IF(F23="","",TEXT(ROUND(IF(F23="","",F23*Conversions!$E$81),1),"#,##0")),"") ->  | G26: = | H26: =IFERROR(IF(H23="","",TEXT(ROUND(IF(H23="","",H23*Conversions!$E$81),1),"#,##0")),"") -> 
B28: Total Fiscal Year Energy Consumption Comparison
D30: Baseline Energy Consumption (GJ) | F30: Activity Energy Consumption (GJ) | H30: Total FY Energy Savings (GJ)
D31: =IFERROR(Calculations!D50*Conversions!K50,"") ->  | E31: - | F31: =IFERROR(Calculations!D59*Conversions!K50,"") ->  | G31: = | H31: =IFERROR(D31-F31,"") -> 
B33: Summary of Assumptions
B34: Summary of all assumptions and comments.
C36: ='Data Input'!C55&CHAR(10)&Calculations!C67 -> 

Sheet DataCollectionNeeds
B2: Data Collection Needs
B5: This page lists the necessary data the user should collect for estimating GHG emission reductions, which will vary by action.
B8: Regularization of Unauthorized Electricity Connections: Calculator Pathways
B9: Instructions: This calculator is capable of estimating emissions using different sets of inputs. Follow the diagram below to understand how sets of inputs are grouped together to complete the calculations. The diagram will also be helpful in determining information you may need to collect in the future. The diagram is color-coded to differentiate the type of input. Highlighted data inputs are further explained in the table below the diagram. Blue shapes are questions asked in the calculator, which determine the set of inputs necessary. Grey shapes indicate a user-selected answer which are chosen from a drop down menu. Yellow shapes indicate a user-input that is manually entered. Green shapes indicate the option of entering an alternative value for a specific input.
B68: Regularization of Unauthorized Electricity Connections: List of Data Definitions and Sources
B69: Some data required for the corresponding methodology calculations are excluded from this table, but are provided for the user in the calculator.
B70: Source | C70: Parameter | D70: Definition | E70: Typical Value/Units
B71: User-Provided | C71: Regularization Action | D71: The type of regularization action taken by the operating unit | E71: n/a
B73: User-Provided | C73: Average Annual Electricity Consumption per Customer | D73: Average quantity of electricity consumed per customer before and/or after regularization | E73: Kilowatt-hours (kWh)
B75: Default: USAID (2017) | C75: Intervention Factor | D75: Regularization-specific factor by which intervention can be expected to reduce electricity use | E75: Percent (0-99%)
B77: Default: IGES (2015) IEA (2014) | C77: Grid Electricity Emission Factor | D77: Combined marginal GHG emission factor for grid electricity (IGES) or average grid emission factor (IEA), by country | E77: tCO2e/kWh of electricity

Sheet Pick Lists (hidden)
B3: Pick Lists
B4: Status List
B5: Draft
B6: In Review
B7: Edits Required
B8: Completed
B10: Grid Electricity
B11: Grid (Average Mix)
B12: Grid (Coal/Peat)
B13: Grid (Oil)
B14: Grid (Natural Gas)
B16: Fuel Units of Measure | C16: <Do not change order>
B17: Gigajoules (GJ)
B18: Tonnes (t)
B19: Gallons (gal)
B20: Liters (L)
B21: Pounds (lbs.)
B22: Kilograms (kg)
B23: Million BTUs (MMBTU)
B24: Therms
B25: 100 Cubic Feet (Ccf) | C25: Here just for Match/Vlookup
B27: Alternate Fuels List
B28: Gigajoules (GJ)
B29: Tonnes (t)
B30: Pounds (lbs.)
B31: Kilograms (kg)
B32: Million BTUs (MMBTU)
B33: Therms
B35: Natural Gas Fuels List
B36: Gigajoules (GJ)
B37: Tonnes (t)
B38: Pounds (lbs.)
B39: Kilograms (kg)
B40: Million BTUs (MMBTU)
B41: Therms
B42: 100 Cubic Feet (Ccf)
B44: Renewables Electricity Generation List
B45: Solar Photovoltaic
B46: Wind Turbine
B47: Geothermal Power
B48: Hydroelectric Power
B50: Yes No
B51: Yes
B52: No
B54: Source of Electricity | C54: Fuel Combustion
B55: Grid Electricity
B56: On-Site Combustion
B59: Electricity
B60: Diesel
B61: Electricity Units | C61: Power Units
B62: kWh | C62: kW
B66: Clean Energy Types
B67: Renewable Electricity Generation
B68: Fuel Switching
B69: Energy Efficiency
B71: Grid Connection Types
B72: Central Utility Generation | C72: ->average mix, no line loss
B73: Distributed/Microgrid Generation | C73: -> average mix, with line loss
B74: Off-Grid | C74: -> diesel or average grid with line loss
B76: Grid Types
B77: Combined Marginal Grid | C77: Average Grid Mix
B78: Coal/Peat
B79: Oil
B80: Natural Gas
B82: Off-Grid Alternatives
B83: Average Grid Mix
B84: Diesel Generator
B88: New Fuel List | C88: [Do not remove blank rows]
B90: Grid Electricity
B92: --Common Fuels--
B93: Natural Gas | C93: Natural Gas
B94: Charcoal | C94: Biomass - Charcoal
B95: Coal - Bituminous | C95: Coal - Bituminous
B96: Diesel | C96: Oil - Gas/Diesel
B97: Motor Gasoline (Petrol) | C97: Gasoline - Motor
B98: Liquefied Petroleum Gases (LPGs) | C98: Liquefied Petroleum Gases
B99: Kerosene | C99: Kerosene - Other
B100: Fuel Oil (Residual) | C100: Oil - Residual Fuel
B101: Wood and Wood Waste | C101: Biomass - Wood / Wood Waste
B103: --Crude Oil and Petroleum Products--
B104: Aviation Gasoline | C104: Gasoline - Aviation
B105: Bitumen | C105: Bitumen
B106: Crude Oil | C106: Oil - Crude
B107: Ethane | C107: Ethane
B108: Jet Gasoline | C108: Gasoline - Jet
B109: Jet Kerosene | C109: Kerosene - Jet
B110: Lubricants | C110: Lubricants
B111: Naphtha | C111: Naphtha
B112: Natural Gas Liquids | C112: Natural Gas Liquids
B113: Orimulsion | C113: Orimulsion
B114: Other Petroleum Products | C114: Oil - Other Petroleum
B115: Petroleum Coke | C115: Petroleum Coke
B116: Refinery Feedstocks | C116: Refinery Feedstocks
B117: Refinery Gas | C117: Oil - Refinery Gas
B118: Shale Oil | C118: Oil - Shale
B119: Waxes | C119: Oil - Paraffin Waxes
B120: White Spirit and SBP | C120: Oil - White Spirit and SBP
B122: --Coal and Coal Products--
B123: Anthracite | C123: Coal - Anthracite
B124: Blast Furnace Gas | C124: Blast Furnace Gas
B125: Brown Coal Briquettes | C125: Brown Coal Briquettes
B126: Coal Tar | C126: Coal Tar
B127: Coke Oven Coke and Lignite Coke | C127: Coke - Coke Oven and Lignite
B128: Coke Oven Gas | C128: Coke Oven Gas
B129: Coking Coal | C129: Coal - Coking Coal
B130: Gas Coke | C130: Coke - Gas
B131: Gas Works Gas | C131: Gas Works Gas
B132: Lignite | C132: Coal - Lignite
B133: Oil Shale and Tar Sands | C133: Oil Shale and Tar Sands
B134: Oxygen Steel Furnace Gas | C134: Oxygen Steel Furnace Gas
B135: Patent Fuel | C135: Patent Fuel
B136: Sub-Bituminous Coal | C136: Coal - Sub-Bituminous
B138: --Biofuels--
B139: Biodiesels | C139: Biofuel - Biodiesels
B140: Biogasoline | C140: Biofuel - Biogasoline
B141: Landfill Gas | C141: Biogas - Landfill Gas
B142: Municipal Wastes (biomass fraction) | C142: Municipal Wastes (biomass fraction)
B143: Other Biogas | C143: Biogas - Other Biogas
B144: Other Liquid Biofuels | C144: Biofuel - Other Liquid Biofuels
B145: Other Primary Solid Biomass | C145: Biomass - Other Primary Solid
B146: Sludge Gas | C146: Biogas - Sludge Gas
B147: Sulphite Lyes (Black Liquor) | C147: Biomass - Sulphite lyes (Black Liquor)
B149: --Other--
B150: Industrial Wastes | C150: Industrial Wastes
B151: Municipal Wastes (nonbiomass fraction) | C151: Municipal Wastes (nonbiomass fraction)
B152: Peat | C152: Peat
B153: Waste Oils | C153: Waste Oils
B155: Fiscal Years | C155: Installation Years
B156: FY2030 | C156: =IF(RIGHT('Data Input'!$F$17,4)<RIGHT('Pick Lists'!B156,4),"",'Pick Lists'!B156) -> 
B157: FY2029 | C157: =IF(RIGHT('Data Input'!$F$17,4)<RIGHT('Pick Lists'!B157,4),"",'Pick Lists'!B157) -> 
B158: FY2028 | C158: =IF(RIGHT('Data Input'!$F$17,4)<RIGHT('Pick Lists'!B158,4),"",'Pick Lists'!B158) -> 
B159: FY2027 | C159: =IF(RIGHT('Data Input'!$F$17,4)<RIGHT('Pick Lists'!B159,4),"",'Pick Lists'!B159) -> 
B160: FY2026 | C160: =IF(RIGHT('Data Input'!$F$17,4)<RIGHT('Pick Lists'!B160,4),"",'Pick Lists'!B160) -> 
B161: FY2025 | C161: =IF(RIGHT('Data Input'!$F$17,4)<RIGHT('Pick Lists'!B161,4),"",'Pick Lists'!B161) -> 
B162: FY2024 | C162: =IF(RIGHT('Data Input'!$F$17,4)<RIGHT('Pick Lists'!B162,4),"",'Pick Lists'!B162) -> 
B163: FY2023 | C163: =IF(RIGHT('Data Input'!$F$17,4)<RIGHT('Pick Lists'!B163,4),"",'Pick Lists'!B163) -> 
B164: FY2022 | C164: =IF(RIGHT('Data Input'!$F$17,4)<RIGHT('Pick Lists'!B164,4),"",'Pick Lists'!B164) -> 
B165: FY2021 | C165: =IF(RIGHT('Data Input'!$F$17,4)<RIGHT('Pick Lists'!B165,4),"",'Pick Lists'!B165) -> 
B166: FY2020 | C166: =IF(RIGHT('Data Input'!$F$17,4)<RIGHT('Pick Lists'!B166,4),"",'Pick Lists'!B166) -> 
B167: FY2019 | C167: =IF(RIGHT('Data Input'!$F$17,4)<RIGHT('Pick Lists'!B167,4),"",'Pick Lists'!B167) -> 
B168: FY2018 | C168: =IF(RIGHT('Data Input'!$F$17,4)<RIGHT('Pick Lists'!B168,4),"",'Pick Lists'!B168) -> 
B169: FY2017 | C169: =IF(RIGHT('Data Input'!$F$17,4)<RIGHT('Pick Lists'!B169,4),"",'Pick Lists'!B169) -> 
B170: FY2016 | C170: =IF(RIGHT('Data Input'!$F$17,4)<RIGHT('Pick Lists'!B170,4),"",'Pick Lists'!B170) -> 
B171: FY2015 | C171: =IF(RIGHT('Data Input'!$F$17,4)<RIGHT('Pick Lists'!B171,4),"",'Pick Lists'!B171) -> 
B172: FY2014 | C172: =IF(RIGHT('Data Input'!$F$17,4)<RIGHT('Pick Lists'!B172,4),"",'Pick Lists'!B172) -> 
B173: FY2013 | C173: =IF(RIGHT('Data Input'!$F$17,4)<RIGHT('Pick Lists'!B173,4),"",'Pick Lists'!B173) -> 
B174: FY2012 | C174: =IF(RIGHT('Data Input'!$F$17,4)<RIGHT('Pick Lists'!B174,4),"",'Pick Lists'!B174) -> 
B175: FY2011 | C175: =IF(RIGHT('Data Input'!$F$17,4)<RIGHT('Pick Lists'!B175,4),"",'Pick Lists'!B175) -> 
B176: FY2010 | C176: =IF(RIGHT('Data Input'!$F$17,4)<RIGHT('Pick Lists'!B176,4),"",'Pick Lists'!B176) -> 
B177: FY2009 | C177: =IF(RIGHT('Data Input'!$F$17,4)<RIGHT('Pick Lists'!B177,4),"",'Pick Lists'!B177) -> 
B178: FY2008 | C178: =IF(RIGHT('Data Input'!$F$17,4)<RIGHT('Pick Lists'!B178,4),"",'Pick Lists'!B178) -> 
B179: FY2007 | C179: =IF(RIGHT('Data Input'!$F$17,4)<RIGHT('Pick Lists'!B179,4),"",'Pick Lists'!B179) -> 
B180: FY2006 | C180: =IF(RIGHT('Data Input'!$F$17,4)<RIGHT('Pick Lists'!B180,4),"",'Pick Lists'!B180) -> 
B181: FY2005 | C181: =IF(RIGHT('Data Input'!$F$17,4)<RIGHT('Pick Lists'!B181,4),"",'Pick Lists'!B181) -> 
B182: FY2004 | C182: =IF(RIGHT('Data Input'!$F$17,4)<RIGHT('Pick Lists'!B182,4),"",'Pick Lists'!B182) -> 
B183: FY2003 | C183: =IF(RIGHT('Data Input'!$F$17,4)<RIGHT('Pick Lists'!B183,4),"",'Pick Lists'!B183) -> 
B184: FY2002 | C184: =IF(RIGHT('Data Input'!$F$17,4)<RIGHT('Pick Lists'!B184,4),"",'Pick Lists'!B184) -> 
B185: FY2001 | C185: =IF(RIGHT('Data Input'!$F$17,4)<RIGHT('Pick Lists'!B185,4),"",'Pick Lists'!B185) -> 
B186: FY2000 | C186: =IF(RIGHT('Data Input'!$F$17,4)<RIGHT('Pick Lists'!B186,4),"",'Pick Lists'!B186) -> 
B188: Energy Efficiency PIcklist
B189: Energy in absence of activity
B190: Percent energy savings of activity
B191: Navigation Conditions
B192: Unit 1 | D192: TRUE
B193: Unit 2 | D193: TRUE
B194: Activity Details Sections Check | D194: =IF(OR('Data Input'!F14="",'Data Input'!F15="",'Data Input'!F16="",'Data Input'!F17="",CountryInput=""),FALSE,TRUE) -> FALSE
B195: Drop down | D195: =IF(Section2Trigger="",FALSE,TRUE) -> FALSE
B196: Customers | D196: =IF('Data Input'!H40="",FALSE,TRUE) -> FALSE
B197: Pre data | D197: =IF('Data Input'!H42="",FALSE,TRUE) -> FALSE
B198: Pre data values if true | D198: =IF('Data Input'!H42="Yes",IF(triggerelec="",FALSE,TRUE),TRUE) -> TRUE
B199: Pre units if true | D199: =IF('Data Input'!H42="Yes",IF(OR('Data Input'!J44="<Electricity Units>",'Data Input'!J44=""),FALSE,TRUE),TRUE) -> TRUE
B200: Post data | D200: =IF(AND('Data Input'!H42="yes",'Data Input'!H46=""),FALSE,TRUE) -> TRUE
B201: Post data values if true | D201: =IF(OR('Data Input'!H46="Yes",'Data Input'!H42="no"),IF(ElecReplFuel="",FALSE,TRUE),TRUE) -> TRUE
B202: Post units if true | D202: =IF('Data Input'!H46="Yes",IF(OR('Data Input'!J48="",'Data Input'!J48="<Electricity Units>"),FALSE,TRUE),TRUE) -> TRUE
B203: No No Condition | D203: =IF(AND('Data Input'!H42="No",'Data Input'!H46="No",ElecReplFuel=""),FALSE,TRUE) -> TRUE
B204: Final Condition | D204: =AND(D192:D203) -> FALSE
B208: Technology | C208: Estimated Asset Lifetime (Years) | D208: Annual Degradation Rate | E208: Lead
B209: Solar Photovoltaic | C209: 25 | D209: 0.005 | E209: Craig Schultz
B210: Solar Thermal | C210: 30 | D210: 0.003 | E210: Martin Anderson
B211: Wind Turbine | C211: 25 | D211: 0.005 | E211: Ellen Allman
B212: Hydroelectric Power | C212: 40 | D212: 0.003 | E212: Martin Anderson
B213: Geothermal Power | C213: 25 | D213: 0.01 | E213: Ellen Allman
B214: Geothermal- direct heat | C214: 25 | D214: 0.01 | E214: Ellen Allman
B215: Geothermal - heat pumps | C215: 20 | D215: 0.004 | E215: Ellen Allman
B216: Energy Efficiency | C216: 15 | D216: 0.005 | E216: Test data; Update Later
B217: Fuel Switching | C217: 15 | D217: 0.005 | E217: Test data; Update Later
B220: Use of postpaid meters without energy efficiency measures | C220: 0.276492254
B221: Use of postpaid meters with energy efficiency measures | C221: 0.4361447829
B222: Replacing postpaid meters with prepaid meters | C222: 0.2266666667
B223: Use of prepaid meters without energy efficiency measures | C223: 0.3380782918
B224: Use of prepaid meters with energy efficiency measures | C224: 0.487544484

Sheet Country Parameters (hidden)
B1: 1 | C1: 2 | D1: 3 | E1: 4 | F1: 5 | G1: 6 | H1: 7 | I1: 8 | J1: 9 | K1: 10 | L1: 11 | M1: 12 | N1: 13 | Q1: 14 | R1: 15 | S1: 16
B2: Country Parameters
B3: Short-form name | C3: Long-form name | D3: US FIPS | E3: Alpha-2 | F3: Alpha-3 | G3: Numeric Code | H3: Latitude Average | I3: Longitude Average | J3: Region | K3: Grid Average Utilized (Grams CO2/kWh) | L3: Grams CO2/kWh (Coal/Peat) | M3: Grams CO2/kWh (Oil) | N3: Grams CO2/kWh (Natural Gas) | O3: Grid Average (IEA) (Grams CO2/kWh) | P3: CDM Avearge Combined Marginal (IGES) | Q3: Average Solar Insolation (kWh/m^2/day) and Average-Day Insolation (hr) | R3: Average Grid Line Loss Rate (%) | S3: Regional Emission Factor utilized | T3: Wind Capacity Factor | U3: Regional Capacity Factor Utilized
B4: Afghanistan | C4: Islamic Republic of Afghanistan | D4: AF | E4: AF | F4: AFG | G4: 4 | H4: 33 | I4: 65 | J4: Asia | K4: =IF(P4="N/A",O4,P4) -> 846.5339208 | L4: 919.0507 | M4: 785.5197 | N4: 527.4198 | O4: 451.1306 | P4: 846.5339208 | Q4: 5.3 | R4: 0.05730004629 | S4: =IF(ISNUMBER(MATCH(B4,'Grid EFs'!$B$4:$B$157,0)),"","*") ->  | T4: =VLOOKUP(B4,'Wind Capacity Factor'!$B$6:$L$276,8,FALSE) -> 0.1850094619 | U4: =IF(INDEX('Wind Capacity Factor'!$A$6:$B$258,MATCH('Country Parameters'!B4,'Wind Capacity Factor'!$B$6:$B$258,0),1)="*","*","") -> *
B5: Albania | C5: Republic of Albania | D5: AL | E5: AL | F5: ALB | G5: 8 | H5: 41 | I5: 20 | J5: Europe | K5: =IF(P5="N/A",O5,P5) -> 312.0333333 | L5: 919.0507 | M5: 785.5197 | N5: 527.4198 | O5: 6.9824 | P5: 312.0333333 | Q5: 4.14 | R5: 0.1012017018 | S5: =IF(ISNUMBER(MATCH(B5,'Grid EFs'!$B$4:$B$157,0)),"","*") ->  | T5: =VLOOKUP(B5,'Wind Capacity Factor'!$B$6:$L$276,8,FALSE) -> 0.2218523463 | U5: =IF(INDEX('Wind Capacity Factor'!$A$6:$B$258,MATCH('Country Parameters'!B5,'Wind Capacity Factor'!$B$6:$B$258,0),1)="*","*","") -> *
B6: Algeria | C6: People's Democratic Republic of Algeria | D6: AG | E6: DZ | F6: DZA | G6: 12 | H6: 28 | I6: 3 | J6: Africa | K6: 720.023585 | L6: 974.5395 | M6: 935.3821 | N6: 528.5084 | O6: 549.2008 | P6: 720.023585 | Q6: 5.61 | R6: 0.09492160819 | S6: =IF(ISNUMBER(MATCH(B6,'Grid EFs'!$B$4:$B$157,0)),"","*") ->  | T6: =VLOOKUP(B6,'Wind Capacity Factor'!$B$6:$L$276,8,FALSE) -> 0.246106885 | U6: =IF(INDEX('Wind Capacity Factor'!$A$6:$B$258,MATCH('Country Parameters'!B6,'Wind Capacity Factor'!$B$6:$B$258,0),1)="*","*","") -> *
B7: Andorra | C7: Principality of Andorra | D7: AN | E7: AD | F7: AND | G7: 20 | H7: 42.5 | I7: 1.6 | J7: Europe | K7: 331.064 | L7: 917.4832 | M7: 690.5793 | N7: 359.0744 | O7: 331.064 | P7: N/A | Q7: 3.7 | R7: 0.05810932301 | S7: =IF(ISNUMBER(MATCH(B7,'Grid EFs'!$B$4:$B$157,0)),"","*") ->  | T7: =VLOOKUP(B7,'Wind Capacity Factor'!$B$6:$L$276,8,FALSE) -> 0.2218523463 | U7: =IF(INDEX('Wind Capacity Factor'!$A$6:$B$258,MATCH('Country Parameters'!B7,'Wind Capacity Factor'!$B$6:$B$258,0),1)="*","*","") -> *
B8: Angola | C8: Republic of Angola | D8: AO | E8: AO | F8: AGO | G8: 24 | H8: -12.5 | I8: 18.5 | J8: Africa | K8: 840.8 | L8: 974.5395 | M8: 1343.4219 | N8: 456.774 | O8: 390.8441 | P8: 840.8 | Q8: 5.58 | R8: 0.07427444358 | S8: =IF(ISNUMBER(MATCH(B8,'Grid EFs'!$B$4:$B$157,0)),"","*") ->  | T8: =VLOOKUP(B8,'Wind Capacity Factor'!$B$6:$L$276,8,FALSE) -> 0.246106885 | U8: =IF(INDEX('Wind Capacity Factor'!$A$6:$B$258,MATCH('Country Parameters'!B8,'Wind Capacity Factor'!$B$6:$B$258,0),1)="*","*","") -> *
B9: Antigua and Barbuda | C9: Antigua and Barbuda | D9: AC | E9: AG | F9: ATG | G9: 28 | H9: 17.05 | I9: -61.8 | J9: North America | K9: 472.4409815 | L9: 1240.488 | M9: 671.3559 | N9: 502.8366 | O9: 200.8047 | P9: 472.4409815 | Q9: 6.16 | R9: 0.05767936475 | S9: =IF(ISNUMBER(MATCH(B9,'Grid EFs'!$B$4:$B$157,0)),"","*") -> * | T9: =VLOOKUP(B9,'Wind Capacity Factor'!$B$6:$L$276,8,FALSE) -> 0.2363786168 | U9: =IF(INDEX('Wind Capacity Factor'!$A$6:$B$258,MATCH('Country Parameters'!B9,'Wind Capacity Factor'!$B$6:$B$258,0),1)="*","*","") -> *
B10: Argentina | C10: Argentine Republic | D10: AR | E10: AR | F10: ARG | G10: 32 | H10: -34 | I10: -64 | J10: South America | K10: 504.7211429 | L10: 1165.1775 | M10: 731.7614 | N10: 476.0554 | O10: 397.1744 | P10: 504.7211429 | Q10: 4.8 | R10: 0.0848395274 | S10: =IF(ISNUMBER(MATCH(B10,'Grid EFs'!$B$4:$B$157,0)),"","*") -> * | T10: =VLOOKUP(B10,'Wind Capacity Factor'!$B$6:$L$276,8,FALSE) -> 0.2989587486 | U10: =IF(INDEX('Wind Capacity Factor'!$A$6:$B$258,MATCH('Country Parameters'!B10,'Wind Capacity Factor'!$B$6:$B$258,0),1)="*","*","") -> 
B11: Armenia | C11: Republic of Armenia | D11: AM | E11: AM | F11: ARM | G11: 51 | H11: 40 | I11: 45 | J11: Asia | K11: 435.9666667 | L11: 919.0507 | M11: 785.5197 | N11: 417.3284 | O11: 176.5181 | P11: 435.9666667 | Q11: 3.96 | R11: 0.08111783648 | S11: =IF(ISNUMBER(MATCH(B11,'Grid EFs'!$B$4:$B$157,0)),"","*") ->  | T11: =VLOOKUP(B11,'Wind Capacity Factor'!$B$6:$L$276,8,FALSE) -> 0.1756234633 | U11: =IF(INDEX('Wind Capacity Factor'!$A$6:$B$258,MATCH('Country Parameters'!B11,'Wind Capacity Factor'!$B$6:$B$258,0),1)="*","*","") -> 
B12: Australia | C12: Commonwealth of Australia | D12: AS | E12: AU | F12: AUS | G12: 36 | H12: -27 | I12: 133 | J12: Oceana | K12: 798.9019 | L12: 993.7538 | M12: 679.1895 | N12: 522.1739 | O12: 798.9019 | P12: N/A | Q12: 5.9 | R12: 0.0510883071 | S12: =IF(ISNUMBER(MATCH(B12,'Grid EFs'!$B$4:$B$157,0)),"","*") ->  | T12: =VLOOKUP(B12,'Wind Capacity Factor'!$B$6:$L$276,8,FALSE) -> 0.270058456 | U12: =IF(INDEX('Wind Capacity Factor'!$A$6:$B$258,MATCH('Country Parameters'!B12,'Wind Capacity Factor'!$B$6:$B$258,0),1)="*","*","") -> 
B13: Austria | C13: Republic of Austria | D13: AU | E13: AT | F13: AUT | G13: 40 | H13: 47.3333 | I13: 13.3333 | J13: Europe | K13: 164.791 | L13: 1057.8384 | M13: 578.3732 | N13: 320.4583 | O13: 164.791 | P13: N/A | Q13: 3.25 | R13: 0.04466872075 | S13: =IF(ISNUMBER(MATCH(B13,'Grid EFs'!$B$4:$B$157,0)),"","*") ->  | T13: =VLOOKUP(B13,'Wind Capacity Factor'!$B$6:$L$276,8,FALSE) -> 0.2040380142 | U13: =IF(INDEX('Wind Capacity Factor'!$A$6:$B$258,MATCH('Country Parameters'!B13,'Wind Capacity Factor'!$B$6:$B$258,0),1)="*","*","") -> 
B14: Azerbaijan | C14: Republic of Azerbaijan | D14: AJ | E14: AZ | F14: AZE | G14: 31 | H14: 40.5 | I14: 47.5 | J14: Asia | K14: 589.76 | L14: 919.0507 | M14: 627.9523 | N14: 533.8971 | O14: 493.6623 | P14: 589.76 | Q14: 3.48 | R14: 0.0921910289 | S14: =IF(ISNUMBER(MATCH(B14,'Grid EFs'!$B$4:$B$157,0)),"","*") ->  | T14: =VLOOKUP(B14,'Wind Capacity Factor'!$B$6:$L$276,8,FALSE) -> 0.2218523463 | U14: =IF(INDEX('Wind Capacity Factor'!$A$6:$B$258,MATCH('Country Parameters'!B14,'Wind Capacity Factor'!$B$6:$B$258,0),1)="*","*","") -> *
B15: Bahamas, The | C15: Commonwealth of The Bahamas | D15: BF | E15: BS | F15: BHS | G15: 44 | H15: 24.25 | I15: -76 | J15: North America | K15: 723 | L15: 1240.488 | M15: 671.3559 | N15: 502.8366 | O15: 200.8047 | P15: 723 | Q15: 5.74 | R15: 0.05767936475 | S15: =IF(ISNUMBER(MATCH(B15,'Grid EFs'!$B$4:$B$157,0)),"","*") -> * | T15: =VLOOKUP(B15,'Wind Capacity Factor'!$B$6:$L$276,8,FALSE) -> 0.2363786168 | U15: =IF(INDEX('Wind Capacity Factor'!$A$6:$B$258,MATCH('Country Parameters'!B15,'Wind Capacity Factor'!$B$6:$B$258,0),1)="*","*","") -> *
B16: Bahrain | C16: Kingdom of Bahrain | D16: BA | E16: BH | F16: BHR | G16: 48 | H16: 26 | I16: 50.55 | J16: Asia | K16: 679.1801887 | L16: 1144.2709 | M16: 915.4122 | N16: 754.7189 | O16: 754.7189 | P16: 679.1801887 | Q16: 6.01 | R16: 0.05652999654 | S16: =IF(ISNUMBER(MATCH(B16,'Grid EFs'!$B$4:$B$157,0)),"","*") -> * | T16: =VLOOKUP(B16,'Wind Capacity Factor'!$B$6:$L$276,8,FALSE) -> 0.3438411179 | U16: =IF(INDEX('Wind Capacity Factor'!$A$6:$B$258,MATCH('Country Parameters'!B16,'Wind Capacity Factor'!$B$6:$B$258,0),1)="*","*","") -> 
B17: Bangladesh | C17: People's Republic of Bangladesh | D17: BG | E17: BD | F17: BGD | G17: 50 | H17: 24 | I17: 90 | J17: Asia | K17: 640.685 | L17: 1037.0159 | M17: 598.7265 | N17: 572.8531 | O17: 575.1163 | P17: 640.685 | Q17: 4.65 | R17: 0.0756347503 | S17: =IF(ISNUMBER(MATCH(B17,'Grid EFs'!$B$4:$B$157,0)),"","*") ->  | T17: =VLOOKUP(B17,'Wind Capacity Factor'!$B$6:$L$276,8,FALSE) -> 0.1141552511 | U17: =IF(INDEX('Wind Capacity Factor'!$A$6:$B$258,MATCH('Country Parameters'!B17,'Wind Capacity Factor'!$B$6:$B$258,0),1)="*","*","") -> 
B18: Barbados | C18: Barbados | D18: BB | E18: BB | F18: BRB | G18: 52 | H18: 13.1667 | I18: -59.5333 | J18: North America | K18: 472.4409815 | L18: 1240.488 | M18: 671.3559 | N18: 502.8366 | O18: 200.8047 | P18: 472.4409815 | Q18: 6.1 | R18: 0.05767936475 | S18: =IF(ISNUMBER(MATCH(B18,'Grid EFs'!$B$4:$B$157,0)),"","*") -> * | T18: =VLOOKUP(B18,'Wind Capacity Factor'!$B$6:$L$276,8,FALSE) -> 0.2363786168 | U18: =IF(INDEX('Wind Capacity Factor'!$A$6:$B$258,MATCH('Country Parameters'!B18,'Wind Capacity Factor'!$B$6:$B$258,0),1)="*","*","") -> *
B19: Belarus | C19: Republic of Belarus | D19: BO | E19: BY | F19: BLR | G19: 112 | H19: 53 | I19: 28 | J19: Europe | K19: 425.1181 | L19: 1487.011 | M19: 583.2028 | N19: 422.5169 | O19: 425.1181 | P19: N/A | Q19: 2.82 | R19: 0.07364560087 | S19: =IF(ISNUMBER(MATCH(B19,'Grid EFs'!$B$4:$B$157,0)),"","*") ->  | T19: =VLOOKUP(B19,'Wind Capacity Factor'!$B$6:$L$276,8,FALSE) -> 0.3604902668 | U19: =IF(INDEX('Wind Capacity Factor'!$A$6:$B$258,MATCH('Country Parameters'!B19,'Wind Capacity Factor'!$B$6:$B$258,0),1)="*","*","") -> 
B20: Belgium | C20: Kingdom of Belgium | D20: BE | E20: BE | F20: BEL | G20: 56 | H20: 50.8333 | I20: 4 | J20: Europe | K20: 212.018 | L20: 1318.2679 | M20: 507.5213 | N20: 313.3031 | O20: 212.018 | P20: N/A | Q20: 2.81 | R20: 0.04266864083 | S20: =IF(ISNUMBER(MATCH(B20,'Grid EFs'!$B$4:$B$157,0)),"","*") ->  | T20: =VLOOKUP(B20,'Wind Capacity Factor'!$B$6:$L$276,8,FALSE) -> 0.2253603307 | U20: =IF(INDEX('Wind Capacity Factor'!$A$6:$B$258,MATCH('Country Parameters'!B20,'Wind Capacity Factor'!$B$6:$B$258,0),1)="*","*","") -> 
B21: Belize | C21: Belize | D21: BH | E21: BZ | F21: BLZ | G21: 84 | H21: 17.25 | I21: -88.75 | J21: North America | K21: 151.9 | L21: 1240.488 | M21: 671.3559 | N21: 502.8366 | O21: 200.8047 | P21: 151.9 | Q21: 4.85 | R21: 0.05767936475 | S21: =IF(ISNUMBER(MATCH(B21,'Grid EFs'!$B$4:$B$157,0)),"","*") -> * | T21: =VLOOKUP(B21,'Wind Capacity Factor'!$B$6:$L$276,8,FALSE) -> 0.3424657534 | U21: =IF(INDEX('Wind Capacity Factor'!$A$6:$B$258,MATCH('Country Parameters'!B21,'Wind Capacity Factor'!$B$6:$B$258,0),1)="*","*","") -> 
B22: Benin | C22: Republic of Benin | D22: BN | E22: BJ | F22: BEN | G22: 204 | H22: 9.5 | I22: 2.25 | J22: Africa | K22: 720.023585 | L22: 974.5395 | M22: 725.1481 | N22: 456.774 | O22: 720.6994 | P22: 720.023585 | Q22: 5.59 | R22: 0.07571494693 | S22: =IF(ISNUMBER(MATCH(B22,'Grid EFs'!$B$4:$B$157,0)),"","*") ->  | T22: =VLOOKUP(B22,'Wind Capacity Factor'!$B$6:$L$276,8,FALSE) -> 0.246106885 | U22: =IF(INDEX('Wind Capacity Factor'!$A$6:$B$258,MATCH('Country Parameters'!B22,'Wind Capacity Factor'!$B$6:$B$258,0),1)="*","*","") -> *
B23: Bhutan | C23: Kingdom of Bhutan | D23: BT | E23: BT | F23: BTN | G23: 64 | H23: 27.5 | I23: 90.5 | J23: Asia | K23: 830.45 | L23: 1144.2709 | M23: 843.0648 | N23: 451.9748 | O23: 736.1338 | P23: 830.45 | Q23: 5.31 | R23: 0.05730004629 | S23: =IF(ISNUMBER(MATCH(B23,'Grid EFs'!$B$4:$B$157,0)),"","*") ->  | T23: =VLOOKUP(B23,'Wind Capacity Factor'!$B$6:$L$276,8,FALSE) -> 0.1850094619 | U23: =IF(INDEX('Wind Capacity Factor'!$A$6:$B$258,MATCH('Country Parameters'!B23,'Wind Capacity Factor'!$B$6:$B$258,0),1)="*","*","") -> *
B24: Bolivia | C24: Plurinational State of Bolivia | D24: BL | E24: BO | F24: BOL | G24: 68 | H24: -17 | I24: -65 | J24: South America | K24: 588.75 | L24: 1240.488 | M24: 942.2581 | N24: 634.0785 | O24: 426.278 | P24: 588.75 | Q24: 4.61 | R24: 0.07374593312 | S24: =IF(ISNUMBER(MATCH(B24,'Grid EFs'!$B$4:$B$157,0)),"","*") -> * | T24: =VLOOKUP(B24,'Wind Capacity Factor'!$B$6:$L$276,8,FALSE) -> 0.2363786168 | U24: =IF(INDEX('Wind Capacity Factor'!$A$6:$B$258,MATCH('Country Parameters'!B24,'Wind Capacity Factor'!$B$6:$B$258,0),1)="*","*","") -> *
B25: Bosnia and Herzegovina | C25: Bosnia and Herzegovina | D25: BK | E25: BA | F25: BIH | G25: 70 | H25: 44 | I25: 18 | J25: Europe | K25: 973.15 | L25: 1395.2871 | M25: 765.8214 | N25: 694.4231 | O25: 973.8126 | P25: 973.15 | Q25: 3.43 | R25: 0.0703046414 | S25: =IF(ISNUMBER(MATCH(B25,'Grid EFs'!$B$4:$B$157,0)),"","*") ->  | T25: =VLOOKUP(B25,'Wind Capacity Factor'!$B$6:$L$276,8,FALSE) -> 0.2218523463 | U25: =IF(INDEX('Wind Capacity Factor'!$A$6:$B$258,MATCH('Country Parameters'!B25,'Wind Capacity Factor'!$B$6:$B$258,0),1)="*","*","") -> *
B26: Botswana | C26: Republic of Botswana | D26: BC | E26: BW | F26: BWA | G26: 72 | H26: -22 | I26: 24 | J26: Africa | K26: 720.023585 | L26: 1478.836 | M26: 833.9727 | N26: 456.774 | O26: 1478.836 | P26: 720.023585 | Q26: 5.87 | R26: 0.07571494693 | S26: =IF(ISNUMBER(MATCH(B26,'Grid EFs'!$B$4:$B$157,0)),"","*") ->  | T26: =VLOOKUP(B26,'Wind Capacity Factor'!$B$6:$L$276,8,FALSE) -> 0.246106885 | U26: =IF(INDEX('Wind Capacity Factor'!$A$6:$B$258,MATCH('Country Parameters'!B26,'Wind Capacity Factor'!$B$6:$B$258,0),1)="*","*","") -> *
B27: Brazil | C27: Federative Republic of Brazil | D27: BR | E27: BR | F27: BRA | G27: 76 | H27: -10 | I27: -55 | J27: South America | K27: 292.377932 | L27: 1409.4494 | M27: 726.969 | N27: 428.3065 | O27: 98.1739 | P27: 292.377932 | Q27: 4.87 | R27: 0.08950058604 | S27: =IF(ISNUMBER(MATCH(B27,'Grid EFs'!$B$4:$B$157,0)),"","*") -> * | T27: =VLOOKUP(B27,'Wind Capacity Factor'!$B$6:$L$276,8,FALSE) -> 0.2298580615 | U27: =IF(INDEX('Wind Capacity Factor'!$A$6:$B$258,MATCH('Country Parameters'!B27,'Wind Capacity Factor'!$B$6:$B$258,0),1)="*","*","") -> 
B28: Brunei Darussalam | C28: Brunei Darussalam | D28: BX | E28: BN | F28: BRN | G28: 96 | H28: 4.5 | I28: 114.6667 | J28: Asia | K28: 846.5339208 | L28: 1144.2709 | M28: 858.1081 | N28: 721.7504 | O28: 722.6669 | P28: 846.5339208 | Q28: 5.65 | R28: 0.06070584111 | S28: =IF(ISNUMBER(MATCH(B28,'Grid EFs'!$B$4:$B$157,0)),"","*") ->  | T28: =VLOOKUP(B28,'Wind Capacity Factor'!$B$6:$L$276,8,FALSE) -> 0.1850094619 | U28: =IF(INDEX('Wind Capacity Factor'!$A$6:$B$258,MATCH('Country Parameters'!B28,'Wind Capacity Factor'!$B$6:$B$258,0),1)="*","*","") -> *
B29: Bulgaria | C29: Republic of Bulgaria | D29: BU | E29: BG | F29: BGR | G29: 100 | H29: 43 | I29: 25 | J29: Europe | K29: 531.6944 | L29: 1042.7764 | M29: 782.3285 | N29: 311.9086 | O29: 531.6944 | P29: N/A | Q29: 3.78 | R29: 0.0672753413 | S29: =IF(ISNUMBER(MATCH(B29,'Grid EFs'!$B$4:$B$157,0)),"","*") ->  | T29: =VLOOKUP(B29,'Wind Capacity Factor'!$B$6:$L$276,8,FALSE) -> 0.2068005366 | U29: =IF(INDEX('Wind Capacity Factor'!$A$6:$B$258,MATCH('Country Parameters'!B29,'Wind Capacity Factor'!$B$6:$B$258,0),1)="*","*","") -> 
B30: Burkina Faso | C30: Burkina Faso | D30: UV | E30: BF | F30: BFA | G30: 854 | H30: 13 | I30: -2 | J30: Africa | K30: 470.625 | L30: 974.5395 | M30: 833.9727 | N30: 456.774 | O30: 597.6623 | P30: 470.625 | Q30: 5.95 | R30: 0.07571494693 | S30: =IF(ISNUMBER(MATCH(B30,'Grid EFs'!$B$4:$B$157,0)),"","*") ->  | T30: =VLOOKUP(B30,'Wind Capacity Factor'!$B$6:$L$276,8,FALSE) -> 0.246106885 | U30: =IF(INDEX('Wind Capacity Factor'!$A$6:$B$258,MATCH('Country Parameters'!B30,'Wind Capacity Factor'!$B$6:$B$258,0),1)="*","*","") -> *
B31: Burma | C31: Union of Burma | D31: BM | H31: 20 | I31: 96 | J31: Asia | K31: 394.8 | L31: 939.9922 | M31: 809.3333 | N31: 724.9576 | O31: 216.2057 | P31: 394.8 | Q31: 5.14 | R31: 0.1028454192 | S31: =IF(ISNUMBER(MATCH(B31,'Grid EFs'!$B$4:$B$157,0)),"","*") ->  | T31: =VLOOKUP(B31,'Wind Capacity Factor'!$B$6:$L$276,8,FALSE) -> 0.1850094619 | U31: =IF(INDEX('Wind Capacity Factor'!$A$6:$B$258,MATCH('Country Parameters'!B31,'Wind Capacity Factor'!$B$6:$B$258,0),1)="*","*","") -> *
B32: Burundi | C32: Republic of Burundi | D32: BY | E32: BI | F32: BDI | G32: 108 | H32: -3.5 | I32: 30 | J32: Africa | K32: 720.023585 | L32: 974.5395 | M32: 833.9727 | N32: 456.774 | O32: 597.6623 | P32: 720.023585 | Q32: 5.05 | R32: 0.07571494693 | S32: =IF(ISNUMBER(MATCH(B32,'Grid EFs'!$B$4:$B$157,0)),"","*") ->  | T32: =VLOOKUP(B32,'Wind Capacity Factor'!$B$6:$L$276,8,FALSE) -> 0.246106885 | U32: =IF(INDEX('Wind Capacity Factor'!$A$6:$B$258,MATCH('Country Parameters'!B32,'Wind Capacity Factor'!$B$6:$B$258,0),1)="*","*","") -> *
B33: Cambodia | C33: Kingdom of Cambodia | D33: CB | E33: KH | F33: KHM | G33: 116 | H33: 13 | I33: 105 | J33: Asia | K33: 585.86 | L33: 1062.6486 | M33: 839.2182 | N33: 451.9748 | O33: 528.9596 | P33: 585.86 | Q33: 5.27 | R33: 0.1029562342 | S33: =IF(ISNUMBER(MATCH(B33,'Grid EFs'!$B$4:$B$157,0)),"","*") ->  | T33: =VLOOKUP(B33,'Wind Capacity Factor'!$B$6:$L$276,8,FALSE) -> 0.1850094619 | U33: =IF(INDEX('Wind Capacity Factor'!$A$6:$B$258,MATCH('Country Parameters'!B33,'Wind Capacity Factor'!$B$6:$B$258,0),1)="*","*","") -> *
B34: Cameroon | C34: Republic of Cameroon | D34: CM | E34: CM | F34: CMR | G34: 120 | H34: 6 | I34: 12 | J34: Africa | K34: 390 | L34: 974.5395 | M34: 859.7422 | N34: 537.8502 | O34: 208.5946 | P34: 390 | Q34: 5.65 | R34: 0.06891392247 | S34: =IF(ISNUMBER(MATCH(B34,'Grid EFs'!$B$4:$B$157,0)),"","*") ->  | T34: =VLOOKUP(B34,'Wind Capacity Factor'!$B$6:$L$276,8,FALSE) -> 0.246106885 | U34: =IF(INDEX('Wind Capacity Factor'!$A$6:$B$258,MATCH('Country Parameters'!B34,'Wind Capacity Factor'!$B$6:$B$258,0),1)="*","*","") -> *
B35: Canada | C35: Canada | D35: CA | E35: CA | F35: CAN | G35: 124 | H35: 60 | I35: -95 | J35: North America | K35: 150.8889 | L35: 900.9834 | M35: 882.0182 | N35: 475.467 | O35: 150.8889 | P35: N/A | Q35: 2.87 | R35: 0.06465087143 | S35: =IF(ISNUMBER(MATCH(B35,'Grid EFs'!$B$4:$B$157,0)),"","*") ->  | T35: =VLOOKUP(B35,'Wind Capacity Factor'!$B$6:$L$276,8,FALSE) -> 0.2082412726 | U35: =IF(INDEX('Wind Capacity Factor'!$A$6:$B$258,MATCH('Country Parameters'!B35,'Wind Capacity Factor'!$B$6:$B$258,0),1)="*","*","") -> 
B36: Cape Verde | C36: Republic of Cape Verde | D36: CV | E36: CV | F36: CPV | G36: 132 | H36: 16 | I36: -24 | J36: Africa | K36: 654.9 | L36: 974.5395 | M36: 833.9727 | N36: 456.774 | O36: 597.6623 | P36: 654.9 | Q36: 5.9 | R36: 0.07571494693 | S36: =IF(ISNUMBER(MATCH(B36,'Grid EFs'!$B$4:$B$157,0)),"","*") ->  | T36: =VLOOKUP(B36,'Wind Capacity Factor'!$B$6:$L$276,8,FALSE) -> 0.246106885 | U36: =IF(INDEX('Wind Capacity Factor'!$A$6:$B$258,MATCH('Country Parameters'!B36,'Wind Capacity Factor'!$B$6:$B$258,0),1)="*","*","") -> *
B37: Central African Republic | C37: Central African Republic | D37: CT | E37: CF | F37: CAF | G37: 140 | H37: 7 | I37: 21 | J37: Africa | K37: 720.023585 | L37: 974.5395 | M37: 833.9727 | N37: 456.774 | O37: 597.6623 | P37: 720.023585 | Q37: 5.69 | R37: 0.07571494693 | S37: =IF(ISNUMBER(MATCH(B37,'Grid EFs'!$B$4:$B$157,0)),"","*") ->  | T37: =VLOOKUP(B37,'Wind Capacity Factor'!$B$6:$L$276,8,FALSE) -> 0.246106885 | U37: =IF(INDEX('Wind Capacity Factor'!$A$6:$B$258,MATCH('Country Parameters'!B37,'Wind Capacity Factor'!$B$6:$B$258,0),1)="*","*","") -> *
B38: Chad | C38: Republic of Chad | D38: CD | E38: TD | F38: TCD | G38: 148 | H38: 15 | I38: 19 | J38: Africa | K38: 720.023585 | L38: 974.5395 | M38: 833.9727 | N38: 456.774 | O38: 597.6623 | P38: 720.023585 | Q38: 6.64 | R38: 0.07571494693 | S38: =IF(ISNUMBER(MATCH(B38,'Grid EFs'!$B$4:$B$157,0)),"","*") ->  | T38: =VLOOKUP(B38,'Wind Capacity Factor'!$B$6:$L$276,8,FALSE) -> 0.246106885 | U38: =IF(INDEX('Wind Capacity Factor'!$A$6:$B$258,MATCH('Country Parameters'!B38,'Wind Capacity Factor'!$B$6:$B$258,0),1)="*","*","") -> *
B39: Chile | C39: Republic of Chile | D39: CI | E39: CL | F39: CHL | G39: 152 | H39: -30 | I39: -71 | J39: South America | K39: 598.5909592 | L39: 868.7917 | M39: 984.1206 | N39: 438.0978 | O39: 482.977 | P39: 598.5909592 | Q39: 5.59 | R39: 0.06008554032 | S39: =IF(ISNUMBER(MATCH(B39,'Grid EFs'!$B$4:$B$157,0)),"","*") ->  | T39: =VLOOKUP(B39,'Wind Capacity Factor'!$B$6:$L$276,8,FALSE) -> 0.2277536474 | U39: =IF(INDEX('Wind Capacity Factor'!$A$6:$B$258,MATCH('Country Parameters'!B39,'Wind Capacity Factor'!$B$6:$B$258,0),1)="*","*","") -> 
B40: China | C40: People's Republic of China | D40: CH | E40: CN | F40: CHN | G40: 156 | H40: 35 | I40: 105 | J40: Asia | K40: 850.2804795 | L40: 948.2106 | M40: 755.2116 | N40: 508.3844 | O40: 734.2853 | P40: 850.2804795 | Q40: 4.28 | R40: 0.053072478 | S40: =IF(ISNUMBER(MATCH(B40,'Grid EFs'!$B$4:$B$157,0)),"","*") -> * | T40: =VLOOKUP(B40,'Wind Capacity Factor'!$B$6:$L$276,8,FALSE) -> 0.179612995 | U40: =IF(INDEX('Wind Capacity Factor'!$A$6:$B$258,MATCH('Country Parameters'!B40,'Wind Capacity Factor'!$B$6:$B$258,0),1)="*","*","") -> 
B41: Colombia | C41: Republic of Colombia | D41: CO | E41: CO | F41: COL | G41: 170 | H41: 4 | I41: -72 | J41: South America | K41: 333.1309091 | L41: 959.6617 | M41: 921.2711 | N41: 451.8582 | O41: 122.7676 | P41: 333.1309091 | Q41: 4.86 | R41: 0.08256524015 | S41: =IF(ISNUMBER(MATCH(B41,'Grid EFs'!$B$4:$B$157,0)),"","*") -> * | T41: =VLOOKUP(B41,'Wind Capacity Factor'!$B$6:$L$276,8,FALSE) -> 0.3219763494 | U41: =IF(INDEX('Wind Capacity Factor'!$A$6:$B$258,MATCH('Country Parameters'!B41,'Wind Capacity Factor'!$B$6:$B$258,0),1)="*","*","") -> 
B42: Comoros | C42: Union of the Comoros | D42: CN | E42: KM | F42: COM | G42: 174 | H42: -12.1667 | I42: 44.25 | J42: Africa | K42: 720.023585 | L42: 974.5395 | M42: 833.9727 | N42: 456.774 | O42: 597.6623 | P42: 720.023585 | Q42: 6.22 | R42: 0.07571494693 | S42: =IF(ISNUMBER(MATCH(B42,'Grid EFs'!$B$4:$B$157,0)),"","*") ->  | T42: =VLOOKUP(B42,'Wind Capacity Factor'!$B$6:$L$276,8,FALSE) -> 0.246106885 | U42: =IF(INDEX('Wind Capacity Factor'!$A$6:$B$258,MATCH('Country Parameters'!B42,'Wind Capacity Factor'!$B$6:$B$258,0),1)="*","*","") -> *
B43: Congo | C43: Republic of the Congo | D43: CF | E43: CG | F43: COG | G43: 178 | H43: -1 | I43: 15 | J43: Africa | K43: 720.023585 | L43: 974.5395 | M43: 1058.4444 | N43: 584.1387 | O43: 229.9598 | P43: 720.023585 | Q43: 4.86 | R43: 0.1640924929 | S43: =IF(ISNUMBER(MATCH(B43,'Grid EFs'!$B$4:$B$157,0)),"","*") ->  | T43: =VLOOKUP(B43,'Wind Capacity Factor'!$B$6:$L$276,8,FALSE) -> 0.246106885 | U43: =IF(INDEX('Wind Capacity Factor'!$A$6:$B$258,MATCH('Country Parameters'!B43,'Wind Capacity Factor'!$B$6:$B$258,0),1)="*","*","") -> *
B44: Congo, Democratic Republic | C44: Democratic Republic of the Congo | D44: CG | E44: CD | F44: COD | G44: 180 | H44: 0 | I44: 25 | J44: Africa | K44: 720.023585 | L44: 974.5395 | M44: 1058.1667 | N44: 573.2069 | O44: 2.8838 | P44: 720.023585 | Q44: 4.8 | R44: 0.05498898861 | S44: =IF(ISNUMBER(MATCH(B44,'Grid EFs'!$B$4:$B$157,0)),"","*") ->  | T44: =VLOOKUP(B44,'Wind Capacity Factor'!$B$6:$L$276,8,FALSE) -> 0.246106885 | U44: =IF(INDEX('Wind Capacity Factor'!$A$6:$B$258,MATCH('Country Parameters'!B44,'Wind Capacity Factor'!$B$6:$B$258,0),1)="*","*","") -> *
B45: Costa Rica | C45: Republic of Costa Rica | D45: CS | E45: CR | F45: CRI | G45: 188 | H45: 10 | I45: -84 | J45: North America | K45: 280.5230769 | L45: 1240.488 | M45: 666.3482 | N45: 502.8366 | O45: 54.3557 | P45: 280.5230769 | Q45: 4.15 | R45: 0.07217607684 | S45: =IF(ISNUMBER(MATCH(B45,'Grid EFs'!$B$4:$B$157,0)),"","*") -> * | T45: =VLOOKUP(B45,'Wind Capacity Factor'!$B$6:$L$276,8,FALSE) -> 0.4067069676 | U45: =IF(INDEX('Wind Capacity Factor'!$A$6:$B$258,MATCH('Country Parameters'!B45,'Wind Capacity Factor'!$B$6:$B$258,0),1)="*","*","") -> 
B46: Côte d'Ivoire | C46: Republic of Côte d'Ivoire | D46: IV | E46: CI | F46: CIV | G46: 384 | H46: 8 | I46: -5 | J46: Africa | K46: 634.45 | L46: 974.5395 | M46: 928.7009 | N46: 642.9379 | O46: 490.3806 | P46: 634.45 | Q46: 5.1 | R46: 0.09790035425 | S46: =IF(ISNUMBER(MATCH(B46,'Grid EFs'!$B$4:$B$157,0)),"","*") ->  | T46: =VLOOKUP(B46,'Wind Capacity Factor'!$B$6:$L$276,8,FALSE) -> 0.246106885 | U46: =IF(INDEX('Wind Capacity Factor'!$A$6:$B$258,MATCH('Country Parameters'!B46,'Wind Capacity Factor'!$B$6:$B$258,0),1)="*","*","") -> *
B47: Croatia | C47: Republic of Croatia | D47: HR | E47: HR | F47: HRV | G47: 191 | H47: 45.1667 | I47: 15.5 | J47: Europe | K47: 311.063 | L47: 868.7399 | M47: 638.5863 | N47: 365.6484 | O47: 311.063 | P47: N/A | Q47: 3.54 | R47: 0.08775678566 | S47: =IF(ISNUMBER(MATCH(B47,'Grid EFs'!$B$4:$B$157,0)),"","*") ->  | T47: =VLOOKUP(B47,'Wind Capacity Factor'!$B$6:$L$276,8,FALSE) -> 0.2086504313 | U47: =IF(INDEX('Wind Capacity Factor'!$A$6:$B$258,MATCH('Country Parameters'!B47,'Wind Capacity Factor'!$B$6:$B$258,0),1)="*","*","") -> 
B48: Cuba | C48: Republic of Cuba | D48: CU | E48: CU | F48: CUB | G48: 192 | H48: 21.5 | I48: -80 | J48: North America | K48: 873.5 | L48: 1240.488 | M48: 989.4932 | N48: 502.2323 | O48: 897.2557 | P48: 873.5 | Q48: 5.05 | R48: 0.08729144176 | S48: =IF(ISNUMBER(MATCH(B48,'Grid EFs'!$B$4:$B$157,0)),"","*") -> * | T48: =VLOOKUP(B48,'Wind Capacity Factor'!$B$6:$L$276,8,FALSE) -> 0.1658666042 | U48: =IF(INDEX('Wind Capacity Factor'!$A$6:$B$258,MATCH('Country Parameters'!B48,'Wind Capacity Factor'!$B$6:$B$258,0),1)="*","*","") -> 
B49: Cyprus | C49: Republic of Cyprus | D49: CY | E49: CY | F49: CYP | G49: 196 | H49: 35 | I49: 33 | J49: Europe | K49: 798.22 | L49: 919.0507 | M49: 768.1473 | N49: 527.4198 | O49: 726.2957 | P49: 798.22 | Q49: 5.19 | R49: 0.03401495746 | S49: =IF(ISNUMBER(MATCH(B49,'Grid EFs'!$B$4:$B$157,0)),"","*") ->  | T49: =VLOOKUP(B49,'Wind Capacity Factor'!$B$6:$L$276,8,FALSE) -> 0.1436647718 | U49: =IF(INDEX('Wind Capacity Factor'!$A$6:$B$258,MATCH('Country Parameters'!B49,'Wind Capacity Factor'!$B$6:$B$258,0),1)="*","*","") -> 
B50: Czech Republic | C50: Czech Republic | D50: EZ | E50: CZ | F50: CZE | G50: 203 | H50: 49.75 | I50: 15.5 | J50: Europe | K50: 551.8495 | L50: 1008.5516 | M50: 925.9844 | N50: 419.2575 | O50: 551.8495 | P50: N/A | Q50: 2.84 | R50: 0.04579332385 | S50: =IF(ISNUMBER(MATCH(B50,'Grid EFs'!$B$4:$B$157,0)),"","*") ->  | T50: =VLOOKUP(B50,'Wind Capacity Factor'!$B$6:$L$276,8,FALSE) -> 0.1826484018 | U50: =IF(INDEX('Wind Capacity Factor'!$A$6:$B$258,MATCH('Country Parameters'!B50,'Wind Capacity Factor'!$B$6:$B$258,0),1)="*","*","") -> 
B51: Denmark | C51: Kingdom of Denmark | D51: DA | E51: DK | F51: DNK | G51: 208 | H51: 56 | I51: 10 | J51: Europe | K51: 257.2642 | L51: 579.9076 | M51: 602.4329 | N51: 270.1276 | O51: 257.2642 | P51: N/A | Q51: 2.91 | R51: 0.05570721059 | S51: =IF(ISNUMBER(MATCH(B51,'Grid EFs'!$B$4:$B$157,0)),"","*") ->  | T51: =VLOOKUP(B51,'Wind Capacity Factor'!$B$6:$L$276,8,FALSE) -> 0.2816853506 | U51: =IF(INDEX('Wind Capacity Factor'!$A$6:$B$258,MATCH('Country Parameters'!B51,'Wind Capacity Factor'!$B$6:$B$258,0),1)="*","*","") -> 
B52: Djibouti | C52: Republic of Djibouti | D52: DJ | E52: DJ | F52: DJI | G52: 262 | H52: 11.5 | I52: 43 | J52: Africa | K52: 720.023585 | L52: 974.5395 | M52: 833.9727 | N52: 456.774 | O52: 597.6623 | P52: 720.023585 | Q52: 6.05 | R52: 0.07571494693 | S52: =IF(ISNUMBER(MATCH(B52,'Grid EFs'!$B$4:$B$157,0)),"","*") ->  | T52: =VLOOKUP(B52,'Wind Capacity Factor'!$B$6:$L$276,8,FALSE) -> 0.246106885 | U52: =IF(INDEX('Wind Capacity Factor'!$A$6:$B$258,MATCH('Country Parameters'!B52,'Wind Capacity Factor'!$B$6:$B$258,0),1)="*","*","") -> *
B53: Dominica | C53: Commonwealth of Dominica | D53: DO | E53: DM | F53: DMA | G53: 212 | H53: 15.4167 | I53: -61.3333 | J53: North America | K53: 472.4409815 | L53: 1240.488 | M53: 671.3559 | N53: 502.8366 | O53: 200.8047 | P53: 472.4409815 | Q53: 5.97 | R53: 0.05767936475 | S53: =IF(ISNUMBER(MATCH(B53,'Grid EFs'!$B$4:$B$157,0)),"","*") -> * | T53: =VLOOKUP(B53,'Wind Capacity Factor'!$B$6:$L$276,8,FALSE) -> 0.2363786168 | U53: =IF(INDEX('Wind Capacity Factor'!$A$6:$B$258,MATCH('Country Parameters'!B53,'Wind Capacity Factor'!$B$6:$B$258,0),1)="*","*","") -> *
B54: Dominican Republic | C54: Dominican Republic | D54: DR | E54: DO | F54: DOM | G54: 214 | H54: 19 | I54: -70.6667 | J54: North America | K54: 637.86 | L54: 953.6987 | M54: 616.9241 | N54: 458.2333 | O54: 555.2511 | P54: 637.86 | Q54: 5.1 | R54: 0.07781567069 | S54: =IF(ISNUMBER(MATCH(B54,'Grid EFs'!$B$4:$B$157,0)),"","*") -> * | T54: =VLOOKUP(B54,'Wind Capacity Factor'!$B$6:$L$276,8,FALSE) -> 0.3493842535 | U54: =IF(INDEX('Wind Capacity Factor'!$A$6:$B$258,MATCH('Country Parameters'!B54,'Wind Capacity Factor'!$B$6:$B$258,0),1)="*","*","") -> 
B55: Ecuador | C55: Republic of Ecuador | D55: EC | E55: EC | F55: ECU | G55: 218 | H55: -2 | I55: -77.5 | J55: South America | K55: 566.7796296 | L55: 1240.488 | M55: 752.9636 | N55: 490.9927 | O55: 313.0207 | P55: 566.7796296 | Q55: 3.75 | R55: 0.08744771585 | S55: =IF(ISNUMBER(MATCH(B55,'Grid EFs'!$B$4:$B$157,0)),"","*") -> * | T55: =VLOOKUP(B55,'Wind Capacity Factor'!$B$6:$L$276,8,FALSE) -> 0.2363786168 | U55: =IF(INDEX('Wind Capacity Factor'!$A$6:$B$258,MATCH('Country Parameters'!B55,'Wind Capacity Factor'!$B$6:$B$258,0),1)="*","*","") -> *
B56: Egypt | C56: Arab Republic of Egypt | D56: EG | E56: EG | F56: EGY | G56: 818 | H56: 27 | I56: 30 | J56: Africa | K56: 532.7666667 | L56: 974.5395 | M56: 834.9802 | N56: 418.2891 | O56: 443.76 | P56: 532.7666667 | Q56: 6.05 | R56: 0.07040063898 | S56: =IF(ISNUMBER(MATCH(B56,'Grid EFs'!$B$4:$B$157,0)),"","*") ->  | T56: =VLOOKUP(B56,'Wind Capacity Factor'!$B$6:$L$276,8,FALSE) -> 0.2615193026 | U56: =IF(INDEX('Wind Capacity Factor'!$A$6:$B$258,MATCH('Country Parameters'!B56,'Wind Capacity Factor'!$B$6:$B$258,0),1)="*","*","") -> 
B57: El Salvador | C57: Republic of El Salvador | D57: ES | E57: SV | F57: SLV | G57: 222 | H57: 13.8333 | I57: -88.9167 | J57: North America | K57: 678.4142857 | L57: 1240.488 | M57: 662.9535 | N57: 502.8366 | O57: 238.3513 | P57: 678.4142857 | Q57: 5.28 | R57: 0.07469299447 | S57: =IF(ISNUMBER(MATCH(B57,'Grid EFs'!$B$4:$B$157,0)),"","*") -> * | T57: =VLOOKUP(B57,'Wind Capacity Factor'!$B$6:$L$276,8,FALSE) -> 0.2363786168 | U57: =IF(INDEX('Wind Capacity Factor'!$A$6:$B$258,MATCH('Country Parameters'!B57,'Wind Capacity Factor'!$B$6:$B$258,0),1)="*","*","") -> *
B58: Equatorial Guinea | C58: Republic of Equatorial Guinea | D58: EK | E58: GQ | F58: GNQ | G58: 226 | H58: 2 | I58: 10 | J58: Africa | K58: 720.023585 | L58: 974.5395 | M58: 833.9727 | N58: 456.774 | O58: 597.6623 | P58: 720.023585 | Q58: 4.35 | R58: 0.07571494693 | S58: =IF(ISNUMBER(MATCH(B58,'Grid EFs'!$B$4:$B$157,0)),"","*") ->  | T58: =VLOOKUP(B58,'Wind Capacity Factor'!$B$6:$L$276,8,FALSE) -> 0.246106885 | U58: =IF(INDEX('Wind Capacity Factor'!$A$6:$B$258,MATCH('Country Parameters'!B58,'Wind Capacity Factor'!$B$6:$B$258,0),1)="*","*","") -> *
B59: Eritrea | C59: State of Eritrea | D59: ER | E59: ER | F59: ERI | G59: 232 | H59: 15 | I59: 39 | J59: Africa | K59: 720.023585 | L59: 974.5395 | M59: 854.098 | N59: 456.774 | O59: 849.3398 | P59: 720.023585 | Q59: 5.48 | R59: 0.0832059099 | S59: =IF(ISNUMBER(MATCH(B59,'Grid EFs'!$B$4:$B$157,0)),"","*") ->  | T59: =VLOOKUP(B59,'Wind Capacity Factor'!$B$6:$L$276,8,FALSE) -> 0.246106885 | U59: =IF(INDEX('Wind Capacity Factor'!$A$6:$B$258,MATCH('Country Parameters'!B59,'Wind Capacity Factor'!$B$6:$B$258,0),1)="*","*","") -> *
B60: Estonia | C60: Republic of Estonia | D60: EN | E60: EE | F60: EST | G60: 233 | H60: 59 | I60: 26 | J60: Europe | K60: 911.9931 | L60: 1050.2034 | M60: 840.8053 | N60: 240.0607 | O60: 911.9931 | P60: N/A | Q60: 2.82 | R60: 0.0617412153 | S60: =IF(ISNUMBER(MATCH(B60,'Grid EFs'!$B$4:$B$157,0)),"","*") ->  | T60: =VLOOKUP(B60,'Wind Capacity Factor'!$B$6:$L$276,8,FALSE) -> 0.1841761301 | U60: =IF(INDEX('Wind Capacity Factor'!$A$6:$B$258,MATCH('Country Parameters'!B60,'Wind Capacity Factor'!$B$6:$B$258,0),1)="*","*","") -> 
B61: Ethiopia | C61: Federal Democratic Republic of Ethiopia | D61: ET | E61: ET | F61: ETH | G61: 231 | H61: 8 | I61: 38 | J61: Africa | K61: 0.034615 | L61: 974.5395 | M61: 1111.275 | N61: 456.774 | O61: 6.6345 | P61: 0.034615 | Q61: 5.81 | R61: 0.09073761218 | S61: =IF(ISNUMBER(MATCH(B61,'Grid EFs'!$B$4:$B$157,0)),"","*") ->  | T61: =VLOOKUP(B61,'Wind Capacity Factor'!$B$6:$L$276,8,FALSE) -> 0.246106885 | U61: =IF(INDEX('Wind Capacity Factor'!$A$6:$B$258,MATCH('Country Parameters'!B61,'Wind Capacity Factor'!$B$6:$B$258,0),1)="*","*","") -> *
B62: Fiji | C62: Republic of Fiji | D62: FJ | E62: FJ | F62: FJI | G62: 242 | H62: -18 | I62: 175 | J62: Oceana | K62: 596.5 | L62: 1144.2709 | M62: 843.0648 | N62: 451.9748 | O62: 736.1338 | P62: 596.5 | Q62: 5.47 | R62: 0.05200178566 | S62: =IF(ISNUMBER(MATCH(B62,'Grid EFs'!$B$4:$B$157,0)),"","*") ->  | T62: =VLOOKUP(B62,'Wind Capacity Factor'!$B$6:$L$276,8,FALSE) -> 0.2283105023 | U62: =IF(INDEX('Wind Capacity Factor'!$A$6:$B$258,MATCH('Country Parameters'!B62,'Wind Capacity Factor'!$B$6:$B$258,0),1)="*","*","") -> 
B63: Finland | C63: Republic of Finland | D63: FI | E63: FI | F63: FIN | G63: 246 | H63: 64 | I63: 26 | J63: Europe | K63: 134.1499 | L63: 661.4776 | M63: 570.2242 | N63: 241.481 | O63: 134.1499 | P63: N/A | Q63: 2.48 | R63: 0.03487435012 | S63: =IF(ISNUMBER(MATCH(B63,'Grid EFs'!$B$4:$B$157,0)),"","*") ->  | T63: =VLOOKUP(B63,'Wind Capacity Factor'!$B$6:$L$276,8,FALSE) -> 0.1958079655 | U63: =IF(INDEX('Wind Capacity Factor'!$A$6:$B$258,MATCH('Country Parameters'!B63,'Wind Capacity Factor'!$B$6:$B$258,0),1)="*","*","") -> 
B64: France | C64: French Republic | D64: FR | E64: FR | F64: FRA | G64: 250 | H64: 46 | I64: 2 | J64: Europe | K64: 69.2542 | L64: 1046.1799 | M64: 623.3133 | N64: 457.6925 | O64: 69.2542 | P64: N/A | Q64: 3.34 | R64: 0.05538464918 | S64: =IF(ISNUMBER(MATCH(B64,'Grid EFs'!$B$4:$B$157,0)),"","*") ->  | T64: =VLOOKUP(B64,'Wind Capacity Factor'!$B$6:$L$276,8,FALSE) -> 0.2239996395 | U64: =IF(INDEX('Wind Capacity Factor'!$A$6:$B$258,MATCH('Country Parameters'!B64,'Wind Capacity Factor'!$B$6:$B$258,0),1)="*","*","") -> 
B65: Gabon | C65: Gabonese Republic | D65: GB | E65: GA | F65: GAB | G65: 266 | H65: -1 | I65: 11.75 | J65: Africa | K65: 360.3 | L65: 974.5395 | M65: 714.5831 | N65: 763.5163 | O65: 436.1256 | P65: 360.3 | Q65: 4.55 | R65: 0.09526458562 | S65: =IF(ISNUMBER(MATCH(B65,'Grid EFs'!$B$4:$B$157,0)),"","*") ->  | T65: =VLOOKUP(B65,'Wind Capacity Factor'!$B$6:$L$276,8,FALSE) -> 0.246106885 | U65: =IF(INDEX('Wind Capacity Factor'!$A$6:$B$258,MATCH('Country Parameters'!B65,'Wind Capacity Factor'!$B$6:$B$258,0),1)="*","*","") -> *
B66: Gambia, The | C66: Republic of The Gambia | D66: GA | E66: GM | F66: GMB | G66: 270 | H66: 13.4667 | I66: -16.5667 | J66: Africa | K66: 720.023585 | L66: 974.5395 | M66: 833.9727 | N66: 456.774 | O66: 597.6623 | P66: 720.023585 | Q66: 5.75 | R66: 0.07571494693 | S66: =IF(ISNUMBER(MATCH(B66,'Grid EFs'!$B$4:$B$157,0)),"","*") ->  | T66: =VLOOKUP(B66,'Wind Capacity Factor'!$B$6:$L$276,8,FALSE) -> 0.246106885 | U66: =IF(INDEX('Wind Capacity Factor'!$A$6:$B$258,MATCH('Country Parameters'!B66,'Wind Capacity Factor'!$B$6:$B$258,0),1)="*","*","") -> *
B67: Georgia | C67: Georgia | D67: GG | E67: GE | F67: GEO | G67: 268 | H67: 42 | I67: 43.5 | J67: Asia | K67: 402.466 | L67: 919.0507 | M67: 785.5197 | N67: 458.9167 | O67: 117.0131 | P67: 402.466 | Q67: 3.77 | R67: 0.07321278245 | S67: =IF(ISNUMBER(MATCH(B67,'Grid EFs'!$B$4:$B$157,0)),"","*") ->  | T67: =VLOOKUP(B67,'Wind Capacity Factor'!$B$6:$L$276,8,FALSE) -> 0.2218523463 | U67: =IF(INDEX('Wind Capacity Factor'!$A$6:$B$258,MATCH('Country Parameters'!B67,'Wind Capacity Factor'!$B$6:$B$258,0),1)="*","*","") -> *
B68: Germany | C68: Federal Republic of Germany | D68: GM | E68: DE | F68: DEU | G68: 276 | H68: 51 | I68: 9 | J68: Europe | K68: 475.4081 | L68: 894.913 | M68: 606.7778 | N68: 331.2401 | O68: 475.4081 | P68: N/A | Q68: 2.7 | R68: 0.03665258849 | S68: =IF(ISNUMBER(MATCH(B68,'Grid EFs'!$B$4:$B$157,0)),"","*") ->  | T68: =VLOOKUP(B68,'Wind Capacity Factor'!$B$6:$L$276,8,FALSE) -> 0.1847116901 | U68: =IF(INDEX('Wind Capacity Factor'!$A$6:$B$258,MATCH('Country Parameters'!B68,'Wind Capacity Factor'!$B$6:$B$258,0),1)="*","*","") -> 
B69: Ghana | C69: Republic of Ghana | D69: GH | E69: GH | F69: GHA | G69: 288 | H69: 8 | I69: -2 | J69: Africa | K69: =IF(P69="N/A",O69,P69) -> 478.515 | L69: 974.5395 | M69: 869.6315 | N69: 566.9185 | O69: 249.4449 | P69: 478.515 | Q69: 5.28 | R69: 0.1012189047 | S69: =IF(ISNUMBER(MATCH(B69,'Grid EFs'!$B$4:$B$157,0)),"","*") ->  | T69: =VLOOKUP(B69,'Wind Capacity Factor'!$B$6:$L$276,8,FALSE) -> 0.246106885 | U69: =IF(INDEX('Wind Capacity Factor'!$A$6:$B$258,MATCH('Country Parameters'!B69,'Wind Capacity Factor'!$B$6:$B$258,0),1)="*","*","") -> *
B70: Greece | C70: Hellenic Republic | D70: GR | E70: GR | F70: GRC | G70: 300 | H70: 39 | I70: 22 | J70: Europe | K70: 684.6103 | L70: 1024.2321 | M70: 737.7259 | N70: 387.5806 | O70: 684.6103 | P70: N/A | Q70: 4.16 | R70: 0.04727855579 | S70: =IF(ISNUMBER(MATCH(B70,'Grid EFs'!$B$4:$B$157,0)),"","*") ->  | T70: =VLOOKUP(B70,'Wind Capacity Factor'!$B$6:$L$276,8,FALSE) -> 0.251285144 | U70: =IF(INDEX('Wind Capacity Factor'!$A$6:$B$258,MATCH('Country Parameters'!B70,'Wind Capacity Factor'!$B$6:$B$258,0),1)="*","*","") -> 
B71: Grenada | C71: Grenada | D71: GJ | E71: GD | F71: GRD | G71: 308 | H71: 12.1167 | I71: -61.6667 | J71: North America | K71: 472.4409815 | L71: 1240.488 | M71: 671.3559 | N71: 502.8366 | O71: 200.8047 | P71: 472.4409815 | Q71: 6.21 | R71: 0.05767936475 | S71: =IF(ISNUMBER(MATCH(B71,'Grid EFs'!$B$4:$B$157,0)),"","*") -> * | T71: =VLOOKUP(B71,'Wind Capacity Factor'!$B$6:$L$276,8,FALSE) -> 0.2363786168 | U71: =IF(INDEX('Wind Capacity Factor'!$A$6:$B$258,MATCH('Country Parameters'!B71,'Wind Capacity Factor'!$B$6:$B$258,0),1)="*","*","") -> *
B72: Guatemala | C72: Republic of Guatemala | D72: GT | E72: GT | F72: GTM | G72: 320 | H72: 15.5 | I72: -90.25 | J72: North America | K72: 589.3866667 | L72: 960.2254 | M72: 640.8159 | N72: 502.8366 | O72: 254.2343 | P72: 589.3866667 | Q72: 4.87 | R72: 0.08260653269 | S72: =IF(ISNUMBER(MATCH(B72,'Grid EFs'!$B$4:$B$157,0)),"","*") -> * | T72: =VLOOKUP(B72,'Wind Capacity Factor'!$B$6:$L$276,8,FALSE) -> 0.2363786168 | U72: =IF(INDEX('Wind Capacity Factor'!$A$6:$B$258,MATCH('Country Parameters'!B72,'Wind Capacity Factor'!$B$6:$B$258,0),1)="*","*","") -> *
B73: Guinea | C73: Republic of Guinea | D73: GV | E73: GN | F73: GIN | G73: 324 | H73: 11 | I73: -10 | J73: Africa | K73: 720.023585 | L73: 974.5395 | M73: 833.9727 | N73: 456.774 | O73: 597.6623 | P73: 720.023585 | Q73: 5.67 | R73: 0.07571494693 | S73: =IF(ISNUMBER(MATCH(B73,'Grid EFs'!$B$4:$B$157,0)),"","*") ->  | T73: =VLOOKUP(B73,'Wind Capacity Factor'!$B$6:$L$276,8,FALSE) -> 0.246106885 | U73: =IF(INDEX('Wind Capacity Factor'!$A$6:$B$258,MATCH('Country Parameters'!B73,'Wind Capacity Factor'!$B$6:$B$258,0),1)="*","*","") -> *
B74: Guinea-Bissau | C74: Republic of Guinea-Bissau | D74: PU | E74: GW | F74: GNB | G74: 624 | H74: 12 | I74: -15 | J74: Africa | K74: 720.023585 | L74: 974.5395 | M74: 833.9727 | N74: 456.774 | O74: 597.6623 | P74: 720.023585 | Q74: 5.66 | R74: 0.07571494693 | S74: =IF(ISNUMBER(MATCH(B74,'Grid EFs'!$B$4:$B$157,0)),"","*") ->  | T74: =VLOOKUP(B74,'Wind Capacity Factor'!$B$6:$L$276,8,FALSE) -> 0.246106885 | U74: =IF(INDEX('Wind Capacity Factor'!$A$6:$B$258,MATCH('Country Parameters'!B74,'Wind Capacity Factor'!$B$6:$B$258,0),1)="*","*","") -> *
B75: Guyana | C75: Co-operative Republic of Guyana | D75: GY | E75: GY | F75: GUY | G75: 328 | H75: 5 | I75: -59 | J75: South America | K75: 948.3 | L75: 1240.488 | M75: 671.3559 | N75: 502.8366 | O75: 200.8047 | P75: 948.3 | Q75: 4.89 | R75: 0.08380835472 | S75: =IF(ISNUMBER(MATCH(B75,'Grid EFs'!$B$4:$B$157,0)),"","*") -> * | T75: =VLOOKUP(B75,'Wind Capacity Factor'!$B$6:$L$276,8,FALSE) -> 0.2363786168 | U75: =IF(INDEX('Wind Capacity Factor'!$A$6:$B$258,MATCH('Country Parameters'!B75,'Wind Capacity Factor'!$B$6:$B$258,0),1)="*","*","") -> *
B76: Haiti | C76: Republic of Haiti | D76: HA | E76: HT | F76: HTI | G76: 332 | H76: 19 | I76: -72.4167 | J76: North America | K76: 472.4409815 | L76: 1240.488 | M76: 687.301 | N76: 502.8366 | O76: 591.6765 | P76: 472.4409815 | Q76: 5.47 | R76: 0.1699705689 | S76: =IF(ISNUMBER(MATCH(B76,'Grid EFs'!$B$4:$B$157,0)),"","*") -> * | T76: =VLOOKUP(B76,'Wind Capacity Factor'!$B$6:$L$276,8,FALSE) -> 0.2363786168 | U76: =IF(INDEX('Wind Capacity Factor'!$A$6:$B$258,MATCH('Country Parameters'!B76,'Wind Capacity Factor'!$B$6:$B$258,0),1)="*","*","") -> *
B77: Holy See | C77: Holy See | D77: VT | E77: VA | F77: VAT | G77: 336 | H77: 41.9 | I77: 12.45 | J77: Europe | K77: 331.064 | L77: 917.4832 | M77: 690.5793 | N77: 359.0744 | O77: 331.064 | P77: N/A | Q77: 4.08 | R77: 0.05810932301 | S77: =IF(ISNUMBER(MATCH(B77,'Grid EFs'!$B$4:$B$157,0)),"","*") ->  | T77: =VLOOKUP(B77,'Wind Capacity Factor'!$B$6:$L$276,8,FALSE) -> 0.2218523463 | U77: =IF(INDEX('Wind Capacity Factor'!$A$6:$B$258,MATCH('Country Parameters'!B77,'Wind Capacity Factor'!$B$6:$B$258,0),1)="*","*","") -> *
B78: Honduras | C78: Republic of Honduras | D78: HO | E78: HN | F78: HND | G78: 340 | H78: 15 | I78: -86.5 | J78: North America | K78: 659.225 | L78: 927.0775 | M78: 637.2848 | N78: 502.8366 | O78: 363.4748 | P78: 659.225 | Q78: 5.05 | R78: 0.1099996132 | S78: =IF(ISNUMBER(MATCH(B78,'Grid EFs'!$B$4:$B$157,0)),"","*") -> * | T78: =VLOOKUP(B78,'Wind Capacity Factor'!$B$6:$L$276,8,FALSE) -> 0.3782791655 | U78: =IF(INDEX('Wind Capacity Factor'!$A$6:$B$258,MATCH('Country Parameters'!B78,'Wind Capacity Factor'!$B$6:$B$258,0),1)="*","*","") -> 
B79: Hungary | C79: Hungary | D79: HU | E79: HU | F79: HUN | G79: 348 | H79: 47 | I79: 20 | J79: Europe | K79: 314.0124 | L79: 1085.4237 | M79: 851.2849 | N79: 370.639 | O79: 314.0124 | P79: N/A | Q79: 3.42 | R79: 0.07276208818 | S79: =IF(ISNUMBER(MATCH(B79,'Grid EFs'!$B$4:$B$157,0)),"","*") ->  | T79: =VLOOKUP(B79,'Wind Capacity Factor'!$B$6:$L$276,8,FALSE) -> 0.2704601335 | U79: =IF(INDEX('Wind Capacity Factor'!$A$6:$B$258,MATCH('Country Parameters'!B79,'Wind Capacity Factor'!$B$6:$B$258,0),1)="*","*","") -> 
B80: Iceland | C80: Republic of Iceland | D80: IC | E80: IS | F80: ISL | G80: 352 | H80: 65 | I80: -18 | J80: Europe | K80: 0.1779 | L80: 917.4832 | M80: 1040.6667 | N80: 359.0744 | O80: 0.1779 | P80: N/A | Q80: 2 | R80: 0.02828181789 | S80: =IF(ISNUMBER(MATCH(B80,'Grid EFs'!$B$4:$B$157,0)),"","*") ->  | T80: =VLOOKUP(B80,'Wind Capacity Factor'!$B$6:$L$276,8,FALSE) -> 0.2218523463 | U80: =IF(INDEX('Wind Capacity Factor'!$A$6:$B$258,MATCH('Country Parameters'!B80,'Wind Capacity Factor'!$B$6:$B$258,0),1)="*","*","") -> *
B81: India | C81: Republic of India | D81: IN | E81: IN | F81: IND | G81: 356 | H81: 20 | I81: 77 | J81: Asia | K81: 905.005925 | L81: 1218.9636 | M81: 1098.298 | N81: 440.042 | O81: 926.098 | P81: 905.005925 | Q81: 5.23 | R81: 0.09493648464 | S81: =IF(ISNUMBER(MATCH(B81,'Grid EFs'!$B$4:$B$157,0)),"","*") ->  | T81: =VLOOKUP(B81,'Wind Capacity Factor'!$B$6:$L$276,8,FALSE) -> 0.1752454453 | U81: =IF(INDEX('Wind Capacity Factor'!$A$6:$B$258,MATCH('Country Parameters'!B81,'Wind Capacity Factor'!$B$6:$B$258,0),1)="*","*","") -> 
B82: Indonesia | C82: Republic of Indonesia | D82: ID | E82: ID | F82: IDN | G82: 360 | H82: -5 | I82: 120 | J82: Asia | K82: 777.7147541 | L82: 1111.7001 | M82: 869.3255 | N82: 529.6983 | O82: 809.1877 | P82: 777.7147541 | Q82: 5.05 | R82: 0.06754843077 | S82: =IF(ISNUMBER(MATCH(B82,'Grid EFs'!$B$4:$B$157,0)),"","*") ->  | T82: =VLOOKUP(B82,'Wind Capacity Factor'!$B$6:$L$276,8,FALSE) -> 0.4076973255 | U82: =IF(INDEX('Wind Capacity Factor'!$A$6:$B$258,MATCH('Country Parameters'!B82,'Wind Capacity Factor'!$B$6:$B$258,0),1)="*","*","") -> 
B83: Iran | C83: Islamic Republic of Iran | D83: IR | E83: IR | F83: IRN | G83: 364 | H83: 32 | I83: 53 | J83: Asia | K83: 672.77 | L83: 1144.2709 | M83: 905.7585 | N83: 473.0845 | O83: 568.679 | P83: 672.77 | Q83: 5.34 | R83: 0.08531177295 | S83: =IF(ISNUMBER(MATCH(B83,'Grid EFs'!$B$4:$B$157,0)),"","*") -> * | T83: =VLOOKUP(B83,'Wind Capacity Factor'!$B$6:$L$276,8,FALSE) -> 0.2363013699 | U83: =IF(INDEX('Wind Capacity Factor'!$A$6:$B$258,MATCH('Country Parameters'!B83,'Wind Capacity Factor'!$B$6:$B$258,0),1)="*","*","") -> 
B84: Iraq | C84: Republic of Iraq | D84: IZ | E84: IQ | F84: IRQ | G84: 368 | H84: 33 | I84: 44 | J84: Asia | K84: 679.1801887 | L84: 1144.2709 | M84: 1945.5879 | N84: 330.7998 | O84: 907.3192 | P84: 679.1801887 | Q84: 5.02 | R84: 0.1276612836 | S84: =IF(ISNUMBER(MATCH(B84,'Grid EFs'!$B$4:$B$157,0)),"","*") -> * | T84: =VLOOKUP(B84,'Wind Capacity Factor'!$B$6:$L$276,8,FALSE) -> 0.2271048199 | U84: =IF(INDEX('Wind Capacity Factor'!$A$6:$B$258,MATCH('Country Parameters'!B84,'Wind Capacity Factor'!$B$6:$B$258,0),1)="*","*","") -> *
B85: Ireland | C85: Ireland | D85: EI | E85: IE | F85: IRL | G85: 372 | H85: 53 | I85: -8 | J85: Europe | K85: 456.5836 | L85: 857.8432 | M85: 710.49 | N85: 385.3494 | O85: 456.5836 | P85: N/A | Q85: 2.42 | R85: 0.05989056166 | S85: =IF(ISNUMBER(MATCH(B85,'Grid EFs'!$B$4:$B$157,0)),"","*") ->  | T85: =VLOOKUP(B85,'Wind Capacity Factor'!$B$6:$L$276,8,FALSE) -> 0.261728163 | U85: =IF(INDEX('Wind Capacity Factor'!$A$6:$B$258,MATCH('Country Parameters'!B85,'Wind Capacity Factor'!$B$6:$B$258,0),1)="*","*","") -> 
B86: Israel | C86: State of Israel | D86: IS | E86: IL | F86: ISR | G86: 376 | H86: 31.5 | I86: 34.75 | J86: Asia | K86: 700.8126316 | L86: 851.5562 | M86: 869.5078 | N86: 364.5391 | O86: 766.6717 | P86: 700.8126316 | Q86: 5.19 | R86: 0.0293049932 | S86: =IF(ISNUMBER(MATCH(B86,'Grid EFs'!$B$4:$B$157,0)),"","*") ->  | T86: =VLOOKUP(B86,'Wind Capacity Factor'!$B$6:$L$276,8,FALSE) -> 0.1141552511 | U86: =IF(INDEX('Wind Capacity Factor'!$A$6:$B$258,MATCH('Country Parameters'!B86,'Wind Capacity Factor'!$B$6:$B$258,0),1)="*","*","") -> 
B87: Italy | C87: Italian Republic | D87: IT | E87: IT | F87: ITA | G87: 380 | H87: 42.8333 | I87: 12.8333 | J87: Europe | K87: 385.0408 | L87: 900.3957 | M87: 757.4991 | N87: 370.9352 | O87: 385.0408 | P87: N/A | Q87: 3.75 | R87: 0.05798570324 | S87: =IF(ISNUMBER(MATCH(B87,'Grid EFs'!$B$4:$B$157,0)),"","*") ->  | T87: =VLOOKUP(B87,'Wind Capacity Factor'!$B$6:$L$276,8,FALSE) -> 0.1889480805 | U87: =IF(INDEX('Wind Capacity Factor'!$A$6:$B$258,MATCH('Country Parameters'!B87,'Wind Capacity Factor'!$B$6:$B$258,0),1)="*","*","") -> 
B88: Jamaica | C88: Jamaica | D88: JM | E88: JM | F88: JAM | G88: 388 | H88: 18.25 | I88: -77.5 | J88: North America | K88: 783.2 | L88: 1240.488 | M88: 704.7283 | N88: 502.8366 | O88: 642.7741 | P88: 783.2 | Q88: 5.6 | R88: 0.1025743376 | S88: =IF(ISNUMBER(MATCH(B88,'Grid EFs'!$B$4:$B$157,0)),"","*") -> * | T88: =VLOOKUP(B88,'Wind Capacity Factor'!$B$6:$L$276,8,FALSE) -> 0.2560715277 | U88: =IF(INDEX('Wind Capacity Factor'!$A$6:$B$258,MATCH('Country Parameters'!B88,'Wind Capacity Factor'!$B$6:$B$258,0),1)="*","*","") -> 
B89: Japan | C89: Japan | D89: JA | E89: JP | F89: JPN | G89: 392 | H89: 36 | I89: 138 | J89: Asia | K89: 846.5339208 | L89: 908.6031 | M89: 613.7461 | N89: 437.642 | O89: 550.8838 | P89: 846.5339208 | Q89: 3.63 | R89: 0.04180480263 | S89: =IF(ISNUMBER(MATCH(B89,'Grid EFs'!$B$4:$B$157,0)),"","*") ->  | T89: =VLOOKUP(B89,'Wind Capacity Factor'!$B$6:$L$276,8,FALSE) -> 0.2112789231 | U89: =IF(INDEX('Wind Capacity Factor'!$A$6:$B$258,MATCH('Country Parameters'!B89,'Wind Capacity Factor'!$B$6:$B$258,0),1)="*","*","") -> 
B90: Jordan | C90: Hashemite Kingdom of Jordan | D90: JO | E90: JO | F90: JOR | G90: 400 | H90: 31 | I90: 36 | J90: Asia | K90: 575.2333333 | L90: 1144.2709 | M90: 670.1731 | N90: 499.3649 | O90: 635.6158 | P90: 575.2333333 | Q90: 5.34 | R90: 0.08424121787 | S90: =IF(ISNUMBER(MATCH(B90,'Grid EFs'!$B$4:$B$157,0)),"","*") -> * | T90: =VLOOKUP(B90,'Wind Capacity Factor'!$B$6:$L$276,8,FALSE) -> 0.2283105023 | U90: =IF(INDEX('Wind Capacity Factor'!$A$6:$B$258,MATCH('Country Parameters'!B90,'Wind Capacity Factor'!$B$6:$B$258,0),1)="*","*","") -> 
B91: Kazakhstan | C91: Republic of Kazakhstan | D91: KZ | E91: KZ | F91: KAZ | G91: 398 | H91: 48 | I91: 68 | J91: Asia | K91: 846.5339208 | L91: 491.5597 | M91: 301.5941 | N91: 573.9888 | O91: 460.8749 | P91: 846.5339208 | Q91: 3.83 | R91: 0.06441055863 | S91: =IF(ISNUMBER(MATCH(B91,'Grid EFs'!$B$4:$B$157,0)),"","*") ->  | T91: =VLOOKUP(B91,'Wind Capacity Factor'!$B$6:$L$276,8,FALSE) -> 0.1712328767 | U91: =IF(INDEX('Wind Capacity Factor'!$A$6:$B$258,MATCH('Country Parameters'!B91,'Wind Capacity Factor'!$B$6:$B$258,0),1)="*","*","") -> 
B92: Kenya | C92: Republic of Kenya | D92: KE | E92: KE | F92: KEN | G92: 404 | H92: 1 | I92: 38 | J92: Africa | K92: 582.5415385 | L92: 974.5395 | M92: 898.1282 | N92: 456.774 | O92: 223.1778 | P92: 582.5415385 | Q92: 6.08 | R92: 0.09011737384 | S92: =IF(ISNUMBER(MATCH(B92,'Grid EFs'!$B$4:$B$157,0)),"","*") ->  | T92: =VLOOKUP(B92,'Wind Capacity Factor'!$B$6:$L$276,8,FALSE) -> 0.3424657534 | U92: =IF(INDEX('Wind Capacity Factor'!$A$6:$B$258,MATCH('Country Parameters'!B92,'Wind Capacity Factor'!$B$6:$B$258,0),1)="*","*","") -> 
B93: Kiribati | C93: Republic of Kiribati | D93: KR | E93: KI | F93: KIR | G93: 296 | H93: 1.4167 | I93: 173 | J93: Oceana | K93: 736.1338 | L93: 1144.2709 | M93: 843.0648 | N93: 451.9748 | O93: 736.1338 | P93: N/A | Q93: 5.96 | R93: 0.05200178566 | S93: =IF(ISNUMBER(MATCH(B93,'Grid EFs'!$B$4:$B$157,0)),"","*") ->  | T93: =VLOOKUP(B93,'Wind Capacity Factor'!$B$6:$L$276,8,FALSE) -> 0.1850094619 | U93: =IF(INDEX('Wind Capacity Factor'!$A$6:$B$258,MATCH('Country Parameters'!B93,'Wind Capacity Factor'!$B$6:$B$258,0),1)="*","*","") -> *
B94: Korea, North | C94: Democratic People's Republic of Korea | D94: KN | E94: KP | F94: PRK | G94: 408 | H94: 40 | I94: 127 | J94: Asia | K94: 911.65 | L94: 1255.8557 | M94: 1380.2613 | N94: 451.9748 | O94: 378.0482 | P94: 911.65 | Q94: 4.03 | R94: 0.0876244973 | S94: =IF(ISNUMBER(MATCH(B94,'Grid EFs'!$B$4:$B$157,0)),"","*") ->  | T94: =VLOOKUP(B94,'Wind Capacity Factor'!$B$6:$L$276,8,FALSE) -> 0.1850094619 | U94: =IF(INDEX('Wind Capacity Factor'!$A$6:$B$258,MATCH('Country Parameters'!B94,'Wind Capacity Factor'!$B$6:$B$258,0),1)="*","*","") -> *
B95: Korea, South | C95: Republic of Korea | D95: KS | E95: KR | F95: KOR | G95: 410 | H95: 37 | I95: 127.5 | J95: Asia | K95: 625.37875 | L95: 924.706 | M95: 649.1121 | N95: 419.5862 | O95: 540.3365 | P95: 625.37875 | Q95: 3.88 | R95: 0.03231456339 | S95: =IF(ISNUMBER(MATCH(B95,'Grid EFs'!$B$4:$B$157,0)),"","*") ->  | T95: =VLOOKUP(B95,'Wind Capacity Factor'!$B$6:$L$276,8,FALSE) -> 0.2167295348 | U95: =IF(INDEX('Wind Capacity Factor'!$A$6:$B$258,MATCH('Country Parameters'!B95,'Wind Capacity Factor'!$B$6:$B$258,0),1)="*","*","") -> 
B96: Kosovo | C96: Republic of Kosovo | D96: KV | E96: RS | F96: XKX | H96: 42 | I96: 21 | J96: Europe | K96: 1026.3259 | L96: 1040.9362 | M96: 1110.4794 | N96: 527.4198 | O96: 1026.3259 | P96: N/A | Q96: 3.74 | R96: 0.08906937513 | S96: =IF(ISNUMBER(MATCH(B96,'Grid EFs'!$B$4:$B$157,0)),"","*") ->  | T96: =VLOOKUP(B96,'Wind Capacity Factor'!$B$6:$L$276,8,FALSE) -> 0.2218523463 | U96: =IF(INDEX('Wind Capacity Factor'!$A$6:$B$258,MATCH('Country Parameters'!B96,'Wind Capacity Factor'!$B$6:$B$258,0),1)="*","*","") -> *
B97: Kuwait | C97: State of Kuwait | D97: KU | E97: KW | F97: KWT | G97: 414 | H97: 29.3375 | I97: 47.6581 | J97: Asia | K97: 780 | L97: 1144.2709 | M97: 842.0952 | N97: 573.9241 | O97: 744.9706 | P97: 780 | Q97: 5.57 | R97: 0.08126723712 | S97: =IF(ISNUMBER(MATCH(B97,'Grid EFs'!$B$4:$B$157,0)),"","*") -> * | T97: =VLOOKUP(B97,'Wind Capacity Factor'!$B$6:$L$276,8,FALSE) -> 0.2271048199 | U97: =IF(INDEX('Wind Capacity Factor'!$A$6:$B$258,MATCH('Country Parameters'!B97,'Wind Capacity Factor'!$B$6:$B$258,0),1)="*","*","") -> *
B98: Kyrgyzstan | C98: Kyrgyz Republic | D98: KG | E98: KG | F98: KGZ | G98: 417 | H98: 41 | I98: 75 | J98: Asia | K98: 846.5339208 | L98: 443.4517 | M98: 936.1333 | N98: 448.2129 | O98: 34.7865 | P98: 846.5339208 | Q98: 4.4 | R98: 0.1015076463 | S98: =IF(ISNUMBER(MATCH(B98,'Grid EFs'!$B$4:$B$157,0)),"","*") ->  | T98: =VLOOKUP(B98,'Wind Capacity Factor'!$B$6:$L$276,8,FALSE) -> 0.2218523463 | U98: =IF(INDEX('Wind Capacity Factor'!$A$6:$B$258,MATCH('Country Parameters'!B98,'Wind Capacity Factor'!$B$6:$B$258,0),1)="*","*","") -> *
B99: Laos | C99: Lao People's Democratic Republic | D99: LA | E99: LA | F99: LAO | G99: 418 | H99: 18 | I99: 105 | J99: Asia | K99: 573.9019048 | L99: 1144.2709 | M99: 843.0648 | N99: 451.9748 | O99: 736.1338 | P99: 573.9019048 | Q99: 4.01 | R99: 0.05730004629 | S99: =IF(ISNUMBER(MATCH(B99,'Grid EFs'!$B$4:$B$157,0)),"","*") ->  | T99: =VLOOKUP(B99,'Wind Capacity Factor'!$B$6:$L$276,8,FALSE) -> 0.1850094619 | U99: =IF(INDEX('Wind Capacity Factor'!$A$6:$B$258,MATCH('Country Parameters'!B99,'Wind Capacity Factor'!$B$6:$B$258,0),1)="*","*","") -> *
B100: Latvia | C100: Republic of Latvia | D100: LG | E100: LV | F100: LVA | G100: 428 | H100: 57 | I100: 25 | J100: Europe | K100: 91.0837 | L100: 919.0507 | M100: 702.4696 | N100: 256.6483 | O100: 91.0837 | P100: N/A | Q100: 2.91 | R100: 0.07214345775 | S100: =IF(ISNUMBER(MATCH(B100,'Grid EFs'!$B$4:$B$157,0)),"","*") ->  | T100: =VLOOKUP(B100,'Wind Capacity Factor'!$B$6:$L$276,8,FALSE) -> 0.191377921 | U100: =IF(INDEX('Wind Capacity Factor'!$A$6:$B$258,MATCH('Country Parameters'!B100,'Wind Capacity Factor'!$B$6:$B$258,0),1)="*","*","") -> 
B101: Lebanon | C101: Lebanese Republic | D101: LE | E101: LB | F101: LBN | G101: 422 | H101: 33.8333 | I101: 35.8333 | J101: Asia | K101: 650 | L101: 1144.2709 | M101: 864.3483 | N101: 547.4264 | O101: 805.6407 | P101: 650 | Q101: 4.93 | R101: 0.07435458008 | S101: =IF(ISNUMBER(MATCH(B101,'Grid EFs'!$B$4:$B$157,0)),"","*") -> * | T101: =VLOOKUP(B101,'Wind Capacity Factor'!$B$6:$L$276,8,FALSE) -> 0.2271048199 | U101: =IF(INDEX('Wind Capacity Factor'!$A$6:$B$258,MATCH('Country Parameters'!B101,'Wind Capacity Factor'!$B$6:$B$258,0),1)="*","*","") -> *
B102: Lesotho | C102: Kingdom of Lesotho | D102: LT | E102: LS | F102: LSO | G102: 426 | H102: -29.5 | I102: 28.5 | J102: Africa | K102: 720.023585 | L102: 974.5395 | M102: 833.9727 | N102: 456.774 | O102: 597.6623 | P102: 720.023585 | Q102: 5.13 | R102: 0.07571494693 | S102: =IF(ISNUMBER(MATCH(B102,'Grid EFs'!$B$4:$B$157,0)),"","*") ->  | T102: =VLOOKUP(B102,'Wind Capacity Factor'!$B$6:$L$276,8,FALSE) -> 0.246106885 | U102: =IF(INDEX('Wind Capacity Factor'!$A$6:$B$258,MATCH('Country Parameters'!B102,'Wind Capacity Factor'!$B$6:$B$258,0),1)="*","*","") -> *
B103: Liberia | C103: Republic of Liberia | D103: LI | E103: LR | F103: LBR | G103: 430 | H103: 6.5 | I103: -9.5 | J103: Africa | K103: 720.023585 | L103: 974.5395 | M103: 833.9727 | N103: 456.774 | O103: 597.6623 | P103: 720.023585 | Q103: 4.99 | R103: 0.07571494693 | S103: =IF(ISNUMBER(MATCH(B103,'Grid EFs'!$B$4:$B$157,0)),"","*") ->  | T103: =VLOOKUP(B103,'Wind Capacity Factor'!$B$6:$L$276,8,FALSE) -> 0.246106885 | U103: =IF(INDEX('Wind Capacity Factor'!$A$6:$B$258,MATCH('Country Parameters'!B103,'Wind Capacity Factor'!$B$6:$B$258,0),1)="*","*","") -> *
B104: Libya | C104: Libya | D104: LY | E104: LY | F104: LBY | G104: 434 | H104: 25 | I104: 17 | J104: Africa | K104: 793.7 | L104: 974.5395 | M104: 858.2318 | N104: 383.4342 | O104: 568.6025 | P104: 793.7 | Q104: 5.89 | R104: 0.09450131579 | S104: =IF(ISNUMBER(MATCH(B104,'Grid EFs'!$B$4:$B$157,0)),"","*") ->  | T104: =VLOOKUP(B104,'Wind Capacity Factor'!$B$6:$L$276,8,FALSE) -> 0.246106885 | U104: =IF(INDEX('Wind Capacity Factor'!$A$6:$B$258,MATCH('Country Parameters'!B104,'Wind Capacity Factor'!$B$6:$B$258,0),1)="*","*","") -> *
B105: Liechtenstein | C105: Principality of Liechtenstein | D105: LS | E105: LI | F105: LIE | G105: 438 | H105: 47.1667 | I105: 9.5333 | J105: Europe | K105: 331.064 | L105: 917.4832 | M105: 690.5793 | N105: 359.0744 | O105: 331.064 | P105: N/A | Q105: 3.34 | R105: 0.05810932301 | S105: =IF(ISNUMBER(MATCH(B105,'Grid EFs'!$B$4:$B$157,0)),"","*") ->  | T105: =VLOOKUP(B105,'Wind Capacity Factor'!$B$6:$L$276,8,FALSE) -> 0.2218523463 | U105: =IF(INDEX('Wind Capacity Factor'!$A$6:$B$258,MATCH('Country Parameters'!B105,'Wind Capacity Factor'!$B$6:$B$258,0),1)="*","*","") -> *
B106: Lithuania | C106: Republic of Lithuania | D106: LH | E106: LT | F106: LTU | G106: 440 | H106: 56 | I106: 24 | J106: Europe | K106: 271.1924 | L106: 919.0507 | M106: 916.4777 | N106: 350.495 | O106: 271.1924 | P106: N/A | Q106: 2.87 | R106: 0.08696689702 | S106: =IF(ISNUMBER(MATCH(B106,'Grid EFs'!$B$4:$B$157,0)),"","*") ->  | T106: =VLOOKUP(B106,'Wind Capacity Factor'!$B$6:$L$276,8,FALSE) -> 0.2739726027 | U106: =IF(INDEX('Wind Capacity Factor'!$A$6:$B$258,MATCH('Country Parameters'!B106,'Wind Capacity Factor'!$B$6:$B$258,0),1)="*","*","") -> 
B107: Luxembourg | C107: Grand Duchy of Luxembourg | D107: LU | E107: LU | F107: LUX | G107: 442 | H107: 49.75 | I107: 6.1667 | J107: Europe | K107: 340.3408 | L107: 917.4832 | M107: 690.5793 | N107: 357.6546 | O107: 340.3408 | P107: N/A | Q107: 2.81 | R107: 0.03064506106 | S107: =IF(ISNUMBER(MATCH(B107,'Grid EFs'!$B$4:$B$157,0)),"","*") ->  | T107: =VLOOKUP(B107,'Wind Capacity Factor'!$B$6:$L$276,8,FALSE) -> 0.1468549543 | U107: =IF(INDEX('Wind Capacity Factor'!$A$6:$B$258,MATCH('Country Parameters'!B107,'Wind Capacity Factor'!$B$6:$B$258,0),1)="*","*","") -> 
B108: Macedonia, FYR | C108: Former Yugoslav Republic of Macedonia | D108: MK | E108: MK | F108: MKD | G108: 807 | H108: 41.8333 | I108: 22 | J108: Europe | K108: 861.2333333 | L108: 1069.4612 | M108: 800.75 | N108: 351.517 | O108: 853.2186 | P108: 861.2333333 | Q108: 3.79 | R108: 0.09405482601 | S108: =IF(ISNUMBER(MATCH(B108,'Grid EFs'!$B$4:$B$157,0)),"","*") ->  | T108: =VLOOKUP(B108,'Wind Capacity Factor'!$B$6:$L$276,8,FALSE) -> 0.2218523463 | U108: =IF(INDEX('Wind Capacity Factor'!$A$6:$B$258,MATCH('Country Parameters'!B108,'Wind Capacity Factor'!$B$6:$B$258,0),1)="*","*","") -> *
B109: Madagascar | C109: Republic of Madagascar | D109: MA | E109: MG | F109: MDG | G109: 450 | H109: -20 | I109: 47 | J109: Africa | K109: 600.9 | L109: 974.5395 | M109: 833.9727 | N109: 456.774 | O109: 597.6623 | P109: 600.9 | Q109: 5.49 | R109: 0.07571494693 | S109: =IF(ISNUMBER(MATCH(B109,'Grid EFs'!$B$4:$B$157,0)),"","*") ->  | T109: =VLOOKUP(B109,'Wind Capacity Factor'!$B$6:$L$276,8,FALSE) -> 0.246106885 | U109: =IF(INDEX('Wind Capacity Factor'!$A$6:$B$258,MATCH('Country Parameters'!B109,'Wind Capacity Factor'!$B$6:$B$258,0),1)="*","*","") -> *
B110: Malawi | C110: Republic of Malawi | D110: MI | E110: MW | F110: MWI | G110: 454 | H110: -13.5 | I110: 34 | J110: Africa | K110: 720.023585 | L110: 974.5395 | M110: 833.9727 | N110: 456.774 | O110: 597.6623 | P110: 720.023585 | Q110: 5.22 | R110: 0.07571494693 | S110: =IF(ISNUMBER(MATCH(B110,'Grid EFs'!$B$4:$B$157,0)),"","*") ->  | T110: =VLOOKUP(B110,'Wind Capacity Factor'!$B$6:$L$276,8,FALSE) -> 0.246106885 | U110: =IF(INDEX('Wind Capacity Factor'!$A$6:$B$258,MATCH('Country Parameters'!B110,'Wind Capacity Factor'!$B$6:$B$258,0),1)="*","*","") -> *
B111: Malaysia | C111: Malaysia | D111: MY | E111: MY | F111: MYS | G111: 458 | H111: 2.5 | I111: 112.5 | J111: Asia | K111: 670.3390244 | L111: 983.6777 | M111: 720.2802 | N111: 494.7696 | O111: 671.3633 | P111: 670.3390244 | Q111: 5.05 | R111: 0.05516613961 | S111: =IF(ISNUMBER(MATCH(B111,'Grid EFs'!$B$4:$B$157,0)),"","*") ->  | T111: =VLOOKUP(B111,'Wind Capacity Factor'!$B$6:$L$276,8,FALSE) -> 0.1850094619 | U111: =IF(INDEX('Wind Capacity Factor'!$A$6:$B$258,MATCH('Country Parameters'!B111,'Wind Capacity Factor'!$B$6:$B$258,0),1)="*","*","") -> *
B112: Maldives | C112: Republic of Maldives | D112: MV | E112: MV | F112: MDV | G112: 462 | H112: 3.25 | I112: 73 | J112: Asia | K112: 846.5339208 | L112: 1144.2709 | M112: 843.0648 | N112: 451.9748 | O112: 736.1338 | P112: 846.5339208 | Q112: 5.84 | R112: 0.05730004629 | S112: =IF(ISNUMBER(MATCH(B112,'Grid EFs'!$B$4:$B$157,0)),"","*") ->  | T112: =VLOOKUP(B112,'Wind Capacity Factor'!$B$6:$L$276,8,FALSE) -> 0.1850094619 | U112: =IF(INDEX('Wind Capacity Factor'!$A$6:$B$258,MATCH('Country Parameters'!B112,'Wind Capacity Factor'!$B$6:$B$258,0),1)="*","*","") -> *
B113: Mali | C113: Republic of Mali | D113: ML | E113: ML | F113: MLI | G113: 466 | H113: 17 | I113: -4 | J113: Africa | K113: 613.6 | L113: 974.5395 | M113: 833.9727 | N113: 456.774 | O113: 597.6623 | P113: 613.6 | Q113: 6.18 | R113: 0.07571494693 | S113: =IF(ISNUMBER(MATCH(B113,'Grid EFs'!$B$4:$B$157,0)),"","*") ->  | T113: =VLOOKUP(B113,'Wind Capacity Factor'!$B$6:$L$276,8,FALSE) -> 0.246106885 | U113: =IF(INDEX('Wind Capacity Factor'!$A$6:$B$258,MATCH('Country Parameters'!B113,'Wind Capacity Factor'!$B$6:$B$258,0),1)="*","*","") -> *
B114: Malta | C114: Republic of Malta | D114: MT | E114: MT | F114: MLT | G114: 470 | H114: 35.8333 | I114: 14.5833 | J114: Europe | K114: 871.5258 | L114: 919.0507 | M114: 881.1453 | N114: 527.4198 | O114: 871.5258 | P114: N/A | Q114: 4.98 | R114: 0.07512786482 | S114: =IF(ISNUMBER(MATCH(B114,'Grid EFs'!$B$4:$B$157,0)),"","*") ->  | T114: =VLOOKUP(B114,'Wind Capacity Factor'!$B$6:$L$276,8,FALSE) -> 0.2218523463 | U114: =IF(INDEX('Wind Capacity Factor'!$A$6:$B$258,MATCH('Country Parameters'!B114,'Wind Capacity Factor'!$B$6:$B$258,0),1)="*","*","") -> *
B115: Marshall Islands | C115: Republic of the Marshall Islands | D115: RM | E115: MH | F115: MHL | G115: 584 | H115: 9 | I115: 168 | J115: Oceana | K115: 736.1338 | L115: 1144.2709 | M115: 843.0648 | N115: 451.9748 | O115: 736.1338 | P115: N/A | Q115: 5.83 | R115: 0.05200178566 | S115: =IF(ISNUMBER(MATCH(B115,'Grid EFs'!$B$4:$B$157,0)),"","*") ->  | T115: =VLOOKUP(B115,'Wind Capacity Factor'!$B$6:$L$276,8,FALSE) -> 0.1850094619 | U115: =IF(INDEX('Wind Capacity Factor'!$A$6:$B$258,MATCH('Country Parameters'!B115,'Wind Capacity Factor'!$B$6:$B$258,0),1)="*","*","") -> *
B116: Mauritania | C116: Islamic Republic of Mauritania | D116: MR | E116: MR | F116: MRT | G116: 478 | H116: 20 | I116: -12 | J116: Africa | K116: 720.023585 | L116: 974.5395 | M116: 833.9727 | N116: 456.774 | O116: 597.6623 | P116: 720.023585 | Q116: 5.81 | R116: 0.07571494693 | S116: =IF(ISNUMBER(MATCH(B116,'Grid EFs'!$B$4:$B$157,0)),"","*") ->  | T116: =VLOOKUP(B116,'Wind Capacity Factor'!$B$6:$L$276,8,FALSE) -> 0.246106885 | U116: =IF(INDEX('Wind Capacity Factor'!$A$6:$B$258,MATCH('Country Parameters'!B116,'Wind Capacity Factor'!$B$6:$B$258,0),1)="*","*","") -> *
B117: Mauritius | C117: Republic of Mauritius | D117: MP | E117: MU | F117: MUS | G117: 480 | H117: -20.2833 | I117: 57.55 | J117: Africa | K117: 968.5 | L117: 974.5395 | M117: 833.9727 | N117: 456.774 | O117: 597.6623 | P117: 968.5 | Q117: 5.92 | R117: 0.07571494693 | S117: =IF(ISNUMBER(MATCH(B117,'Grid EFs'!$B$4:$B$157,0)),"","*") ->  | T117: =VLOOKUP(B117,'Wind Capacity Factor'!$B$6:$L$276,8,FALSE) -> 0.4151100042 | U117: =IF(INDEX('Wind Capacity Factor'!$A$6:$B$258,MATCH('Country Parameters'!B117,'Wind Capacity Factor'!$B$6:$B$258,0),1)="*","*","") -> 
B118: Mexico | C118: United Mexican States | D118: MX | E118: MX | F118: MEX | G118: 484 | H118: 23 | I118: -102 | J118: North America | K118: 529.1394737 | L118: 963.501 | M118: 696.7303 | N118: 406.7951 | O118: 453.4445 | P118: 529.1394737 | Q118: 5.79 | R118: 0.08692230377 | S118: =IF(ISNUMBER(MATCH(B118,'Grid EFs'!$B$4:$B$157,0)),"","*") ->  | T118: =VLOOKUP(B118,'Wind Capacity Factor'!$B$6:$L$276,8,FALSE) -> 0.2706452408 | U118: =IF(INDEX('Wind Capacity Factor'!$A$6:$B$258,MATCH('Country Parameters'!B118,'Wind Capacity Factor'!$B$6:$B$258,0),1)="*","*","") -> 
B119: Micronesia, Federated States of | C119: Federated States of Micronesia | D119: FM | E119: FM | F119: FSM | G119: 583 | H119: 6.9167 | I119: 158.25 | J119: Oceana | K119: 736.1338 | L119: 1144.2709 | M119: 843.0648 | N119: 451.9748 | O119: 736.1338 | P119: N/A | Q119: 5.55 | R119: 0.05200178566 | S119: =IF(ISNUMBER(MATCH(B119,'Grid EFs'!$B$4:$B$157,0)),"","*") ->  | T119: =VLOOKUP(B119,'Wind Capacity Factor'!$B$6:$L$276,8,FALSE) -> 0.1850094619 | U119: =IF(INDEX('Wind Capacity Factor'!$A$6:$B$258,MATCH('Country Parameters'!B119,'Wind Capacity Factor'!$B$6:$B$258,0),1)="*","*","") -> *
B120: Moldova | C120: Republic of Moldova | D120: MD | E120: MD | F120: MDA | G120: 498 | H120: 47 | I120: 29 | J120: Europe | K120: 497.1248 | L120: 919.0507 | M120: 785.5197 | N120: 521.7553 | O120: 497.1248 | P120: N/A | Q120: 3.37 | R120: 0.1019902638 | S120: =IF(ISNUMBER(MATCH(B120,'Grid EFs'!$B$4:$B$157,0)),"","*") ->  | T120: =VLOOKUP(B120,'Wind Capacity Factor'!$B$6:$L$276,8,FALSE) -> 0.2218523463 | U120: =IF(INDEX('Wind Capacity Factor'!$A$6:$B$258,MATCH('Country Parameters'!B120,'Wind Capacity Factor'!$B$6:$B$258,0),1)="*","*","") -> *
B121: Monaco | C121: Principality of Monaco | D121: MN | E121: MC | F121: MCO | G121: 492 | H121: 43.7333 | I121: 7.4 | J121: Europe | K121: 331.064 | L121: 917.4832 | M121: 690.5793 | N121: 359.0744 | O121: 331.064 | P121: N/A | Q121: 3.67 | R121: 0.05810932301 | S121: =IF(ISNUMBER(MATCH(B121,'Grid EFs'!$B$4:$B$157,0)),"","*") ->  | T121: =VLOOKUP(B121,'Wind Capacity Factor'!$B$6:$L$276,8,FALSE) -> 0.2218523463 | U121: =IF(INDEX('Wind Capacity Factor'!$A$6:$B$258,MATCH('Country Parameters'!B121,'Wind Capacity Factor'!$B$6:$B$258,0),1)="*","*","") -> *
B122: Mongolia | C122: Mongolia | D122: MG | E122: MN | F122: MNG | G122: 496 | H122: 46 | I122: 105 | J122: Asia | K122: 1130 | L122: 875.5542 | M122: 1038.2815 | N122: 451.9748 | O122: 884.1028 | P122: 1130 | Q122: 4.2 | R122: 0.08275755401 | S122: =IF(ISNUMBER(MATCH(B122,'Grid EFs'!$B$4:$B$157,0)),"","*") ->  | T122: =VLOOKUP(B122,'Wind Capacity Factor'!$B$6:$L$276,8,FALSE) -> 0.3512469266 | U122: =IF(INDEX('Wind Capacity Factor'!$A$6:$B$258,MATCH('Country Parameters'!B122,'Wind Capacity Factor'!$B$6:$B$258,0),1)="*","*","") -> 
B123: Montenegro | C123: Montenegro | D123: MJ | E123: ME | F123: MNE | G123: 499 | H123: 42 | I123: 19 | J123: Europe | K123: 983.6 | L123: 1132.5757 | M123: 785.5197 | N123: 527.4198 | O123: 545.4617 | P123: 983.6 | Q123: 3.88 | R123: 0.09891071908 | S123: =IF(ISNUMBER(MATCH(B123,'Grid EFs'!$B$4:$B$157,0)),"","*") ->  | T123: =VLOOKUP(B123,'Wind Capacity Factor'!$B$6:$L$276,8,FALSE) -> 0.2218523463 | U123: =IF(INDEX('Wind Capacity Factor'!$A$6:$B$258,MATCH('Country Parameters'!B123,'Wind Capacity Factor'!$B$6:$B$258,0),1)="*","*","") -> *
B124: Morocco | C124: Kingdom of Morocco | D124: MO | E124: MA | F124: MAR | G124: 504 | H124: 32 | I124: -5 | J124: Africa | K124: 647.2 | L124: 986.8203 | M124: 723.5885 | N124: 376.7347 | O124: 696.63 | P124: 647.2 | Q124: 5.18 | R124: 0.08150880864 | S124: =IF(ISNUMBER(MATCH(B124,'Grid EFs'!$B$4:$B$157,0)),"","*") ->  | T124: =VLOOKUP(B124,'Wind Capacity Factor'!$B$6:$L$276,8,FALSE) -> 0.2855842709 | U124: =IF(INDEX('Wind Capacity Factor'!$A$6:$B$258,MATCH('Country Parameters'!B124,'Wind Capacity Factor'!$B$6:$B$258,0),1)="*","*","") -> 
B125: Mozambique | C125: Republic of Mozambique | D125: MZ | E125: MZ | F125: MOZ | G125: 508 | H125: -18.25 | I125: 35 | J125: Africa | K125: 964.4 | L125: 974.5395 | M125: 833.9727 | N125: 853.8095 | O125: 1.1822 | P125: 964.4 | Q125: 5.41 | R125: 0.08651929489 | S125: =IF(ISNUMBER(MATCH(B125,'Grid EFs'!$B$4:$B$157,0)),"","*") ->  | T125: =VLOOKUP(B125,'Wind Capacity Factor'!$B$6:$L$276,8,FALSE) -> 0.246106885 | U125: =IF(INDEX('Wind Capacity Factor'!$A$6:$B$258,MATCH('Country Parameters'!B125,'Wind Capacity Factor'!$B$6:$B$258,0),1)="*","*","") -> *
B126: Namibia | C126: Republic of Namibia | D126: WA | E126: NA | F126: NAM | G126: 516 | H126: -22 | I126: 17 | J126: Africa | K126: 920 | L126: 1402.5333 | M126: 1110.3333 | N126: 456.774 | O126: 26.9957 | P126: 920 | Q126: 6.2 | R126: 0.1044605374 | S126: =IF(ISNUMBER(MATCH(B126,'Grid EFs'!$B$4:$B$157,0)),"","*") ->  | T126: =VLOOKUP(B126,'Wind Capacity Factor'!$B$6:$L$276,8,FALSE) -> 0.246106885 | U126: =IF(INDEX('Wind Capacity Factor'!$A$6:$B$258,MATCH('Country Parameters'!B126,'Wind Capacity Factor'!$B$6:$B$258,0),1)="*","*","") -> *
B127: Nauru | C127: Republic of Nauru | D127: NR | E127: NR | F127: NRU | G127: 520 | H127: -0.5333 | I127: 166.9167 | J127: Oceana | K127: 736.1338 | L127: 1144.2709 | M127: 843.0648 | N127: 451.9748 | O127: 736.1338 | P127: N/A | Q127: 6.11 | R127: 0.05200178566 | S127: =IF(ISNUMBER(MATCH(B127,'Grid EFs'!$B$4:$B$157,0)),"","*") ->  | T127: =VLOOKUP(B127,'Wind Capacity Factor'!$B$6:$L$276,8,FALSE) -> 0.1850094619 | U127: =IF(INDEX('Wind Capacity Factor'!$A$6:$B$258,MATCH('Country Parameters'!B127,'Wind Capacity Factor'!$B$6:$B$258,0),1)="*","*","") -> *
B128: Nepal | C128: Federal Democratic Republic of Nepal | D128: NP | E128: NP | F128: NPL | G128: 524 | H128: 28 | I128: 84 | J128: Asia | K128: 846.5339208 | L128: 1144.2709 | M128: 712.9474 | N128: 451.9748 | O128: 3.8136 | P128: 846.5339208 | Q128: 5.06 | R128: 0.1208302894 | S128: =IF(ISNUMBER(MATCH(B128,'Grid EFs'!$B$4:$B$157,0)),"","*") ->  | T128: =VLOOKUP(B128,'Wind Capacity Factor'!$B$6:$L$276,8,FALSE) -> 0.1850094619 | U128: =IF(INDEX('Wind Capacity Factor'!$A$6:$B$258,MATCH('Country Parameters'!B128,'Wind Capacity Factor'!$B$6:$B$258,0),1)="*","*","") -> *
B129: Netherlands | C129: Kingdom of the Netherlands | D129: NL | E129: NL | F129: NLD | G129: 528 | H129: 52.5 | I129: 5.75 | J129: Europe | K129: 440.6966 | L129: 912.8992 | M129: 703.0788 | N129: 300.1351 | O129: 440.6966 | P129: N/A | Q129: 2.87 | R129: 0.03794666441 | S129: =IF(ISNUMBER(MATCH(B129,'Grid EFs'!$B$4:$B$157,0)),"","*") ->  | T129: =VLOOKUP(B129,'Wind Capacity Factor'!$B$6:$L$276,8,FALSE) -> 0.2378592477 | U129: =IF(INDEX('Wind Capacity Factor'!$A$6:$B$258,MATCH('Country Parameters'!B129,'Wind Capacity Factor'!$B$6:$B$258,0),1)="*","*","") -> 
B130: New Zealand | C130: New Zealand | D130: NZ | E130: NZ | F130: NZL | G130: 554 | H130: -41 | I130: 174 | J130: Oceana | K130: 173.282 | L130: 1127.9533 | M130: 1040.6667 | N130: 411.5426 | O130: 173.282 | P130: N/A | Q130: 4.46 | R130: 0.05719899579 | S130: =IF(ISNUMBER(MATCH(B130,'Grid EFs'!$B$4:$B$157,0)),"","*") ->  | T130: =VLOOKUP(B130,'Wind Capacity Factor'!$B$6:$L$276,8,FALSE) -> 0.3801509166 | U130: =IF(INDEX('Wind Capacity Factor'!$A$6:$B$258,MATCH('Country Parameters'!B130,'Wind Capacity Factor'!$B$6:$B$258,0),1)="*","*","") -> 
B131: Nicaragua | C131: Republic of Nicaragua | D131: NU | E131: NI | F131: NIC | G131: 558 | H131: 13 | I131: -85 | J131: North America | K131: 631.24 | L131: 1240.488 | M131: 711.1093 | N131: 502.8366 | O131: 406.6254 | P131: 631.24 | Q131: 4.56 | R131: 0.09121380307 | S131: =IF(ISNUMBER(MATCH(B131,'Grid EFs'!$B$4:$B$157,0)),"","*") -> * | T131: =VLOOKUP(B131,'Wind Capacity Factor'!$B$6:$L$276,8,FALSE) -> 0.258022143 | U131: =IF(INDEX('Wind Capacity Factor'!$A$6:$B$258,MATCH('Country Parameters'!B131,'Wind Capacity Factor'!$B$6:$B$258,0),1)="*","*","") -> 
B132: Niger | C132: Republic of Niger | D132: NG | E132: NE | F132: NER | G132: 562 | H132: 16 | I132: 8 | J132: Africa | K132: 720.023585 | L132: 974.5395 | M132: 833.9727 | N132: 456.774 | O132: 597.6623 | P132: 720.023585 | Q132: 6.67 | R132: 0.07571494693 | S132: =IF(ISNUMBER(MATCH(B132,'Grid EFs'!$B$4:$B$157,0)),"","*") ->  | T132: =VLOOKUP(B132,'Wind Capacity Factor'!$B$6:$L$276,8,FALSE) -> 0.246106885 | U132: =IF(INDEX('Wind Capacity Factor'!$A$6:$B$258,MATCH('Country Parameters'!B132,'Wind Capacity Factor'!$B$6:$B$258,0),1)="*","*","") -> *
B133: Nigeria | C133: Federal Republic of Nigeria | D133: NI | E133: NG | F133: NGA | G133: 566 | H133: 10 | I133: 8 | J133: Africa | K133: =IF(P133="N/A",O133,P133) -> 573.28 | L133: 974.5395 | M133: 833.9727 | N133: 502.2322 | O133: 403.2239 | P133: 573.28 | Q133: 5.69 | R133: 0.0753013736 | S133: =IF(ISNUMBER(MATCH(B133,'Grid EFs'!$B$4:$B$157,0)),"","*") ->  | T133: =VLOOKUP(B133,'Wind Capacity Factor'!$B$6:$L$276,8,FALSE) -> 0.246106885 | U133: =IF(INDEX('Wind Capacity Factor'!$A$6:$B$258,MATCH('Country Parameters'!B133,'Wind Capacity Factor'!$B$6:$B$258,0),1)="*","*","") -> *
B134: Norway | C134: Kingdom of Norway | D134: NO | E134: NO | F134: NOR | G134: 578 | H134: 62 | I134: 10 | J134: Europe | K134: 8.0573 | L134: 1191.7299 | M134: 304.373 | N134: 338.7871 | O134: 8.0573 | P134: N/A | Q134: 2.43 | R134: 0.05714087819 | S134: =IF(ISNUMBER(MATCH(B134,'Grid EFs'!$B$4:$B$157,0)),"","*") ->  | T134: =VLOOKUP(B134,'Wind Capacity Factor'!$B$6:$L$276,8,FALSE) -> 0.2526679527 | U134: =IF(INDEX('Wind Capacity Factor'!$A$6:$B$258,MATCH('Country Parameters'!B134,'Wind Capacity Factor'!$B$6:$B$258,0),1)="*","*","") -> 
B135: Oman | C135: Sultanate of Oman | D135: MU | E135: OM | F135: OMN | G135: 512 | H135: 21 | I135: 57 | J135: Asia | K135: 679.1801887 | L135: 1144.2709 | M135: 766.205 | N135: 598.0085 | O135: 602.0761 | P135: 679.1801887 | Q135: 5.77 | R135: 0.0843782988 | S135: =IF(ISNUMBER(MATCH(B135,'Grid EFs'!$B$4:$B$157,0)),"","*") -> * | T135: =VLOOKUP(B135,'Wind Capacity Factor'!$B$6:$L$276,8,FALSE) -> 0.2271048199 | U135: =IF(INDEX('Wind Capacity Factor'!$A$6:$B$258,MATCH('Country Parameters'!B135,'Wind Capacity Factor'!$B$6:$B$258,0),1)="*","*","") -> *
B136: Pakistan | C136: Islamic Republic of Pakistan | D136: PK | E136: PK | F136: PAK | G136: 586 | H136: 30 | I136: 70 | J136: Asia | K136: 544.6056522 | L136: 2334.2459 | M136: 702.8311 | N136: 579.9952 | O136: 417.622 | P136: 544.6056522 | Q136: 4.93 | R136: 0.0908214534 | S136: =IF(ISNUMBER(MATCH(B136,'Grid EFs'!$B$4:$B$157,0)),"","*") ->  | T136: =VLOOKUP(B136,'Wind Capacity Factor'!$B$6:$L$276,8,FALSE) -> 0.1850094619 | U136: =IF(INDEX('Wind Capacity Factor'!$A$6:$B$258,MATCH('Country Parameters'!B136,'Wind Capacity Factor'!$B$6:$B$258,0),1)="*","*","") -> *
B137: Palau | C137: Republic of Palau | D137: PS | E137: PW | F137: PLW | G137: 585 | H137: 7.5 | I137: 134.5 | J137: Oceana | K137: 736.1338 | L137: 1144.2709 | M137: 843.0648 | N137: 451.9748 | O137: 736.1338 | P137: N/A | Q137: 5.52 | R137: 0.05200178566 | S137: =IF(ISNUMBER(MATCH(B137,'Grid EFs'!$B$4:$B$157,0)),"","*") ->  | T137: =VLOOKUP(B137,'Wind Capacity Factor'!$B$6:$L$276,8,FALSE) -> 0.1850094619 | U137: =IF(INDEX('Wind Capacity Factor'!$A$6:$B$258,MATCH('Country Parameters'!B137,'Wind Capacity Factor'!$B$6:$B$258,0),1)="*","*","") -> *
B138: Panama | C138: Republic of Panama | D138: PM | E138: PA | F138: PAN | G138: 591 | H138: 9 | I138: -80 | J138: North America | K138: 578.7043478 | L138: 1113.2176 | M138: 813.4096 | N138: 502.8366 | O138: 325.5903 | P138: 578.7043478 | Q138: 4.86 | R138: 0.08340054595 | S138: =IF(ISNUMBER(MATCH(B138,'Grid EFs'!$B$4:$B$157,0)),"","*") -> * | T138: =VLOOKUP(B138,'Wind Capacity Factor'!$B$6:$L$276,8,FALSE) -> 0.2363786168 | U138: =IF(INDEX('Wind Capacity Factor'!$A$6:$B$258,MATCH('Country Parameters'!B138,'Wind Capacity Factor'!$B$6:$B$258,0),1)="*","*","") -> *
B139: Papua New Guinea | C139: Independent State of Papua New Guinea | D139: PP | E139: PG | F139: PNG | G139: 598 | H139: -6 | I139: 147 | J139: Oceana | K139: 678.5714286 | L139: 1144.2709 | M139: 843.0648 | N139: 451.9748 | O139: 736.1338 | P139: 678.5714286 | Q139: 5.51 | R139: 0.05200178566 | S139: =IF(ISNUMBER(MATCH(B139,'Grid EFs'!$B$4:$B$157,0)),"","*") ->  | T139: =VLOOKUP(B139,'Wind Capacity Factor'!$B$6:$L$276,8,FALSE) -> 0.1850094619 | U139: =IF(INDEX('Wind Capacity Factor'!$A$6:$B$258,MATCH('Country Parameters'!B139,'Wind Capacity Factor'!$B$6:$B$258,0),1)="*","*","") -> *
B140: Paraguay | C140: Republic of Paraguay | D140: PA | E140: PY | F140: PRY | G140: 600 | H140: -23 | I140: -58 | J140: South America | K140: 472.4409815 | L140: 1240.488 | M140: 671.3559 | N140: 502.8366 | O140: 200.8047 | P140: 472.4409815 | Q140: 5.02 | R140: 0.0540418711 | S140: * | T140: =VLOOKUP(B140,'Wind Capacity Factor'!$B$6:$L$276,8,FALSE) -> 0.2363786168 | U140: =IF(INDEX('Wind Capacity Factor'!$A$6:$B$258,MATCH('Country Parameters'!B140,'Wind Capacity Factor'!$B$6:$B$258,0),1)="*","*","") -> *
B141: Peru | C141: Republic of Peru | D141: PE | E141: PE | F141: PER | G141: 604 | H141: -10 | I141: -76 | J141: South America | K141: 580.2855769 | L141: 1173.7519 | M141: 905.2915 | N141: 586.4426 | O141: 285.5615 | P141: 580.2855769 | Q141: 4.37 | R141: 0.0644566397 | S141: =IF(ISNUMBER(MATCH(B141,'Grid EFs'!$B$4:$B$157,0)),"","*") -> * | T141: =VLOOKUP(B141,'Wind Capacity Factor'!$B$6:$L$276,8,FALSE) -> 0.1630789302 | U141: =IF(INDEX('Wind Capacity Factor'!$A$6:$B$258,MATCH('Country Parameters'!B141,'Wind Capacity Factor'!$B$6:$B$258,0),1)="*","*","") -> 
B142: Philippines | C142: Republic of the Philippines | D142: RP | E142: PH | F142: PHL | G142: 608 | H142: 13 | I142: 122 | J142: Asia | K142: 511.5641509 | L142: 936.7683 | M142: 726.1904 | N142: 358.5276 | O142: 502.3736 | P142: 511.5641509 | Q142: 5.07 | R142: 0.07518104123 | S142: =IF(ISNUMBER(MATCH(B142,'Grid EFs'!$B$4:$B$157,0)),"","*") ->  | T142: =VLOOKUP(B142,'Wind Capacity Factor'!$B$6:$L$276,8,FALSE) -> 0.2594437526 | U142: =IF(INDEX('Wind Capacity Factor'!$A$6:$B$258,MATCH('Country Parameters'!B142,'Wind Capacity Factor'!$B$6:$B$258,0),1)="*","*","") -> 
B143: Poland | C143: Republic of Poland | D143: PL | E143: PL | F143: POL | G143: 616 | H143: 52 | I143: 20 | J143: Europe | K143: 755.8353 | L143: 874.2164 | M143: 484.0102 | N143: 337.3387 | O143: 755.8353 | P143: N/A | Q143: 2.85 | R143: 0.05817748471 | S143: =IF(ISNUMBER(MATCH(B143,'Grid EFs'!$B$4:$B$157,0)),"","*") ->  | T143: =VLOOKUP(B143,'Wind Capacity Factor'!$B$6:$L$276,8,FALSE) -> 0.2171053594 | U143: =IF(INDEX('Wind Capacity Factor'!$A$6:$B$258,MATCH('Country Parameters'!B143,'Wind Capacity Factor'!$B$6:$B$258,0),1)="*","*","") -> 
B144: Portugal | C144: Portuguese Republic | D144: PO | E144: PT | F144: PRT | G144: 620 | H144: 39.5 | I144: -8 | J144: Europe | K144: 363.9591 | L144: 861.5916 | M144: 528.9271 | N144: 351.4578 | O144: 363.9591 | P144: N/A | Q144: 4.32 | R144: 0.06513299173 | S144: =IF(ISNUMBER(MATCH(B144,'Grid EFs'!$B$4:$B$157,0)),"","*") ->  | T144: =VLOOKUP(B144,'Wind Capacity Factor'!$B$6:$L$276,8,FALSE) -> 0.2585821862 | U144: =IF(INDEX('Wind Capacity Factor'!$A$6:$B$258,MATCH('Country Parameters'!B144,'Wind Capacity Factor'!$B$6:$B$258,0),1)="*","*","") -> 
B145: Qatar | C145: State of Qatar | D145: QA | E145: QA | F145: QAT | G145: 634 | H145: 25.5 | I145: 51.25 | J145: Asia | K145: 679.1801887 | L145: 1144.2709 | M145: 915.4122 | N145: 492.949 | O145: 492.949 | P145: 679.1801887 | Q145: 6.01 | R145: 0.05499957781 | S145: =IF(ISNUMBER(MATCH(B145,'Grid EFs'!$B$4:$B$157,0)),"","*") -> * | T145: =VLOOKUP(B145,'Wind Capacity Factor'!$B$6:$L$276,8,FALSE) -> 0.2271048199 | U145: =IF(INDEX('Wind Capacity Factor'!$A$6:$B$258,MATCH('Country Parameters'!B145,'Wind Capacity Factor'!$B$6:$B$258,0),1)="*","*","") -> *
B146: Romania | C146: Romania | D146: RO | E146: RO | F146: ROU | G146: 642 | H146: 46 | I146: 25 | J146: Europe | K146: 480.6278 | L146: 1056.0931 | M146: 721.2728 | N146: 393.2112 | O146: 480.6278 | P146: N/A | Q146: 3.33 | R146: 0.07724103386 | S146: =IF(ISNUMBER(MATCH(B146,'Grid EFs'!$B$4:$B$157,0)),"","*") ->  | T146: =VLOOKUP(B146,'Wind Capacity Factor'!$B$6:$L$276,8,FALSE) -> 0.1581994032 | U146: =IF(INDEX('Wind Capacity Factor'!$A$6:$B$258,MATCH('Country Parameters'!B146,'Wind Capacity Factor'!$B$6:$B$258,0),1)="*","*","") -> 
B147: Russia | C147: Russian Federation | D147: RS | E147: RU | F147: RUS | G147: 643 | H147: 60 | I147: 100 | J147: Europe | K147: 428.779 | L147: 935.5045 | M147: 801.7231 | N147: 520.057 | O147: 428.779 | P147: N/A | Q147: 2.86 | R147: 0.07071510836 | S147: =IF(ISNUMBER(MATCH(B147,'Grid EFs'!$B$4:$B$157,0)),"","*") ->  | T147: =VLOOKUP(B147,'Wind Capacity Factor'!$B$6:$L$276,8,FALSE) -> 0.2218523463 | U147: =IF(INDEX('Wind Capacity Factor'!$A$6:$B$258,MATCH('Country Parameters'!B147,'Wind Capacity Factor'!$B$6:$B$258,0),1)="*","*","") -> *
B148: Rwanda | C148: Republic of Rwanda | D148: RW | E148: RW | F148: RWA | G148: 646 | H148: -2 | I148: 30 | J148: Africa | K148: 654 | L148: 974.5395 | M148: 833.9727 | N148: 456.774 | O148: 597.6623 | P148: 654 | Q148: 4.88 | R148: 0.07571494693 | S148: =IF(ISNUMBER(MATCH(B148,'Grid EFs'!$B$4:$B$157,0)),"","*") ->  | T148: =VLOOKUP(B148,'Wind Capacity Factor'!$B$6:$L$276,8,FALSE) -> 0.246106885 | U148: =IF(INDEX('Wind Capacity Factor'!$A$6:$B$258,MATCH('Country Parameters'!B148,'Wind Capacity Factor'!$B$6:$B$258,0),1)="*","*","") -> *
B149: Saint Kitts and Nevis | C149: Federation of Saint Kitts and Nevis | D149: SC | E149: KN | F149: KNA | G149: 659 | H149: 17.3333 | I149: -62.75 | J149: North America | K149: 472.4409815 | L149: 1240.488 | M149: 671.3559 | N149: 502.8366 | O149: 200.8047 | P149: 472.4409815 | Q149: 6.23 | R149: 0.05767936475 | S149: =IF(ISNUMBER(MATCH(B149,'Grid EFs'!$B$4:$B$157,0)),"","*") -> * | T149: =VLOOKUP(B149,'Wind Capacity Factor'!$B$6:$L$276,8,FALSE) -> 0.2363786168 | U149: =IF(INDEX('Wind Capacity Factor'!$A$6:$B$258,MATCH('Country Parameters'!B149,'Wind Capacity Factor'!$B$6:$B$258,0),1)="*","*","") -> *
B150: Saint Lucia | C150: Saint Lucia | D150: ST | E150: LC | F150: LCA | G150: 662 | H150: 13.8833 | I150: -61.1333 | J150: North America | K150: 472.4409815 | L150: 1240.488 | M150: 671.3559 | N150: 502.8366 | O150: 200.8047 | P150: 472.4409815 | Q150: 6.09 | R150: 0.05767936475 | S150: =IF(ISNUMBER(MATCH(B150,'Grid EFs'!$B$4:$B$157,0)),"","*") -> * | T150: =VLOOKUP(B150,'Wind Capacity Factor'!$B$6:$L$276,8,FALSE) -> 0.2363786168 | U150: =IF(INDEX('Wind Capacity Factor'!$A$6:$B$258,MATCH('Country Parameters'!B150,'Wind Capacity Factor'!$B$6:$B$258,0),1)="*","*","") -> *
B151: Saint Vincent and the Grenadines | C151: Saint Vincent and the Grenadines | D151: VC | E151: VC | F151: VCT | G151: 670 | H151: 13.25 | I151: -61.2 | J151: North America | K151: 472.4409815 | L151: 1240.488 | M151: 671.3559 | N151: 502.8366 | O151: 200.8047 | P151: 472.4409815 | Q151: 6.08 | R151: 0.05767936475 | S151: =IF(ISNUMBER(MATCH(B151,'Grid EFs'!$B$4:$B$157,0)),"","*") -> * | T151: =VLOOKUP(B151,'Wind Capacity Factor'!$B$6:$L$276,8,FALSE) -> 0.2363786168 | U151: =IF(INDEX('Wind Capacity Factor'!$A$6:$B$258,MATCH('Country Parameters'!B151,'Wind Capacity Factor'!$B$6:$B$258,0),1)="*","*","") -> *
B152: Samoa | C152: Independent State of Samoa | D152: WS | E152: WS | F152: WSM | G152: 882 | H152: -13.5833 | I152: -172.3333 | J152: Oceana | K152: 736.1338 | L152: 1144.2709 | M152: 843.0648 | N152: 451.9748 | O152: 736.1338 | P152: N/A | Q152: 5.26 | R152: 0.05200178566 | S152: =IF(ISNUMBER(MATCH(B152,'Grid EFs'!$B$4:$B$157,0)),"","*") ->  | T152: =VLOOKUP(B152,'Wind Capacity Factor'!$B$6:$L$276,8,FALSE) -> 0.1850094619 | U152: =IF(INDEX('Wind Capacity Factor'!$A$6:$B$258,MATCH('Country Parameters'!B152,'Wind Capacity Factor'!$B$6:$B$258,0),1)="*","*","") -> *
B153: San Marino | C153: Republic of San Marino | D153: SM | E153: SM | F153: SMR | G153: 674 | H153: 43.7667 | I153: 12.4167 | J153: Europe | K153: 331.064 | L153: 917.4832 | M153: 690.5793 | N153: 359.0744 | O153: 331.064 | P153: N/A | Q153: 3.94 | R153: 0.05810932301 | S153: =IF(ISNUMBER(MATCH(B153,'Grid EFs'!$B$4:$B$157,0)),"","*") ->  | T153: =VLOOKUP(B153,'Wind Capacity Factor'!$B$6:$L$276,8,FALSE) -> 0.2218523463 | U153: =IF(INDEX('Wind Capacity Factor'!$A$6:$B$258,MATCH('Country Parameters'!B153,'Wind Capacity Factor'!$B$6:$B$258,0),1)="*","*","") -> *
B154: Sao Tome and Principe | C154: Democratic Republic of Sao Tome and Principe | D154: TP | E154: ST | F154: STP | G154: 678 | H154: 1 | I154: 7 | J154: Africa | K154: 720.023585 | L154: 974.5395 | M154: 833.9727 | N154: 456.774 | O154: 597.6623 | P154: 720.023585 | Q154: 4.86 | R154: 0.07571494693 | S154: =IF(ISNUMBER(MATCH(B154,'Grid EFs'!$B$4:$B$157,0)),"","*") ->  | T154: =VLOOKUP(B154,'Wind Capacity Factor'!$B$6:$L$276,8,FALSE) -> 0.246106885 | U154: =IF(INDEX('Wind Capacity Factor'!$A$6:$B$258,MATCH('Country Parameters'!B154,'Wind Capacity Factor'!$B$6:$B$258,0),1)="*","*","") -> *
B155: Saudi Arabia | C155: Kingdom of Saudi Arabia | D155: SA | E155: SA | F155: SAU | G155: 682 | H155: 25 | I155: 45 | J155: Asia | K155: 654 | L155: 1144.2709 | M155: 820.3067 | N155: 636.6061 | O155: 738.2158 | P155: 654 | Q155: 5.73 | R155: 0.06390873685 | S155: =IF(ISNUMBER(MATCH(B155,'Grid EFs'!$B$4:$B$157,0)),"","*") -> * | T155: =VLOOKUP(B155,'Wind Capacity Factor'!$B$6:$L$276,8,FALSE) -> 0.2271048199 | U155: =IF(INDEX('Wind Capacity Factor'!$A$6:$B$258,MATCH('Country Parameters'!B155,'Wind Capacity Factor'!$B$6:$B$258,0),1)="*","*","") -> *
B156: Senegal | C156: Republic of Senegal | D156: SG | E156: SN | F156: SEN | G156: 686 | H156: 14 | I156: -14 | J156: Africa | K156: 648.3714286 | L156: 974.5395 | M156: 709.804 | N156: 368.4214 | O156: 601.7217 | P156: 648.3714286 | Q156: 5.74 | R156: 0.08853339942 | S156: =IF(ISNUMBER(MATCH(B156,'Grid EFs'!$B$4:$B$157,0)),"","*") ->  | T156: =VLOOKUP(B156,'Wind Capacity Factor'!$B$6:$L$276,8,FALSE) -> 0.246106885 | U156: =IF(INDEX('Wind Capacity Factor'!$A$6:$B$258,MATCH('Country Parameters'!B156,'Wind Capacity Factor'!$B$6:$B$258,0),1)="*","*","") -> *
B157: Serbia | C157: Republic of Serbia | D157: RI | E157: RS | F157: SRB | G157: 688 | H157: 44 | I157: 21 | J157: Europe | K157: 1099.111373 | L157: 1031.1309 | M157: 463.3784 | N157: 474.06 | O157: 759.9474 | P157: 1099.111373 | Q157: 3.59 | R157: 0.08622719394 | S157: =IF(ISNUMBER(MATCH(B157,'Grid EFs'!$B$4:$B$157,0)),"","*") ->  | T157: =VLOOKUP(B157,'Wind Capacity Factor'!$B$6:$L$276,8,FALSE) -> 0.2218523463 | U157: =IF(INDEX('Wind Capacity Factor'!$A$6:$B$258,MATCH('Country Parameters'!B157,'Wind Capacity Factor'!$B$6:$B$258,0),1)="*","*","") -> *
B158: Seychelles | C158: Republic of Seychelles | D158: SE | E158: SC | F158: SYC | G158: 690 | H158: -4.5833 | I158: 55.6667 | J158: Africa | K158: 720.023585 | L158: 974.5395 | M158: 833.9727 | N158: 456.774 | O158: 597.6623 | P158: 720.023585 | Q158: 5.88 | R158: 0.07571494693 | S158: =IF(ISNUMBER(MATCH(B158,'Grid EFs'!$B$4:$B$157,0)),"","*") ->  | T158: =VLOOKUP(B158,'Wind Capacity Factor'!$B$6:$L$276,8,FALSE) -> 0.246106885 | U158: =IF(INDEX('Wind Capacity Factor'!$A$6:$B$258,MATCH('Country Parameters'!B158,'Wind Capacity Factor'!$B$6:$B$258,0),1)="*","*","") -> *
B159: Sierra Leone | C159: Republic of Sierra Leone | D159: SL | E159: SL | F159: SLE | G159: 694 | H159: 8.5 | I159: -11.5 | J159: Africa | K159: 402 | L159: 974.5395 | M159: 833.9727 | N159: 456.774 | O159: 597.6623 | P159: 402 | Q159: 5.34 | R159: 0.07571494693 | S159: =IF(ISNUMBER(MATCH(B159,'Grid EFs'!$B$4:$B$157,0)),"","*") ->  | T159: =VLOOKUP(B159,'Wind Capacity Factor'!$B$6:$L$276,8,FALSE) -> 0.246106885 | U159: =IF(INDEX('Wind Capacity Factor'!$A$6:$B$258,MATCH('Country Parameters'!B159,'Wind Capacity Factor'!$B$6:$B$258,0),1)="*","*","") -> *
B160: Singapore | C160: Republic of Singapore | D160: SN | E160: SG | F160: SGP | G160: 702 | H160: 1.3667 | I160: 103.8 | J160: Asia | K160: 486.2333333 | L160: 1144.2709 | M160: 827.1882 | N160: 398.0943 | O160: 472.4789 | P160: 486.2333333 | Q160: 4.49 | R160: 0.02807076403 | S160: =IF(ISNUMBER(MATCH(B160,'Grid EFs'!$B$4:$B$157,0)),"","*") ->  | T160: =VLOOKUP(B160,'Wind Capacity Factor'!$B$6:$L$276,8,FALSE) -> 0.1850094619 | U160: =IF(INDEX('Wind Capacity Factor'!$A$6:$B$258,MATCH('Country Parameters'!B160,'Wind Capacity Factor'!$B$6:$B$258,0),1)="*","*","") -> *
B161: Slovakia | C161: Slovak Republic | D161: LO | E161: SK | F161: SVK | G161: 703 | H161: 48.6667 | I161: 19.5 | J161: Europe | K161: 194.3861 | L161: 1043.6219 | M161: 767.2523 | N161: 336.152 | O161: 194.3861 | P161: N/A | Q161: 2.86 | R161: 0.02839856771 | S161: =IF(ISNUMBER(MATCH(B161,'Grid EFs'!$B$4:$B$157,0)),"","*") ->  | T161: =VLOOKUP(B161,'Wind Capacity Factor'!$B$6:$L$276,8,FALSE) -> 0.2283105023 | U161: =IF(INDEX('Wind Capacity Factor'!$A$6:$B$258,MATCH('Country Parameters'!B161,'Wind Capacity Factor'!$B$6:$B$258,0),1)="*","*","") -> 
B162: Slovenia | C162: Republic of Slovenia | D162: SI | E162: SI | F162: SVN | G162: 705 | H162: 46 | I162: 15 | J162: Europe | K162: 331.4761 | L162: 952.6692 | M162: 1041 | N162: 371.8492 | O162: 331.4761 | P162: N/A | Q162: 3.4 | R162: 0.04954663034 | S162: =IF(ISNUMBER(MATCH(B162,'Grid EFs'!$B$4:$B$157,0)),"","*") ->  | T162: =VLOOKUP(B162,'Wind Capacity Factor'!$B$6:$L$276,8,FALSE) -> 0.2218523463 | U162: =IF(INDEX('Wind Capacity Factor'!$A$6:$B$258,MATCH('Country Parameters'!B162,'Wind Capacity Factor'!$B$6:$B$258,0),1)="*","*","") -> *
B163: Solomon Islands | C163: Solomon Islands | D163: BP | E163: SB | F163: SLB | G163: 90 | H163: -8 | I163: 159 | J163: Oceana | K163: 736.1338 | L163: 1144.2709 | M163: 843.0648 | N163: 451.9748 | O163: 736.1338 | P163: N/A | Q163: 5.27 | R163: 0.05200178566 | S163: =IF(ISNUMBER(MATCH(B163,'Grid EFs'!$B$4:$B$157,0)),"","*") ->  | T163: =VLOOKUP(B163,'Wind Capacity Factor'!$B$6:$L$276,8,FALSE) -> 0.1850094619 | U163: =IF(INDEX('Wind Capacity Factor'!$A$6:$B$258,MATCH('Country Parameters'!B163,'Wind Capacity Factor'!$B$6:$B$258,0),1)="*","*","") -> *
B164: Somalia | C164: Somalia | D164: SO | E164: SO | F164: SOM | G164: 706 | H164: 10 | I164: 49 | J164: Africa | K164: 720.023585 | L164: 974.5395 | M164: 833.9727 | N164: 456.774 | O164: 597.6623 | P164: 720.023585 | Q164: 6.13 | R164: 0.07571494693 | S164: =IF(ISNUMBER(MATCH(B164,'Grid EFs'!$B$4:$B$157,0)),"","*") ->  | T164: =VLOOKUP(B164,'Wind Capacity Factor'!$B$6:$L$276,8,FALSE) -> 0.246106885 | U164: =IF(INDEX('Wind Capacity Factor'!$A$6:$B$258,MATCH('Country Parameters'!B164,'Wind Capacity Factor'!$B$6:$B$258,0),1)="*","*","") -> *
B165: South Africa | C165: Republic of South Africa | D165: SF | E165: ZA | F165: ZAF | G165: 710 | H165: -29 | I165: 24 | J165: Africa | K165: 950.572973 | L165: 972.8592 | M165: 762.3608 | N165: 456.774 | O165: 913.5268 | P165: 950.572973 | Q165: 5.77 | R165: 0.06563224303 | S165: =IF(ISNUMBER(MATCH(B165,'Grid EFs'!$B$4:$B$157,0)),"","*") ->  | T165: =VLOOKUP(B165,'Wind Capacity Factor'!$B$6:$L$276,8,FALSE) -> 0.246106885 | U165: =IF(INDEX('Wind Capacity Factor'!$A$6:$B$258,MATCH('Country Parameters'!B165,'Wind Capacity Factor'!$B$6:$B$258,0),1)="*","*","") -> *
B166: South Sudan | C166: Republic of South Sudan | D166: OD | E166: SS | F166: SSD | G166: 728 | H166: 8 | I166: 30 | J166: Africa | K166: 720.023585 | L166: 974.5395 | M166: 833.9727 | N166: 456.774 | O166: 597.6623 | P166: 720.023585 | Q166: 5.66 | R166: 0.05084745763 | T166: =VLOOKUP(B166,'Wind Capacity Factor'!$B$6:$L$276,8,FALSE) -> 0.246106885
B167: Spain | C167: Kingdom of Spain | D167: SP | E167: ES | F167: ESP | G167: 724 | H167: 40 | I167: -4 | J167: Europe | K167: 305.3554 | L167: 927.6879 | M167: 708.7365 | N167: 356.8221 | O167: 305.3554 | P167: N/A | Q167: 4.4 | R167: 0.06495414982 | S167: =IF(ISNUMBER(MATCH(B167,'Grid EFs'!$B$4:$B$157,0)),"","*") ->  | T167: =VLOOKUP(B167,'Wind Capacity Factor'!$B$6:$L$276,8,FALSE) -> 0.2479687633 | U167: =IF(INDEX('Wind Capacity Factor'!$A$6:$B$258,MATCH('Country Parameters'!B167,'Wind Capacity Factor'!$B$6:$B$258,0),1)="*","*","") -> 
B168: Sri Lanka | C168: Democratic Socialist Republic of Sri Lanka | D168: CE | E168: LK | F168: LKA | G168: 144 | H168: 7 | I168: 81 | J168: Asia | K168: 715.4157143 | L168: 1209.5292 | M168: 677.3915 | N168: 451.9748 | O168: 542.0918 | P168: 715.4157143 | Q168: 5.03 | R168: 0.08009601849 | S168: =IF(ISNUMBER(MATCH(B168,'Grid EFs'!$B$4:$B$157,0)),"","*") ->  | T168: =VLOOKUP(B168,'Wind Capacity Factor'!$B$6:$L$276,8,FALSE) -> 0.2663622527 | U168: =IF(INDEX('Wind Capacity Factor'!$A$6:$B$258,MATCH('Country Parameters'!B168,'Wind Capacity Factor'!$B$6:$B$258,0),1)="*","*","") -> 
B169: Sudan | C169: Republic of the Sudan | D169: SU | E169: SD | F169: SDN | G169: 736 | H169: 15 | I169: 30 | J169: Africa | K169: 305 | L169: 974.5395 | M169: 676.4885 | N169: 456.774 | O169: 201.9572 | P169: 305 | Q169: 6.77 | R169: 0.2290937378 | S169: =IF(ISNUMBER(MATCH(B169,'Grid EFs'!$B$4:$B$157,0)),"","*") ->  | T169: =VLOOKUP(B169,'Wind Capacity Factor'!$B$6:$L$276,8,FALSE) -> 0.246106885 | U169: =IF(INDEX('Wind Capacity Factor'!$A$6:$B$258,MATCH('Country Parameters'!B169,'Wind Capacity Factor'!$B$6:$B$258,0),1)="*","*","") -> *
B170: Suriname | C170: Republic of Suriname | D170: NS | E170: SR | F170: SUR | G170: 740 | H170: 4 | I170: -56 | J170: South America | K170: 472.4409815 | L170: 1240.488 | M170: 671.3559 | N170: 502.8366 | O170: 200.8047 | P170: 472.4409815 | Q170: 5.28 | R170: 0.08380835472 | S170: =IF(ISNUMBER(MATCH(B170,'Grid EFs'!$B$4:$B$157,0)),"","*") -> * | T170: =VLOOKUP(B170,'Wind Capacity Factor'!$B$6:$L$276,8,FALSE) -> 0.2363786168 | U170: =IF(INDEX('Wind Capacity Factor'!$A$6:$B$258,MATCH('Country Parameters'!B170,'Wind Capacity Factor'!$B$6:$B$258,0),1)="*","*","") -> *
B171: Swaziland | C171: Kingdom of Swaziland | D171: WZ | E171: SZ | F171: SWZ | G171: 748 | H171: -26.5 | I171: 31.5 | J171: Africa | K171: 720.023585 | L171: 974.5395 | M171: 833.9727 | N171: 456.774 | O171: 597.6623 | P171: 720.023585 | Q171: 4.81 | R171: 0.07571494693 | S171: =IF(ISNUMBER(MATCH(B171,'Grid EFs'!$B$4:$B$157,0)),"","*") ->  | T171: =VLOOKUP(B171,'Wind Capacity Factor'!$B$6:$L$276,8,FALSE) -> 0.246106885 | U171: =IF(INDEX('Wind Capacity Factor'!$A$6:$B$258,MATCH('Country Parameters'!B171,'Wind Capacity Factor'!$B$6:$B$258,0),1)="*","*","") -> *
B172: Sweden | C172: Kingdom of Sweden | D172: SW | E172: SE | F172: SWE | G172: 752 | H172: 62 | I172: 15 | J172: Europe | K172: 12.3579 | L172: 704.7671 | M172: 398.2251 | N172: 214.3813 | O172: 12.3579 | P172: N/A | Q172: 2.54 | R172: 0.05760729438 | S172: =IF(ISNUMBER(MATCH(B172,'Grid EFs'!$B$4:$B$157,0)),"","*") ->  | T172: =VLOOKUP(B172,'Wind Capacity Factor'!$B$6:$L$276,8,FALSE) -> 0.2183455351 | U172: =IF(INDEX('Wind Capacity Factor'!$A$6:$B$258,MATCH('Country Parameters'!B172,'Wind Capacity Factor'!$B$6:$B$258,0),1)="*","*","") -> 
B173: Switzerland | C173: Swiss Confederation | D173: SZ | E173: CH | F173: CHE | G173: 756 | H173: 47 | I173: 8 | J173: Europe | K173: 28.0363 | L173: 917.4832 | M173: 424.6532 | N173: 257.9893 | O173: 28.0363 | P173: N/A | Q173: 3.37 | R173: 0.0563051175 | S173: =IF(ISNUMBER(MATCH(B173,'Grid EFs'!$B$4:$B$157,0)),"","*") ->  | T173: =VLOOKUP(B173,'Wind Capacity Factor'!$B$6:$L$276,8,FALSE) -> 0.200913242 | U173: =IF(INDEX('Wind Capacity Factor'!$A$6:$B$258,MATCH('Country Parameters'!B173,'Wind Capacity Factor'!$B$6:$B$258,0),1)="*","*","") -> 
B174: Syria | C174: Syrian Arab Republic | D174: SY | E174: SY | F174: SYR | G174: 760 | H174: 35 | I174: 38 | J174: Asia | K174: 679.1801887 | L174: 1144.2709 | M174: 801.8403 | N174: 542.9673 | O174: 582.416 | P174: 679.1801887 | Q174: 5 | R174: 0.09055960394 | S174: =IF(ISNUMBER(MATCH(B174,'Grid EFs'!$B$4:$B$157,0)),"","*") -> * | T174: =VLOOKUP(B174,'Wind Capacity Factor'!$B$6:$L$276,8,FALSE) -> 0.2271048199 | U174: =IF(INDEX('Wind Capacity Factor'!$A$6:$B$258,MATCH('Country Parameters'!B174,'Wind Capacity Factor'!$B$6:$B$258,0),1)="*","*","") -> *
B175: Tajikistan | C175: Republic of Tajikistan | D175: TI | E175: TJ | F175: TJK | G175: 762 | H175: 39 | I175: 71 | J175: Asia | K175: 846.5339208 | L175: 919.0507 | M175: 785.5197 | N175: 293.8376 | O175: 1.281 | P175: 846.5339208 | Q175: 4.13 | R175: 0.08414453656 | S175: =IF(ISNUMBER(MATCH(B175,'Grid EFs'!$B$4:$B$157,0)),"","*") ->  | T175: =VLOOKUP(B175,'Wind Capacity Factor'!$B$6:$L$276,8,FALSE) -> 0.2218523463 | U175: =IF(INDEX('Wind Capacity Factor'!$A$6:$B$258,MATCH('Country Parameters'!B175,'Wind Capacity Factor'!$B$6:$B$258,0),1)="*","*","") -> *
B176: Tanzania | C176: United Republic of Tanzania | D176: TZ | E176: TZ | F176: TZA | G176: 834 | H176: -6 | I176: 35 | J176: Africa | K176: 498.3 | L176: 974.5395 | M176: 1051.8036 | N176: 542.3939 | O176: 486.8059 | P176: 498.3 | Q176: 6.03 | R176: 0.1029420815 | S176: =IF(ISNUMBER(MATCH(B176,'Grid EFs'!$B$4:$B$157,0)),"","*") ->  | T176: =VLOOKUP(B176,'Wind Capacity Factor'!$B$6:$L$276,8,FALSE) -> 0.246106885 | U176: =IF(INDEX('Wind Capacity Factor'!$A$6:$B$258,MATCH('Country Parameters'!B176,'Wind Capacity Factor'!$B$6:$B$258,0),1)="*","*","") -> *
B177: Thailand | C177: Kingdom of Thailand | D177: TH | E177: TH | F177: THA | G177: 764 | H177: 15 | I177: 100 | J177: Asia | K177: 548.3403846 | L177: 1011.3687 | M177: 687.8129 | N177: 409.8274 | O177: 500.424 | P177: 548.3403846 | Q177: 5.19 | R177: 0.05491050395 | S177: =IF(ISNUMBER(MATCH(B177,'Grid EFs'!$B$4:$B$157,0)),"","*") ->  | T177: =VLOOKUP(B177,'Wind Capacity Factor'!$B$6:$L$276,8,FALSE) -> 0.1437133072 | U177: =IF(INDEX('Wind Capacity Factor'!$A$6:$B$258,MATCH('Country Parameters'!B177,'Wind Capacity Factor'!$B$6:$B$258,0),1)="*","*","") -> 
B178: Timor-Leste | C178: Democratic Republic of Timor-Leste | D178: TT | E178: TL | F178: TLS | G178: 626 | H178: -8.55 | I178: 125.5167 | J178: Oceana | K178: 846.5339208 | L178: 1144.2709 | M178: 843.0648 | N178: 451.9748 | O178: 736.1338 | P178: 846.5339208 | Q178: 5.64 | R178: 0.05200178566 | S178: =IF(ISNUMBER(MATCH(B178,'Grid EFs'!$B$4:$B$157,0)),"","*") ->  | T178: =VLOOKUP(B178,'Wind Capacity Factor'!$B$6:$L$276,8,FALSE) -> 0.1850094619 | U178: =IF(INDEX('Wind Capacity Factor'!$A$6:$B$258,MATCH('Country Parameters'!B178,'Wind Capacity Factor'!$B$6:$B$258,0),1)="*","*","") -> *
B179: Togo | C179: Togolese Republic | D179: TO | E179: TG | F179: TGO | G179: 768 | H179: 8 | I179: 1.1667 | J179: Africa | K179: 720.023585 | L179: 974.5395 | M179: 1118.4118 | N179: 456.774 | O179: 171.2883 | P179: 720.023585 | Q179: 5.3 | R179: 0.07571494693 | S179: =IF(ISNUMBER(MATCH(B179,'Grid EFs'!$B$4:$B$157,0)),"","*") ->  | T179: =VLOOKUP(B179,'Wind Capacity Factor'!$B$6:$L$276,8,FALSE) -> 0.246106885 | U179: =IF(INDEX('Wind Capacity Factor'!$A$6:$B$258,MATCH('Country Parameters'!B179,'Wind Capacity Factor'!$B$6:$B$258,0),1)="*","*","") -> *
B180: Tonga | C180: Kingdom of Tonga | D180: TN | E180: TO | F180: TON | G180: 776 | H180: -20 | I180: -175 | J180: Oceana | K180: 736.1338 | L180: 1144.2709 | M180: 843.0648 | N180: 451.9748 | O180: 736.1338 | P180: N/A | Q180: 5.39 | R180: 0.05200178566 | S180: =IF(ISNUMBER(MATCH(B180,'Grid EFs'!$B$4:$B$157,0)),"","*") ->  | T180: =VLOOKUP(B180,'Wind Capacity Factor'!$B$6:$L$276,8,FALSE) -> 0.1850094619 | U180: =IF(INDEX('Wind Capacity Factor'!$A$6:$B$258,MATCH('Country Parameters'!B180,'Wind Capacity Factor'!$B$6:$B$258,0),1)="*","*","") -> *
B181: Trinidad and Tobago | C181: Republic of Trinidad and Tobago | D181: TD | E181: TT | F181: TTO | G181: 780 | H181: 11 | I181: -61 | J181: North America | K181: 472.4409815 | L181: 1240.488 | M181: 789.5417 | N181: 676.0725 | O181: 676.3707 | P181: 472.4409815 | Q181: 6.1 | R181: 0.02796056255 | S181: =IF(ISNUMBER(MATCH(B181,'Grid EFs'!$B$4:$B$157,0)),"","*") -> * | T181: =VLOOKUP(B181,'Wind Capacity Factor'!$B$6:$L$276,8,FALSE) -> 0.2363786168 | U181: =IF(INDEX('Wind Capacity Factor'!$A$6:$B$258,MATCH('Country Parameters'!B181,'Wind Capacity Factor'!$B$6:$B$258,0),1)="*","*","") -> *
B182: Tunisia | C182: Tunisian Republic | D182: TS | E182: TN | F182: TUN | G182: 788 | H182: 34 | I182: 9 | J182: Africa | K182: 553.64 | L182: 974.5395 | M182: 833.9727 | N182: 473.0899 | O182: 459.0289 | P182: 553.64 | Q182: 4.84 | R182: 0.08293450109 | S182: =IF(ISNUMBER(MATCH(B182,'Grid EFs'!$B$4:$B$157,0)),"","*") ->  | T182: =VLOOKUP(B182,'Wind Capacity Factor'!$B$6:$L$276,8,FALSE) -> 0.2151387425 | U182: =IF(INDEX('Wind Capacity Factor'!$A$6:$B$258,MATCH('Country Parameters'!B182,'Wind Capacity Factor'!$B$6:$B$258,0),1)="*","*","") -> 
B183: Turkey | C183: Republic of Turkey | D183: TU | E183: TR | F183: TUR | G183: 792 | H183: 39 | I183: 35 | J183: Asia | K183: 459.1454 | L183: 1024.619 | M183: 642.7138 | N183: 373.3943 | O183: 459.1454 | P183: N/A | Q183: 4.45 | R183: 0.08546091569 | S183: =IF(ISNUMBER(MATCH(B183,'Grid EFs'!$B$4:$B$157,0)),"","*") ->  | T183: =VLOOKUP(B183,'Wind Capacity Factor'!$B$6:$L$276,8,FALSE) -> 0.2893381365 | U183: =IF(INDEX('Wind Capacity Factor'!$A$6:$B$258,MATCH('Country Parameters'!B183,'Wind Capacity Factor'!$B$6:$B$258,0),1)="*","*","") -> 
B184: Turkmenistan | C184: Turkmenistan | D184: TX | E184: TM | F184: TKM | G184: 795 | H184: 40 | I184: 60 | J184: Asia | K184: 846.5339208 | L184: 919.0507 | M184: 785.5197 | N184: 986.7447 | O184: 986.7447 | P184: 846.5339208 | Q184: 4.45 | R184: 0.08153977109 | S184: =IF(ISNUMBER(MATCH(B184,'Grid EFs'!$B$4:$B$157,0)),"","*") ->  | T184: =VLOOKUP(B184,'Wind Capacity Factor'!$B$6:$L$276,8,FALSE) -> 0.2218523463 | U184: =IF(INDEX('Wind Capacity Factor'!$A$6:$B$258,MATCH('Country Parameters'!B184,'Wind Capacity Factor'!$B$6:$B$258,0),1)="*","*","") -> *
B185: Tuvalu | C185: Tuvalu | D185: TV | E185: TV | F185: TUV | G185: 798 | H185: -8 | I185: 178 | J185: Oceana | K185: 736.1338 | L185: 1144.2709 | M185: 843.0648 | N185: 451.9748 | O185: 736.1338 | P185: N/A | Q185: 5.31 | R185: 0.05200178566 | S185: =IF(ISNUMBER(MATCH(B185,'Grid EFs'!$B$4:$B$157,0)),"","*") -> * | T185: =VLOOKUP(B185,'Wind Capacity Factor'!$B$6:$L$276,8,FALSE) -> 0.1850094619 | U185: =IF(INDEX('Wind Capacity Factor'!$A$6:$B$258,MATCH('Country Parameters'!B185,'Wind Capacity Factor'!$B$6:$B$258,0),1)="*","*","") -> *
B186: Uganda | C186: Republic of Uganda | D186: UG | E186: UG | F186: UGA | G186: 800 | H186: 1 | I186: 32 | J186: Africa | K186: 486.7371429 | L186: 974.5395 | M186: 833.9727 | N186: 456.774 | O186: 597.6623 | P186: 486.7371429 | Q186: 5.6 | R186: 0.07571494693 | S186: =IF(ISNUMBER(MATCH(B186,'Grid EFs'!$B$4:$B$157,0)),"","*") ->  | T186: =VLOOKUP(B186,'Wind Capacity Factor'!$B$6:$L$276,8,FALSE) -> 0.246106885 | U186: =IF(INDEX('Wind Capacity Factor'!$A$6:$B$258,MATCH('Country Parameters'!B186,'Wind Capacity Factor'!$B$6:$B$258,0),1)="*","*","") -> *
B187: Ukraine | C187: Ukraine | D187: UP | E187: UA | F187: UKR | G187: 804 | H187: 49 | I187: 32 | J187: Europe | K187: 459.9758 | L187: 1057.3423 | M187: 750.4111 | N187: 371.6543 | O187: 459.9758 | P187: N/A | Q187: 3.24 | R187: 0.07460462749 | S187: =IF(ISNUMBER(MATCH(B187,'Grid EFs'!$B$4:$B$157,0)),"","*") ->  | T187: =VLOOKUP(B187,'Wind Capacity Factor'!$B$6:$L$276,8,FALSE) -> 0.1191185229 | U187: =IF(INDEX('Wind Capacity Factor'!$A$6:$B$258,MATCH('Country Parameters'!B187,'Wind Capacity Factor'!$B$6:$B$258,0),1)="*","*","") -> 
B188: United Arab Emirates | C188: United Arab Emirates | D188: AE | E188: AE | F188: ARE | G188: 784 | H188: 24 | I188: 54 | J188: Asia | K188: 676.37 | L188: 1144.2709 | M188: 1195.7222 | N188: 588.9005 | O188: 597.2759 | P188: 676.37 | Q188: 5.61 | R188: 0.05870511378 | S188: =IF(ISNUMBER(MATCH(B188,'Grid EFs'!$B$4:$B$157,0)),"","*") -> * | T188: =VLOOKUP(B188,'Wind Capacity Factor'!$B$6:$L$276,8,FALSE) -> 0.2271048199 | U188: =IF(INDEX('Wind Capacity Factor'!$A$6:$B$258,MATCH('Country Parameters'!B188,'Wind Capacity Factor'!$B$6:$B$258,0),1)="*","*","") -> *
B189: United Kingdom | C189: United Kingdom of Great Britain and Northern Ireland | D189: UK | E189: GB | F189: GBR | G189: 826 | H189: 54 | I189: -2 | J189: Europe | K189: 479.4783 | L189: 892.9789 | M189: 761.7866 | N189: 386.8966 | O189: 479.4783 | P189: N/A | Q189: 2.61 | R189: 0.0596214388 | S189: =IF(ISNUMBER(MATCH(B189,'Grid EFs'!$B$4:$B$157,0)),"","*") ->  | T189: =VLOOKUP(B189,'Wind Capacity Factor'!$B$6:$L$276,8,FALSE) -> 0.2515037055 | U189: =IF(INDEX('Wind Capacity Factor'!$A$6:$B$258,MATCH('Country Parameters'!B189,'Wind Capacity Factor'!$B$6:$B$258,0),1)="*","*","") -> 
B190: United States | C190: United States of America | D190: US | E190: US | F190: USA | G190: 840 | H190: 38 | I190: -97 | J190: North America | K190: 480.6861 | L190: 912.4533 | M190: 671.133 | N190: 403.0654 | O190: 480.6861 | P190: N/A | Q190: 4.3 | R190: 0.05427651724 | S190: =IF(ISNUMBER(MATCH(B190,'Grid EFs'!$B$4:$B$157,0)),"","*") ->  | T190: =VLOOKUP(B190,'Wind Capacity Factor'!$B$6:$L$276,8,FALSE) -> 0.2721213843 | U190: =IF(INDEX('Wind Capacity Factor'!$A$6:$B$258,MATCH('Country Parameters'!B190,'Wind Capacity Factor'!$B$6:$B$258,0),1)="*","*","") -> 
B191: Uruguay | C191: Oriental Republic of Uruguay | D191: UY | E191: UY | F191: URY | G191: 858 | H191: -33 | I191: -56 | J191: South America | K191: 482.0636364 | L191: 1240.488 | M191: 714.8782 | N191: 496 | O191: 273.4443 | P191: 482.0636364 | Q191: 4.6 | R191: 0.07753337883 | S191: =IF(ISNUMBER(MATCH(B191,'Grid EFs'!$B$4:$B$157,0)),"","*") -> * | T191: =VLOOKUP(B191,'Wind Capacity Factor'!$B$6:$L$276,8,FALSE) -> 0.2262720157 | U191: =IF(INDEX('Wind Capacity Factor'!$A$6:$B$258,MATCH('Country Parameters'!B191,'Wind Capacity Factor'!$B$6:$B$258,0),1)="*","*","") -> 
B192: Uzbekistan | C192: Republic of Uzbekistan | D192: UZ | E192: UZ | F192: UZB | G192: 860 | H192: 41 | I192: 64 | J192: Asia | K192: 584.5 | L192: 1565.6725 | M192: 783.7481 | N192: 643.0795 | O192: 546.1095 | P192: 584.5 | Q192: 4.32 | R192: 0.06529240199 | S192: =IF(ISNUMBER(MATCH(B192,'Grid EFs'!$B$4:$B$157,0)),"","*") ->  | T192: =VLOOKUP(B192,'Wind Capacity Factor'!$B$6:$L$276,8,FALSE) -> 0.2218523463 | U192: =IF(INDEX('Wind Capacity Factor'!$A$6:$B$258,MATCH('Country Parameters'!B192,'Wind Capacity Factor'!$B$6:$B$258,0),1)="*","*","") -> *
B193: Vanuatu | C193: Republic of Vanuatu | D193: NH | E193: VU | F193: VUT | G193: 548 | H193: -16 | I193: 167 | J193: Oceana | K193: 736.1338 | L193: 1144.2709 | M193: 843.0648 | N193: 451.9748 | O193: 736.1338 | P193: N/A | Q193: 5.24 | R193: 0.05200178566 | S193: =IF(ISNUMBER(MATCH(B193,'Grid EFs'!$B$4:$B$157,0)),"","*") -> * | T193: =VLOOKUP(B193,'Wind Capacity Factor'!$B$6:$L$276,8,FALSE) -> 0.1850094619 | U193: =IF(INDEX('Wind Capacity Factor'!$A$6:$B$258,MATCH('Country Parameters'!B193,'Wind Capacity Factor'!$B$6:$B$258,0),1)="*","*","") -> *
B194: Venezuela | C194: Bolivarian Republic of Venezuela | D194: VE | E194: VE | F194: VEN | G194: 862 | H194: 8 | I194: -66 | J194: South America | K194: 472.4409815 | L194: 1240.488 | M194: 942.3051 | N194: 606.2665 | O194: 265.3929 | P194: 472.4409815 | Q194: 5.37 | R194: 0.0997012407 | S194: =IF(ISNUMBER(MATCH(B194,'Grid EFs'!$B$4:$B$157,0)),"","*") -> * | T194: =VLOOKUP(B194,'Wind Capacity Factor'!$B$6:$L$276,8,FALSE) -> 0.2363786168 | U194: =IF(INDEX('Wind Capacity Factor'!$A$6:$B$258,MATCH('Country Parameters'!B194,'Wind Capacity Factor'!$B$6:$B$258,0),1)="*","*","") -> *
B195: Vietnam | C195: Socialist Republic of Vietnam | D195: VM | E195: VN | F195: VNM | G195: 704 | H195: 16 | I195: 106 | J195: Asia | K195: 602.2790121 | L195: 987.5522 | M195: 1083.2944 | N195: 403.939 | O195: 351.215 | P195: 602.2790121 | Q195: 4.52 | R195: 0.06764094858 | S195: =IF(ISNUMBER(MATCH(B195,'Grid EFs'!$B$4:$B$157,0)),"","*") -> * | T195: =VLOOKUP(B195,'Wind Capacity Factor'!$B$6:$L$276,8,FALSE) -> 0.3203711887 | U195: =IF(INDEX('Wind Capacity Factor'!$A$6:$B$258,MATCH('Country Parameters'!B195,'Wind Capacity Factor'!$B$6:$B$258,0),1)="*","*","") -> 
B196: Yemen | C196: Republic of Yemen | D196: YM | E196: YE | F196: YEM | G196: 887 | H196: 15 | I196: 48 | J196: Asia | K196: 679.1801887 | L196: 1144.2709 | M196: 700.9254 | N196: 551.4831 | O196: 650.4753 | P196: 679.1801887 | Q196: 6.46 | R196: 0.1090084458 | S196: =IF(ISNUMBER(MATCH(B196,'Grid EFs'!$B$4:$B$157,0)),"","*") -> * | T196: =VLOOKUP(B196,'Wind Capacity Factor'!$B$6:$L$276,8,FALSE) -> 0.2271048199 | U196: =IF(INDEX('Wind Capacity Factor'!$A$6:$B$258,MATCH('Country Parameters'!B196,'Wind Capacity Factor'!$B$6:$B$258,0),1)="*","*","") -> *
B197: Zambia | C197: Republic of Zambia | D197: ZA | E197: ZM | F197: ZMB | G197: 894 | H197: -15 | I197: 30 | J197: Africa | K197: =IF(P197="N/A",O197,P197) -> 964.4 | L197: 974.5395 | M197: 871.1944 | N197: 456.774 | O197: 2.6467 | P197: 964.4 | Q197: 5.69 | R197: 0.0865683864 | S197: =IF(ISNUMBER(MATCH(B197,'Grid EFs'!$B$4:$B$157,0)),"","*") ->  | T197: =VLOOKUP(B197,'Wind Capacity Factor'!$B$6:$L$276,8,FALSE) -> 0.246106885 | U197: =IF(INDEX('Wind Capacity Factor'!$A$6:$B$258,MATCH('Country Parameters'!B197,'Wind Capacity Factor'!$B$6:$B$258,0),1)="*","*","") -> *
B198: Zimbabwe | C198: Republic of Zimbabwe | D198: ZI | E198: ZW | F198: ZWE | G198: 716 | H198: -20 | I198: 30 | J198: Africa | K198: =IF(P198="N/A",O198,P198) -> 720.023585 | L198: 903.095 | M198: 2116.7407 | N198: 456.774 | O198: 365.1218 | P198: 720.023585 | Q198: 5.71 | R198: 0.09424919 | S198: =IF(ISNUMBER(MATCH(B198,'Grid EFs'!$B$4:$B$157,0)),"","*") ->  | T198: =VLOOKUP(B198,'Wind Capacity Factor'!$B$6:$L$276,8,FALSE) -> 0.246106885 | U198: =IF(INDEX('Wind Capacity Factor'!$A$6:$B$258,MATCH('Country Parameters'!B198,'Wind Capacity Factor'!$B$6:$B$258,0),1)="*","*","") -> *
B200: Country Dataset Sources
B201: Source: US. State Department List of Countries http://www.state.gov/s/inr/rls/4250.htm#note3
... 25 more rows

Sheet Wind Capacity Factor (hidden)
B2: Wind Electricity Capacity Factor (%)
D5: 2007 | E5: 2008 | F5: 2009 | G5: 2010 | H5: 2011 | I5: 2012 | J5: Average | K5: Weighted Average | O5: Used Regional Values for Missing Data
B6: North America | D6: 0.2333978754 | E6: 0.2500565068 | F6: 0.2433588399 | G6: 0.2756361448 | H6: 0.312829409 | I6: 0.2661571081 | J6: 0.2635726473 | K6: 0.2698670193 | L6: -0.02388097566 | O6: Regional Average
A7: =IF(I7=$I$6,"*","") -> * | B7: Bermuda | I7: 0.2661571081 | J7: 0.2635726473
B8: Canada | D8: 0.1876116736 | E8: 0.1811041784 | F8: 0.2309887333 | G8: 0.2750143018 | H8: 0.4268517434 | I8: 0.2082412726 | J8: 0.2516353172 | K8: 0.2689306211 | L8: -0.0687316237
A9: * | B9: Greenland | I9: 0.2661571081 | J9: 0.2635726473
B10: Mexico | D10: 0.296125503 | E10: 0.304037253 | F10: 0.1432347993 | G10: 0.2485735609 | H10: 0.2626900372 | I10: 0.2706452408 | J10: 0.2542177324 | K10: 0.2493941406 | L10: 0.01897425391
A11: * | B11: Saint Pierre and Miquelon | D11: 0 | E11: 0 | F11: 0 | G11: 0 | H11: 0 | I11: 0.2661571081 | J11: 0 | K11: 0
B12: United States | D12: 0.2381239236 | E12: 0.2563754684 | F12: 0.2459336049 | G12: 0.2760968793 | H12: 0.3003500734 | I12: 0.2721213843 | J12: 0.2648335556 | K12: 0.2702850118 | L12: -0.02058446153
B13: Central & South America | D13: 0.285619443 | E13: 0.2351310935 | F13: 0.2170936442 | G13: 0.262567456 | H13: 0.246168251 | I13: 0.2363786168 | J13: 0.2471597508 | K13: 0.2427869978 | L13: 0.01769201075
A14: =IF(I14=$I$13,"*","") ->  | B14: Antarctica | E14: 0.3805175038 | F14: 0.4566210046 | G14: 0.4566210046 | H14: 0.2853881279 | I14: 0.2853881279 | J14: 0.3729071537 | K14: 0.393638797 | L14: -0.05559465165
A15: * | B15: Antigua and Barbuda | I15: 0.2363786168 | J15: 0.2471597508
B16: Argentina | D16: 0.2486953686 | E16: 0.1598173516 | F16: 0.1369863014 | G16: 0.05707762557 | H16: 0.3444862003 | I16: 0.2989587486 | J16: 0.207670266 | K16: 0.2545845611 | L16: -0.2259076179
B17: Aruba | F17: 0.1141552511 | G17: 0.3805175038 | H17: 0.3424657534 | I17: 0.3424657534 | J17: 0.2949010654 | K17: 0.2949010654 | L17: 0
A18: * | B18: Bahamas, The | I18: 0.2363786168 | J18: 0.2471597508
A19: * | B19: Barbados | I19: 0.2363786168 | J19: 0.2471597508
B20: Belize | D20: 0.3424657534 | E20: 0.3424657534 | F20: 0.3424657534 | G20: 0.3424657534 | H20: 0.3424657534 | I20: 0.3424657534 | J20: 0.3424657534 | K20: 0.3424657534 | L20: 0
A21: * | B21: Bolivia | I21: 0.2363786168 | J21: 0 | K21: 0
B22: Brazil | D22: 0.2980977206 | E22: 0.2307921382 | F22: 0.2355403349 | G22: 0.2680862802 | H22: 0.2393191848 | I22: 0.2298580615 | J22: 0.2502822867 | K22: 0.2412221375 | L22: 0.0361997219
A23: * | B23: Cayman Islands | I23: 0.2363786168 | J23: 0.2471597508
B24: Chile | D24: 0.05136986301 | E24: 0.2168949772 | F24: 0.05532677816 | G24: 0.2325125361 | H24: 0.2059757792 | I24: 0.2277536474 | J24: 0.1649722635 | K24: 0.1812876108 | L24: -0.09889751707
B25: Colombia | D25: 0.3107559614 | E25: 0.3161222339 | F25: 0.3395386957 | G25: 0.2283105023 | H25: 0.3453928111 | I25: 0.3219763494 | J25: 0.3103494256 | K25: 0.310344146 | L25: 1.701206836e-05
B26: Costa Rica | D26: 0.3930202218 | E26: 0.3228962818 | F26: 0.3101217656 | G26: 0.3415144597 | H26: 0.3416009409 | I26: 0.4067069676 | J26: 0.3526434396 | K26: 0.3539469844 | L26: -0.003696495286
B27: Cuba | D27: 0.2853881279 | E27: 0.3170979198 | F27: 0.3170979198 | G27: 0.2927057722 | H27: 0.3414900675 | I27: 0.1658666042 | J27: 0.2866077352 | K27: 0.2815090659 | L27: 0.01778971287
A28: * | B28: Dominica | E28: 0 | F28: 0.2853881279 | G28: 0.00815394651 | H28: 0.00815394651 | I28: 0.2363786168 | J28: 0.06192469377 | K28: 0.01056993066 | L28: 0.8293099244
B29: Dominican Republic | E29: 0 | F29: 0.2853881279 | G29: 0.2853881279 | H29: 0.3493842535 | I29: 0.3493842535 | J29: 0.2539089525 | K29: 0.3479506904 | L29: -0.3703758254
A30: * | B30: Ecuador | D30: 0.03805175038 | E30: 0.08561643836 | F30: 0.1141552511 | G30: 0.1369863014 | H30: 0.1369863014 | I30: 0.2363786168 | J30: 0.08730206414 | K30: 0.0503626108 | L30: 0.4231223363
A31: * | B31: El Salvador | I31: 0.2363786168 | J31: 0.2471597508
B32: Falkland Islands (Islas Malvinas) | D32: 0.03424657534 | E32: 0.2283105023 | F32: 0.2283105023 | G32: 0.2283105023 | H32: 0.2283105023 | I32: 0.2283105023 | J32: 0.1959665145 | K32: 0.1959665145 | L32: 1.416342771e-16
A33: * | B33: French Guiana | I33: 0.2363786168 | J33: 0.2471597508
A34: * | B34: Grenada | D34: 0 | E34: 0 | F34: 0 | G34: 0 | H34: 0 | I34: 0.2363786168 | J34: 0 | K34: 0
B35: Guadeloupe | D35: 0.271798217 | E35: 0.271798217 | F35: 0.271798217 | G35: 0.271798217 | H35: 0.271798217 | I35: 0.2129762148 | J35: 0.26199455 | K35: 0.2598374457 | L35: 0.008233393705
A36: * | B36: Guatemala | I36: 0.2363786168 | J36: 0.2471597508
A37: * | B37: Guyana | D37: 0 | E37: 0 | F37: 0 | G37: 0 | H37: 0 | I37: 0.2363786168 | J37: 0 | K37: 0
A38: * | B38: Haiti | I38: 0.2363786168 | J38: 0.2471597508
B39: Honduras | H39: 0 | I39: 0.3782791655 | J39: 0.1891395828 | K39: 0.1891395828 | L39: 0
B40: Jamaica | D40: 0.2826701457 | E40: 0.2663622527 | F40: 0.2267730578 | G40: 0.2037113909 | H40: 0.3446196261 | I40: 0.2560715277 | J40: 0.2633680002 | K40: 0.2691465271 | L40: -0.02194088472
B41: Martinique | D41: 0.2075550021 | E41: 0.2075550021 | F41: 0.2075550021 | G41: 0.2075550021 | H41: 0.2075550021 | I41: 0.2075550021 | J41: 0.2075550021 | K41: 0.2075550021 | L41: 1.337263633e-16
A42: * | B42: Montserrat | I42: 0.2363786168 | J42: 0.2471597508
B43: Netherlands Antilles | D43: 0.2853881279 | E43: 0.2853881279 | F43: 0.2853881279 | G43: 0.2818648176 | H43: 0.2446183953 | I43: 0.2283105023 | J43: 0.2684930165 | K43: 0.2628286672 | L43: 0.0210968214
B44: Nicaragua | F44: 0.3139269406 | G44: 0.2899180981 | H44: 0.3388417772 | I44: 0.258022143 | J44: 0.3001772397 | K44: 0.2879493034 | L44: 0.04073572131
A45: * | B45: Panama | I45: 0.2363786168 | J45: 0.2471597508
A46: * | B46: Paraguay | I46: 0.2363786168 | J46: 0.2471597508
B47: Peru | D47: 0.1630789302 | E47: 0.1630789302 | F47: 0.1630789302 | G47: 0.1630789302 | H47: 0.1630789302 | I47: 0.1630789302 | J47: 0.1630789302 | K47: 0.1630789302 | L47: 1.701971897e-16
A48: * | B48: Puerto Rico | I48: 0.2363786168 | J48: 0 | K48: 0
A49: * | B49: Saint Kitts and Nevis | H49: 0 | I49: 0.2363786168 | J49: 0 | K49: 0
A50: * | B50: Saint Lucia | I50: 0.2363786168 | J50: 0.2471597508
A51: * | B51: Saint Vincent/Grenadines | I51: 0.2363786168 | J51: 0.2471597508
A52: * | B52: Suriname | I52: 0.2363786168 | J52: 0.2471597508
A53: * | B53: Trinidad and Tobago | I53: 0.2363786168 | J53: 0.2471597508
A54: * | B54: Turks and Caicos Islands | I54: 0.2363786168 | J54: 0.2471597508
B55: Uruguay | D55: 0 | E55: 0.03424657534 | F55: 0.4794520548 | G55: 0.3881278539 | H55: 0.3451205267 | I55: 0.2262720157 | J55: 0.2455365044 | K55: 0.2897881599 | L55: -0.1802243445
A56: * | B56: Venezuela | I56: 0.2363786168 | J56: 0 | K56: 0
A57: * | B57: Virgin Islands, U.S. | I57: 0.2363786168 | J57: 0.2471597508
A58: * | B58: Virgin Islands, British | I58: 0.2363786168 | J58: 0.2471597508
B59: Europe | D59: 0.2137272207 | E59: 0.2125166583 | F59: 0.2030532281 | G59: 0.2297583348 | H59: 0.2160421327 | I59: 0.2218523463 | J59: 0.2161583202 | K59: 0.2167267019 | L59: -0.002629469486
A60: =IF(I60=$I$59,"*","") -> * | B60: Albania | I60: 0.2218523463 | J60: 0.2161583202
B61: Austria | D61: 0.2402213291 | E61: 0.2323544636 | F61: 0.2260136159 | G61: 0.2401798556 | H61: 0.2204887536 | I61: 0.2040380142 | J61: 0.2272160053 | K61: 0.2256482496 | L61: 0.00689984733
B62: Belgium | D62: 0.2030805374 | E62: 0.224434861 | F62: 0.1894977169 | G62: 0.1617199391 | H62: 0.2494543187 | I62: 0.2253603307 | J62: 0.2089246173 | K62: 0.2121880073 | L62: -0.0156199399
A63: * | B63: Bosnia and Herzegovina | I63: 0.2218523463 | J63: 0.2161583202
B64: Bulgaria | D64: 0.1788432268 | E64: 0.122166146 | F64: 0.1591458501 | G64: 0.1682678053 | H64: 0.1807819852 | I64: 0.2068005366 | J64: 0.1693342583 | K64: 0.1814583218 | L64: -0.07159840891
B65: Croatia | D65: 0.2350255171 | E65: 0.2686005909 | F65: 0.2283105023 | G65: 0.1782874147 | H65: 0.1211265642 | I65: 0.2086504313 | J65: 0.2066668367 | K65: 0.1822522014 | L65: 0.1181352351
B66: Cyprus | G66: 0.1113709767 | H66: 0.09711715396 | I66: 0.1436647718 | J66: 0.1173843008 | K66: 0.1191868876 | L66: -0.01535628445
B67: Czech Republic | D67: 0.1251702315 | E67: 0.1864535769 | F67: 0.1703456597 | G67: 0.179539949 | H67: 0.212768238 | I67: 0.1826484018 | J67: 0.1761543428 | K67: 0.1803712892 | L67: -0.02393892941
B68: Denmark | D68: 0.2620381901 | E68: 0.2500371735 | F68: 0.2203438952 | G68: 0.2344656381 | H68: 0.2823191277 | I68: 0.2816853506 | J68: 0.2551482292 | K68: 0.256225636 | L68: -0.004222669987
B69: Faroe Islands | D69: 0.4388016483 | E69: 0.361120392 | F69: 0.4179195902 | G69: 0.378104466 | H69: 0.3341129302 | I69: 0.3341129302 | J69: 0.3773619928 | K69: 0.3773619928 | L69: -2.94206371e-16
B70: Finland | D70: 0.195101702 | E70: 0.2083532905 | F70: 0.2151088746 | G70: 0.1703636743 | H70: 0.2770702829 | I70: 0.1958079655 | J70: 0.210300965 | K70: 0.2103026167 | L70: -7.854250658e-06
A71: * | B71: Former Czechoslovakia | I71: 0.2218523463 | J71: 0.2161583202
A72: * | B72: Former Serbia and Montenegro | I72: 0.2218523463 | J72: 0.2161583202
A73: * | B73: Former Yugoslavia | I73: 0.2218523463 | J73: 0.2161583202
B74: France | D74: 0.2087704142 | E74: 0.1897806031 | F74: 0.1970934508 | G74: 0.1898588086 | H74: 0.209116559 | I74: 0.2239996395 | J74: 0.2031032459 | K74: 0.2050392561 | L74: -0.009532147852
B75: Germany | D75: 0.2043658427 | E75: 0.1944881444 | F75: 0.1716816421 | G75: 0.1587295587 | H75: 0.1826641149 | I75: 0.1847116901 | J75: 0.1827734988 | K75: 0.1820010836 | L75: 0.004226078906
A76: * | B76: Germany, East | I76: 0.2218523463 | J76: 0.2161583202
A77: * | B77: Germany, West | I77: 0.2218523463 | J77: 0.2161583202
A78: * | B78: Gibraltar | I78: 0.2218523463 | J78: 0.2161583202
B79: Greece | D79: 0.2453123482 | E79: 0.250426686 | F79: 0.2479050415 | G79: 0.2386882524 | H79: 0.2307467424 | I79: 0.251285144 | J79: 0.2440607024 | K79: 0.2435292324 | L79: 0.002177614183
B80: Hungary | D80: 0.2058537316 | E80: 0.1746404961 | F80: 0.1889269406 | G80: 0.2080508673 | H80: 0.2158948254 | I80: 0.2704601335 | J80: 0.2106378324 | K80: 0.2187975647 | L80: -0.03873820849
A81: * | B81: Iceland | I81: 0.2218523463 | J81: 0 | K81: 0
B82: Ireland | D82: 0.2614222009 | E82: 0.2676207736 | F82: 0.2668740246 | G82: 0.2313513549 | H82: 0.3065603924 | I82: 0.261728163 | J82: 0.2659261516 | K82: 0.2671890466 | L82: -0.00474904429
B83: Italy | D83: 0.1704301566 | E83: 0.1574209009 | F83: 0.1530882985 | G83: 0.1798033866 | H83: 0.167322094 | I83: 0.1889480805 | J83: 0.1695021529 | K83: 0.1720697816 | L83: -0.01514805952
A84: * | B84: Kosovo | I84: 0.2218523463 | J84: 0.2218523463
B85: Luxembourg | D85: 0.2087410307 | E85: 0.1619411702 | F85: 0.1672507168 | G85: 0.1426940639 | H85: 0.162354135 | I85: 0.1468549543 | J85: 0.1649726785 | K85: 0.1625318894 | L85: 0.01479511069
A86: * | B86: Macedonia | I86: 0.2218523463 | J86: 0.2161583202
A87: * | B87: Malta | I87: 0.2218523463 | J87: 0.2161583202
A88: * | B88: Montenegro | I88: 0.2218523463 | J88: 0.2161583202
B89: Netherlands | D89: 0.2245227422 | E89: 0.2262919357 | F89: 0.2353488774 | G89: 0.2037648269 | H89: 0.2512302742 | I89: 0.2378592477 | J89: 0.2298363174 | K89: 0.2302767376 | L89: -0.001916234217
B90: Norway | D90: 0.2926048391 | E90: 0.2638575805 | F90: 0.263663547 | G90: 0.2403975289 | H90: 0.288286601 | I90: 0.2526679527 | J90: 0.2669130082 | K90: 0.2654943581 | L90: 0.005315027808
B91: Poland | D91: 0.1947354284 | E91: 0.1816500859 | F91: 0.1734064957 | G91: 0.1714389331 | H91: 0.1705986809 | I91: 0.2171053594 | J91: 0.1848224973 | K91: 0.1896341443 | L91: -0.02603388198
B92: Portugal | D92: 0.2093797132 | E92: 0.2300286247 | F92: 0.2600584299 | G92: 0.2761257945 | H92: 0.2442428846 | I92: 0.2585821862 | J92: 0.2464029389 | K92: 0.2500253194 | L92: -0.01470104446
B93: Romania | D93: 0.1141552511 | E93: 0.1141552511 | F93: 0.102739726 | G93: 0.9315068493 | H93: 0.1592593626 | I93: 0.1581994032 | J93: 0.2633359739 | K93: 0.168100154 | L93: 0.3616513858
A94: * | B94: Serbia | I94: 0.2218523463 | J94: 0.2161583202
B95: Slovakia | D95: 0.1826484018 | E95: 0.1598173516 | F95: 0.2283105023 | G95: 0.2283105023 | H95: 0.1522070015 | I95: 0.2283105023 | J95: 0.1966007103 | K95: 0.1919883769 | L95: 0.02346041056
A96: * | B96: Slovenia | I96: 0.2218523463 | J96: 0 | K96: 0
B97: Spain | D97: 0.2126372948 | E97: 0.2271796378 | F97: 0.2269115409 | G97: 0.4714922535 | H97: 0.2246836644 | I97: 0.2479687633 | J97: 0.2684788591 | K97: 0.2538247331 | L97: 0.05458204807
B98: Sweden | D98: 0.2299183227 | E98: 0.2799187731 | F98: 0.195908701 | G98: 0.1980047992 | H98: 0.2507787623 | I98: 0.2183455351 | J98: 0.2288124822 | K98: 0.2248281024 | L98: 0.01741329752
B99: Switzerland | D99: 0.1522070015 | E99: 0.1549249837 | F99: 0.1458650431 | G99: 0.1005653403 | H99: 0.09282954488 | I99: 0.200913242 | J99: 0.1412175259 | K99: 0.1383700014 | L99: 0.02016410158
B100: Turkey | D100: 0.277569275 | E100: 0.2656304882 | F100: 0.2154824501 | G100: 0.2521793275 | H100: 0.3120287547 | I100: 0.2893381365 | J100: 0.2687047387 | K100: 0.27753278 | L100: -0.03285405897
B101: United Kingdom | D101: 0.2430580519 | E101: 0.237513872 | F101: 0.2398059283 | G101: 0.2158267587 | H101: 0.2736658854 | I101: 0.2515037055 | J101: 0.243562367 | K101: 0.2460613719 | L101: -0.01026022611
B102: Eurasia | D102: 0.1551791627 | E102: 0.1643619374 | F102: 0.1609908905 | G102: 0.1771344791 | H102: 0.2390119457 | I102: 0.1843303835 | J102: 0.1801681331 | K102: 0.1879835263 | L102: -0.04337833235
B103: Armenia | D103: 0.1297218763 | E103: 0.08648125086 | F103: 0.1729625017 | G103: 0.302684378 | H103: 0.3073410608 | I103: 0.1756234633 | J103: 0.1958024218 | K103: 0.1955705445 | L103: 0.001184241539
A104: * | B104: Azerbaijan | D104: 0 | E104: 0 | F104: 0 | G104: 0 | H104: 0 | I104: 0.2218523463 | J104: 0 | K104: 0
B105: Belarus | D105: 0.1141552511 | E105: 0.1141552511 | F105: 0.05707762557 | G105: 0.1141552511 | H105: 0.3253424658 | I105: 0.3604902668 | J105: 0.1808960186 | K105: 0.1925649186 | L105: -0.06450611848
B106: Estonia | D106: 0.2077625571 | E106: 0.197177252 | F106: 0.2140410959 | G106: 0.2927870793 | H106: 0.233384069 | I106: 0.1841761301 | J106: 0.2215546972 | K106: 0.2170108708 | L106: 0.02050882449
A107: * | B107: Former U.S.S.R. | I107: 0.2218523463 | J107: 0.2161583202
A108: * | B108: Georgia | I108: 0.2218523463 | J108: 0.2161583202
B109: Kazakhstan | D109: 0.2283105023 | E109: 0.2283105023 | F109: 0.2283105023 | G109: 0.1630789302 | H109: 0.05707762557 | I109: 0.1712328767 | J109: 0.1793868232 | K109: 0.1472970982 | L109: 0.1788856305
A110: * | B110: Kyrgyzstan | I110: 0.2218523463 | J110: 0.2161583202
B111: Latvia | D111: 0.2327010889 | E111: 0.240541422 | F111: 0.2038486628 | G111: 0.1864535769 | H111: 0.1878805175 | I111: 0.191377921 | J111: 0.2071338648 | K111: 0.2022750941 | L111: 0.02345715279
B112: Lithuania | D112: 0.2574565239 | E112: 0.2769321833 | F112: 0.2004058853 | G112: 0.1660440017 | H112: 0.1925971276 | I112: 0.2739726027 | J112: 0.2279013874 | K112: 0.2226713243 | L112: 0.02294879886
A113: * | B113: Moldova | I113: 0.2218523463 | J113: 0.2161583202
A114: * | B114: Russia | D114: 0.04842950048 | E114: 0.03459250035 | F114: 0.03261578604 | G114: 0.02965071458 | H114: 0.0271798217 | I114: 0.2218523463 | J114: 0.03440718338 | K114: 0.03448439878 | L114: -0.002244165171
A115: * | B115: Tajikistan | I115: 0.2218523463 | J115: 0.2161583202
A116: * | B116: Turkmenistan | I116: 0.2218523463 | J116: 0.2161583202
B117: Ukraine | D117: 0.06421232877 | E117: 0.06421232877 | F117: 0.06135844749 | G117: 0.0727739726 | H117: 0.3437500944 | I117: 0.1191185229 | J117: 0.1209042825 | K117: 0.1416435789 | L117: -0.1715348372
A118: * | B118: Uzbekistan | I118: 0.2218523463 | J118: 0.2161583202
B119: Middle East | D119: 0.2383965084 | E119: 0.2632511033 | F119: 0.3003754819 | G119: 0.1846120022 | H119: 0.3007287559 | I119: 0.2271048199 | J119: 0.2524114453 | K119: 0.2513703911 | L119: 0.004124433292
A120: =IF(I120=$I$119,"*","") ->  | B120: Bahrain | E120: 0.1375364472 | F120: 0.2750728943 | G120: 0.2750728943 | H120: 0.3438411179 | I120: 0.3438411179 | J120: 0.2750728943 | K120: 0.2750728943 | L120: 0
B121: Iran | D121: 0.2436447897 | E121: 0.272858893 | F121: 0.313230872 | G121: 0.1860730594 | H121: 0.3130136986 | I121: 0.2363013699 | J121: 0.2608537804 | K121: 0.2597408181 | L121: 0.004266613653
A122: * | B122: Iraq | I122: 0.2271048199 | J122: 0.2524114453
B123: Israel | D123: 0.1902587519 | E123: 0.1712328767 | F123: 0.1712328767 | G123: 0.1522070015 | H123: 0.1331811263 | I123: 0.1141552511 | J123: 0.1553779807 | K123: 0.1553779807 | L123: -3.572652378e-16
B124: Jordan | D124: 0.2446183953 | E124: 0.2446183953 | F124: 0.2446183953 | G124: 0.2446183953 | H124: 0.2446183953 | I124: 0.2283105023 | J124: 0.2419004131 | K124: 0.2417405318 | L124: 0.0006609385327
A125: * | B125: Kuwait | I125: 0.2271048199 | J125: 0.2524114453
A126: * | B126: Lebanon | I126: 0.2271048199 | J126: 0.2524114453
A127: * | B127: Oman | I127: 0.2271048199 | J127: 0.2524114453
A128: * | B128: Palestinian Territories | I128: 0.2271048199 | J128: 0.2524114453
A129: * | B129: Qatar | I129: 0.2271048199 | J129: 0.2524114453
A130: * | B130: Saudi Arabia | I130: 0.2271048199 | J130: 0.2524114453
A131: * | B131: Syria | D131: 0 | E131: 0 | F131: 0 | G131: 0 | H131: 0 | I131: 0.2271048199 | J131: 0 | K131: 0
A132: * | B132: United Arab Emirates | I132: 0.2271048199 | J132: 0 | K132: 0
A133: * | B133: Yemen | I133: 0.2271048199 | J133: 0.2524114453
B134: Africa | D134: 0.3039728038 | E134: 0.2647538473 | F134: 0.2555590955 | G134: 0.2912985785 | H134: 0.3295895662 | I134: 0.246106885 | J134: 0.2818801294 | K134: 0.280980573 | L134: 0.003191272732
A135: =IF(I135=$I$134,"*","") -> * | B135: Algeria | I135: 0.246106885 | J135: 0 | K135: 0
A136: * | B136: Angola | I136: 0.246106885 | J136: 0.2818801294
A137: * | B137: Benin | I137: 0.246106885 | J137: 0.2818801294
A138: * | B138: Botswana | I138: 0.246106885 | J138: 0.2818801294
A139: * | B139: Burkina Faso | I139: 0.246106885 | J139: 0.2818801294
A140: * | B140: Burundi | I140: 0.246106885 | J140: 0.2818801294
A141: * | B141: Cameroon | I141: 0.246106885 | J141: 0.2818801294
A142: * | B142: Cape Verde | D142: 0.2853881279 | E142: 0.2446183953 | F142: 0.2853881279 | G142: 0.2853881279 | H142: 0.2853881279 | I142: 0.246106885 | J142: 0.2362512737 | K142: 0.1184902607 | L142: 0.4984566271
A143: * | B143: Central African Republic | I143: 0.246106885 | J143: 0.2818801294
A144: * | B144: Chad | I144: 0.246106885 | J144: 0.2818801294
A145: * | B145: Comoros | I145: 0.246106885 | J145: 0.2818801294
A146: * | B146: Congo (Brazzaville) | I146: 0.246106885 | J146: 0.2818801294
A147: * | B147: Congo (Kinshasa) | I147: 0.246106885 | J147: 0.2818801294
A148: * | B148: Cote dIvoire (IvoryCoast) | I148: 0.246106885 | J148: 0.2818801294
A149: * | B149: Djibouti | I149: 0.246106885 | J149: 0.2818801294
B150: Egypt | D150: 0.3162100457 | E150: 0.265696347 | F150: 0.3007858129 | G150: 0.3082191781 | H150: 0.3439186384 | I150: 0.2615193026 | J150: 0.2993915541 | K150: 0.2996370027 | L150: -0.0008198247507
A151: * | B151: Equatorial Guinea | I151: 0.246106885 | J151: 0.2818801294
A152: * | B152: Eritrea | G152: 0 | H152: 0 | I152: 0.246106885 | J152: 0 | K152: 0
A153: * | B153: Ethiopia | H153: 0 | I153: 0.246106885 | J153: 0.02043519928 | K153: 0.02982434489 | L153: -0.4594594595
A154: * | B154: Gabon | I154: 0.246106885 | J154: 0.2818801294
A155: * | B155: Gambia, The | I155: 0.246106885 | J155: 0.2818801294
A156: * | B156: Ghana | I156: 0.246106885 | J156: 0.2818801294
A157: * | B157: Guinea | I157: 0.246106885 | J157: 0.2818801294
A158: * | B158: Guinea-Bissau | I158: 0.246106885 | J158: 0.2818801294
B159: Kenya | D159: 0.3261578604 | E159: 0.3261578604 | F159: 5.218525766 | G159: 0.3770265175 | H159: 0.3770265175 | I159: 0.3424657534 | J159: 1.161226713 | K159: 0.4647027923 | L159: 0.5998173421
A160: * | B160: Lesotho | I160: 0.246106885 | J160: 0.2818801294
A161: * | B161: Liberia | I161: 0.246106885 | J161: 0.2818801294
A162: * | B162: Libya | I162: 0.246106885 | J162: 0.2818801294
A163: * | B163: Madagascar | H163: 0 | I163: 0.246106885 | J163: 0 | K163: 0
A164: * | B164: Malawi | I164: 0.246106885 | J164: 0.2818801294
A165: * | B165: Mali | I165: 0.246106885 | J165: 0.2818801294
A166: * | B166: Mauritania | I166: 0.246106885 | J166: 0.2818801294
B167: Mauritius | D167: 0.2536783359 | E167: 0.2536783359 | F167: 0.6341958397 | G167: 1.268391679 | H167: 1.902587519 | I167: 0.4151100042 | J167: 0.7879402857 | K167: 0.6164383562 | L167: 0.2176585366
B168: Morocco | D168: 0.279625242 | E168: 0.2721461187 | F168: 0.1785388128 | G168: 0.2630360507 | H168: 0.3440348978 | I168: 0.2855842709 | J168: 0.2704942322 | K168: 0.2719063834 | L168: -0.005220633633
A169: * | B169: Mozambique | I169: 0.246106885 | J169: 0.2818801294
A170: * | B170: Namibia | D170: 0 | E170: 0 | F170: 0 | G170: 0 | H170: 0 | I170: 0.246106885 | J170: 0 | K170: 0
A171: * | B171: Niger | I171: 0.246106885 | J171: 0.2818801294
A172: * | B172: Nigeria | D172: 0 | E172: 0 | F172: 0 | G172: 0 | H172: 0 | I172: 0.246106885 | J172: 0 | K172: 0
B173: Reunion | D173: 0.1141552511 | E173: 0.1141552511 | F173: 0.1630789302 | G173: 0.1630789302 | H173: 0.1630789302 | I173: 0.09756859072 | J173: 0.1358526473 | K173: 0.1336712543 | L173: 0.01605705187
A174: * | B174: Rwanda | I174: 0.246106885 | J174: 0.2818801294
A175: * | B175: Saint Helena | I175: 0.246106885 | J175: 0.2818801294
A176: * | B176: Sao Tome and Principe | I176: 0.246106885 | J176: 0.2818801294
A177: * | B177: Senegal | I177: 0.246106885 | J177: 0.2818801294
A178: * | B178: Seychelles | I178: 0.246106885 | J178: 0.2818801294
A179: * | B179: Sierra Leone | I179: 0.246106885 | J179: 0.2818801294
A180: * | B180: Somalia | I180: 0.246106885 | J180: 0.2818801294
A181: * | B181: South Africa | D181: 1.217656012 | E181: 0.4566210046 | F181: 0.4566210046 | G181: 0.3652968037 | H181: 0.3652968037 | I181: 0.246106885 | J181: 0.6709415234 | K181: 0.6114629542 | L181: 0.08864940852
B182: South Sudan | I182: 0.246106885 | J182: 0.2818801294
A183: * | B183: Sudan | I183: 0.246106885 | J183: 0.2818801294
A184: * | B184: Swaziland | I184: 0.246106885 | J184: 0.2818801294
A185: * | B185: Tanzania | I185: 0.246106885 | J185: 0.2818801294
A186: * | B186: Togo | I186: 0.246106885 | J186: 0.2818801294
B187: Tunisia | D187: 0.2583513578 | E187: 0.2343186734 | F187: 0.2214611872 | G187: 0.2938440724 | H187: 0.3445797396 | I187: 0.2151387425 | J187: 0.2612822955 | K187: 0.2576103501 | L187: 0.01405355616
A188: * | B188: Uganda | I188: 0.246106885 | J188: 0.2818801294
A189: * | B189: Western Sahara | I189: 0.246106885 | J189: 0.2818801294
A190: * | B190: Zambia | I190: 0.246106885 | J190: 0.2818801294
A191: * | B191: Zimbabwe | I191: 0.246106885 | J191: 0.2818801294
B192: Asia & Oceania | D192: 0.1626015906 | E192: 0.159087538 | F192: 0.1968226275 | G192: 0.176315963 | H192: 0.1935187309 | I192: 0.1850094619 | J192: 0.178892652 | K192: 0.1830347664 | L192: -0.02315418988
A193: =IF(I193=$I$192,"*","") -> * | B193: Afghanistan | E193: 0.01630789302 | F193: 0.1630789302 | G193: 0.1630789302 | H193: 0.1630789302 | I193: 0.1850094619 | J193: 0.1033920417 | K193: 0.03656535388 | L193: 0.6463426656
A194: =IF(I194=$I$192,"*","") -> * | B194: American Samoa | I194: 0.1850094619 | J194: 0.178892652
B195: Australia | D195: 0.2386383993 | E195: 0.2450258097 | F195: 0.2555734623 | G195: 0.2938395359 | H195: 0.3134841664 | I195: 0.270058456 | J195: 0.2694366383 | K195: 0.2734104155 | L195: -0.01474846636
B196: Bangladesh | D196: 0.2536783359 | E196: 0.2536783359 | F196: 0.2536783359 | G196: 0.2536783359 | H196: 0.2536783359 | I196: 0.1141552511 | J196: 0.2304244884 | K196: 0.210748156 | L196: 0.08539167255
A197: * | B197: Bhutan | I197: 0.1850094619 | J197: 0.178892652
A198: * | B198: Brunei | I198: 0.1850094619 | J198: 0.178892652
A199: * | B199: Burma (Myanmar) | I199: 0.1850094619 | J199: 0.178892652
A200: * | B200: Cambodia | I200: 0.1850094619 | J200: 0.178892652
B201: China | D201: 0.110254818 | E201: 0.1384834194 | F201: 0.191923516 | G201: 0.1637889266 | H201: 0.1856925419 | I201: 0.179612995 | J201: 0.1616260361 | K201: 0.1741612337 | L201: -0.07755679655
B202: Cook Islands | D202: 0.08561643836 | E202: 0.08561643836 | F202: 0.08561643836 | G202: 0.08561643836 | H202: 0.08561643836 | I202: 0.08561643836 | J202: 0.08561643836 | K202: 0.08561643836 | L202: 0
B203: Fiji | D203: 0.1141552511 | E203: 0.2283105023 | F203: 0.2283105023 | G203: 0.2283105023 | H203: 0.2283105023 | I203: 0.2283105023 | J203: 0.2092846271 | K203: 0.2092846271 | L203: 1.326211868e-16
... 56 more rows

Sheet Conversions (hidden)
C2: IPCC SAR GWPs | G2: Additional Refrigerant GWPs | K2: IPCC AR4 GWPs
C3: Gas | D3: GWP | G3: Gas | H3: GWP | I3: Chemical Formula | K3: Gas | L3: GWP
C4: CO2 | D4: 1 | G4: HFC-41 | H4: 150 | I4: CH3F | K4: CO2 | L4: 1
C5: CH4 | D5: 21 | G5: HFC-134 | H5: 1000 | I5: CHF2CHF2 | K5: CH4 | L5: 25
C6: N2O | D6: 310 | G6: HFC-143 | H6: 300 | I6: CHF2CH2F | K6: N2O | L6: 298
C7: HFC-23 | D7: 11700 | G7: HFC-152 | H7: 53 | I7: CH2FCH2F | K7: HFC-23 | L7: 14800
C8: HFC-32 | D8: 650 | G8: HFC-161 | H8: 12 | I8: CH3CH2F | K8: HFC-32 | L8: 675
C9: HFC-125 | D9: 2800 | G9: HFC-236cb | H9: 1340 | I9: CH2FCF2CF3 | K9: HFC-125 | L9: 3500
C10: HFC-134a | D10: 1300 | G10: HFC-236ea | H10: 1370 | I10: CHF2CHFCF3 | K10: HFC-134a | L10: 1430
C11: HFC-143a | D11: 3800 | G11: HFC-245ca | H11: 560 | I11: CH2FCF2CHF2 | K11: HFC-143a | L11: 4470
C12: HFC-152a | D12: 140 | G12: HFC-245fa | H12: 1030 | I12: CHF2CH2CF3 | K12: HFC-152a | L12: 124
C13: HFC-227ea | D13: 2900 | G13: HFC-365mfc | H13: 794 | I13: CF3CH2CF2CH3 | K13: HFC-227ea | L13: 3220
C14: HFC-236fa | D14: 6300 | G14: PFC-218 | H14: 7000 | I14: C3F8 (CF3CF2CF3) | K14: HFC-236fa | L14: 9810
C15: HFC-4310mee | D15: 1300 | G15: PFC-318 or PFC-c318 | H15: 8700 | I15: c-C4F8 ( -(CF2)4- ) | K15: HFC-4310mee | L15: 1640
C16: CF4 | D16: 6500 | E16: PFC-14 | G16: PFC-4-1-12 | H16: 7500 | I16: C5F12 | K16: CF4 | L16: 7390 | M16: PFC-14
C17: C2F6 | D17: 9200 | E17: PFC-116 | G17: PFC-9-1-18 | H17: 7500 | I17: C10F18 | K17: C2F6 | L17: 12200 | M17: PFC-116
C18: C4F10 | D18: 7000 | E18: PFC-3-1-10 | G18: Perfluorocyclopropane | H18: 17340 | I18: c-C3F6 | K18: C4F10 | L18: 8860 | M18: PFC-3-1-10
C19: C6F14 | D19: 7400 | E19: PFC-5-1-14 | K19: C6F14 | L19: 9300 | M19: PFC-5-1-14
C20: SF6 | D20: 23900 | K20: SF6 | L20: 22800
C21: Source: U.S. Inventory of Greenhouse Gas Emissions and Sinks 1990-2005 (Table ES-1), US EPA | G21: Source: EPA Mandatory Reporting Rule, Federal Register, Friday, October 30, 2009, Table A-1 to Subpart A of Part 98. | K21: Source: IPCC Fourth Assessment Report: Climate Change 2007, 2.10.2 Direct Global Warming Potentials
C22: Available online at: http://www.epa.gov/climatechange/emissions/usgginv_archive.html | G22: Available online at: http://www.epa.gov/climatechange/emissions/downloads09/GHG-MRR-Full%20Version.pdf | K22: Avalilable online at: https://www.ipcc.ch/publications_and_data/ar4/wg1/en/ch2s2-10-2.html
C24: CO2/C | D24: =44/12 -> 3.666666667
B27: Physical Conversions
B29: Area
D30: sq. foot | E30: sq. mile | F30: sq. yard | G30: sq. meter | H30: sq. kilometer | I30: acre | J30: hectare
B31: 1 | C31: sq. foot | D31: 1 | E31: 3.587006e-08 | F31: 0.1111111 | G31: 0.09290304 | H31: 9.290304e-08 | I31: 2.295675e-05 | J31: 9.290304e-06
B32: 1 | C32: sq. mile | D32: 27878400 | E32: 1 | F32: 3097600 | G32: 2589988 | H32: 2.589988 | I32: 639.9974 | J32: 258.9988
B33: 1 | C33: sq. yard | D33: 9 | E33: 3.228306e-07 | F33: 1 | G33: 0.8361274 | H33: 8.361274e-07 | I33: 0.0002066107 | J33: 8.361274e-05
B34: 1 | C34: sq. meter | D34: 10.76391 | E34: 3.861022e-07 | F34: 1.19599 | G34: 1 | H34: 1e-06 | I34: 0.0002471044 | J34: 0.0001
B35: 1 | C35: sq. kilometer | D35: 10763910 | E35: 0.3861022 | F35: 1195990 | G35: 1000000 | H35: 1 | I35: 247.1044 | J35: 100
B36: 1 | C36: acre | D36: 43560 | E36: 0.0015625 | F36: 4839.963 | G36: 4046.825 | H36: 0.004046859 | I36: 1 | J36: 0.4046863
B37: 1 | C37: hectare | D37: 107639.1 | E37: 0.003861022 | F37: 11959.9 | G37: 10000 | H37: 0.01 | I37: 2.471044 | J37: 1
B39: Distance
D40: meter | E40: kilometer | F40: foot | G40: yard | H40: mile
B41: 1 | C41: meter | D41: 1 | E41: 0.001 | F41: 3.28083 | G41: 1.09361 | H41: 0.0006213712
B42: 1 | C42: kilometer | D42: 1000 | E42: 1 | F42: 3280.83 | G42: 1093.613 | H42: 0.6213712
B43: 1 | C43: foot | D43: 0.3048 | E43: 0.0003048009 | F43: 1 | G43: 0.3333333 | H43: 0.0001893939
B44: 1 | C44: yard | D44: 0.9144 | E44: 0.0009144028 | F44: 3 | G44: 1 | H44: 0.0005681818
B45: 1 | C45: mile | D45: 1609.344 | E45: 1.609344 | F45: 5280 | G45: 1760 | H45: 1
B47: Energy
D48: watt-hour | E48: kilowatt-hour | F48: megawatt-hour | G48: gigawatt-hour | H48: joule | I48: kilojoule | J48: megajoule | K48: gigajoule | L48: BTU | M48: MMBtu | N48: therm
B49: 1 | C49: watt-hour | D49: 1 | E49: 0.001 | F49: 1e-06 | G49: 1e-09 | H49: 3600 | I49: 3.6 | J49: 0.0036 | K49: 3.6e-06 | L49: 3.412142 | M49: 3.412142e-06 | N49: 3.412128e-05
B50: 1 | C50: kilowatt-hour | D50: 1000 | E50: 1 | F50: 0.001 | G50: 1e-06 | H50: 3600000 | I50: 3600 | J50: 3.6 | K50: 0.0036 | L50: 3412.142 | M50: 0.003412142 | N50: 0.03412128
B51: 1 | C51: megawatt-hour | D51: 1000000 | E51: 1000 | F51: 1 | G51: 0.001 | H51: 3600000000 | I51: 3600000 | J51: 3600 | K51: 3.6 | L51: 3412142 | M51: 3.412142 | N51: 34.12128
B52: 1 | C52: gigawatt-hour | D52: 1000000000 | E52: 1000000 | F52: 1000 | G52: 1 | H52: 3600000000000 | I52: 3600000000 | J52: 3600000 | K52: 3600 | L52: 3412142000 | M52: 3412.142 | N52: 34121.28
B53: 1 | C53: joule | D53: 0.0002777778 | E53: 2.777778e-07 | F53: 2.777778e-10 | G53: 2.777778e-13 | H53: 1 | I53: 0.001 | J53: 1e-06 | K53: 1e-09 | L53: 0.0009478171 | M53: 9.478171e-10 | N53: 9.478134e-09
B54: 1 | C54: kilojoule | D54: 0.2777778 | E54: 0.0002777778 | F54: 2.777778e-07 | G54: 2.777778e-10 | H54: 1000 | I54: 1 | J54: 0.001 | K54: 1e-06 | L54: 0.9478171 | M54: 9.478171e-07 | N54: 9.478134e-06
B55: 1 | C55: megajoule | D55: 277.7778 | E55: 0.2777778 | F55: 0.0002777778 | G55: 2.777778e-07 | H55: 1000000 | I55: 1000 | J55: 1 | K55: 0.001 | L55: 947.8171 | M55: 0.0009478171 | N55: 0.009478134
B56: 1 | C56: gigajoule | D56: 277777.8 | E56: 277.7778 | F56: 0.2777778 | G56: 0.0002777778 | H56: 1000000000 | I56: 1000000 | J56: 1000 | K56: 1 | L56: 947817.1 | M56: 0.9478171 | N56: 9.478134
B57: 1 | C57: BTU | D57: 0.2930711 | E57: 0.0002930711 | F57: 2.930711e-07 | G57: 2.930711e-10 | H57: 1055.056 | I57: 1.055056 | J57: 0.001055056 | K57: 1.055056e-06 | L57: 1 | M57: 1e-06 | N57: 9.999961e-06
B58: 1 | C58: MMBtu | D58: 293071.1 | E58: 293.0711 | F58: 0.2930711 | G58: 0.0002930711 | H58: 1055056000 | I58: 1055056 | J58: 1055.056 | K58: 1.055056 | L58: 1000000 | M58: 1 | N58: 9.999961
B59: 1 | C59: therm | D59: 29307.22 | E59: 29.30722 | F59: 0.02930722 | G59: 2.930722e-05 | H59: 105506000 | I59: 105506 | J59: 105.506 | K59: 0.105506 | L59: 100000.4 | M59: 0.1000004 | N59: 1
B61: Flow
D62: centimeter3/hour | E62: foot3/hour | F62: yard3/hour | G62: meter3/hour | H62: gallon/hour | I62: liter/hour
B63: 1 | C63: centimeter3/hour | D63: 1 | E63: 3.531467e-05 | F63: 1.307951e-06 | G63: 1e-06 | H63: 0.0002641721 | I63: 0.001
B64: 1 | C64: foot3/hour | D64: 28316.85 | E64: 1 | F64: 0.03703704 | G64: 0.02831685 | H64: 7.480519 | I64: 28.31685
B65: 1 | C65: yard3/hour | D65: 764554.9 | E65: 27 | F65: 1 | G65: 0.7645549 | H65: 201.974 | I65: 764.5549
B66: 1 | C66: meter3/hour | D66: 1000000 | E66: 35.31467 | F66: 1.307951 | G66: 1 | H66: 264.1721 | I66: 1000
B67: 1 | C67: gallon/hour | D67: 3785.412 | E67: 0.1336806 | F67: 0.004951132 | G67: 0.003785412 | H67: 1 | I67: 3.785412
B68: 1 | C68: liter/hour | D68: 1000 | E68: 0.03531467 | F68: 0.001307951 | G68: 0.001 | H68: 0.2641721 | I68: 1
B70: Light
D71: Flame | E71: Foot-Candles | F71: Lux | G71: Meter-Candles
B72: 1 | C72: Flame | D72: 1 | E72: 4 | F72: 43.05564 | G72: 43.05564
B73: 1 | C73: Foot-Candles | D73: 0.25 | E73: 1 | F73: 10.76391 | G73: 10.76391
B74: 1 | C74: Lux | D74: 0.02322576 | E74: 0.09290304 | F74: 1 | G74: 1
B75: 1 | C75: Meter-Candles | D75: 0.02322576 | E75: 0.09290304 | F75: 1 | G75: 1
B77: Mass
D78: gram | E78: kilogram | F78: Megagram (tonne) | G78: Gigagram | H78: Teragram (MMT) | I78: pound | J78: short ton
B79: 1 | C79: gram | D79: 1 | E79: 0.001 | F79: =10^-6 -> 1e-06 | G79: =10^-9 -> 1e-09 | H79: =10^-12 -> 1e-12 | I79: 0.002204622622 | J79: 1.102311311e-06
B80: 1 | C80: kilogram | D80: 1000 | E80: 1 | F80: 0.001 | G80: =10^-6 -> 1e-06 | H80: =10^-9 -> 1e-09 | I80: 2.204622622 | J80: =J79*1000 -> 0.001102311311
B81: 1 | C81: Megagram (tonne) | D81: 1000000 | E81: 1000 | F81: 1 | G81: 0.001 | H81: =10^-6 -> 1e-06 | I81: =I80*D80 -> 2204.622622 | J81: =J80*1000 -> 1.102311311
B82: 1 | C82: Gigagram | D82: 1000000000 | E82: 1000000 | F82: 1000 | G82: 1 | H82: 0.001 | I82: =I81*D80 -> 2204622.622 | J82: =J81*1000 -> 1102.311311
B83: 1 | C83: Teragram (MMT) | D83: 1000000000000 | E83: 1000000000 | F83: 1000000 | G83: 1000 | H83: 1 | I83: =I82*D80 -> 2204622622 | J83: =J82*1000 -> 1102311.311
B84: 1 | C84: pound | D84: 453.59237 | E84: =D84/1000 -> 0.45359237 | F84: 0.00045359237 | G84: 4.5359237e-07 | H84: 4.5359237e-10 | I84: 1 | J84: =1/2000 -> 0.0005
B85: 1 | C85: short ton | D85: 907184.74 | E85: 907.18474 | F85: 0.90718474 | G85: 0.00090718474 | H85: 9.0718474e-07 | I85: 2000 | J85: 1
B87: Power
D88: watt | E88: kilowatt | F88: megawatt | G88: BTU/hour
B89: 1 | C89: watt | D89: 1 | E89: 0.001 | F89: 1e-06 | G89: 3.415179
B90: 1 | C90: kilowatt | D90: 1000 | E90: 1 | F90: 0.001 | G90: 3415.179
B91: 1 | C91: megawatt | D91: 1000000 | E91: 1000 | F91: 1 | G91: 3415179
B92: 1 | C92: BTU/hour | D92: 0.2928104 | E92: 0.0002928104 | F92: 2.928104e-07 | G92: 1
B94: Pressure
D95: pascal | E95: kilopascal | F95: megapascal | G95: pound/inch2 | H95: pound/foot2 | I95: millimeters of mercury
B96: 1 | C96: pascal | D96: 1 | E96: 0.001 | F96: 1e-06 | G96: 0.0001450377 | H96: 0.02088543 | I96: 0.007500617
B97: 1 | C97: kilopascal | D97: 1000 | E97: 1 | F97: 0.001 | G97: 0.1450377 | H97: 20.88543 | I97: 7.500617
B98: 1 | C98: megapascal | D98: 1000000 | E98: 1000 | F98: 1 | G98: 145.0377 | H98: 20885.43 | I98: 7500.617
B99: 1 | C99: pound/inch2 | D99: 6894.757 | E99: 6.894757 | F99: 0.006894757 | G99: 1 | H99: 144 | I99: 51.71493
B100: 1 | C100: pound/foot2 | D100: 47.88026 | E100: 0.04788026 | F100: 4.788026e-05 | G100: 0.006944444 | H100: 1 | I100: 0.3591315
B101: 1 | C101: millimeters of mercury | D101: 133.3224 | E101: 0.1333224 | F101: 0.0001333224 | G101: 0.01933677 | H101: 2.784496 | I101: 1
B103: Speed
D104: foot/hour | E104: mile/hour | F104: meter/hour | G104: kilometer/hour
B105: 1 | C105: foot/hour | D105: 1 | E105: 0.0001893939 | F105: 0.3048 | G105: 0.0003048
B106: 1 | C106: mile/hour | D106: 5280 | E106: 1 | F106: 1609.344 | G106: 1.609344
B107: 1 | C107: meter/hour | D107: 3.28084 | E107: 0.0006213712 | F107: 1 | G107: 0.001
B108: 1 | C108: kilometer/hour | D108: 3280.84 | E108: 0.6213712 | F108: 1000 | G108: 1
B110: Temperature
D111: Fahrenheit | E111: Celsius
B112: 1 | C112: Fahrenheit | D112: 1 | E112: -17.22222
B113: 1 | C113: Celsius | D113: 33.8 | E113: 1
B115: Time
D116: second | E116: minute | F116: hour | G116: day | H116: week | I116: month (30 days) | J116: year
B117: 1 | C117: second | D117: 1 | E117: 0.01666667 | F117: 0.0002777778 | G117: 1.157407e-05 | H117: 1.653439e-06 | I117: 3.858025e-07 | J117: =1/D123 -> 3.168808781e-08
B118: 1 | C118: minute | D118: 60 | E118: 1 | F118: 0.01666667 | G118: 0.0006944444 | H118: 9.920635e-05 | I118: 2.314815e-05 | J118: =1/E123 -> 1.901285269e-06
B119: 1 | C119: hour | D119: 3600 | E119: 60 | F119: 1 | G119: 0.04166667 | H119: 0.005952381 | I119: 0.001388889 | J119: =1/F123 -> 0.0001140771161
B120: 1 | C120: day | D120: 86400 | E120: 1440 | F120: 24 | G120: 1 | H120: 0.1428571 | I120: 0.03333333 | J120: =1/G123 -> 0.002737850787
B121: 1 | C121: week | D121: 604800 | E121: 10080 | F121: 168 | G121: 7 | H121: 1 | I121: 0.2333333 | J121: =1/H123 -> 0.01916495551
B122: 1 | C122: month (30 days) | D122: 2592000 | E122: 43200 | F122: 720 | G122: 30 | H122: 4.285714 | I122: 1 | J122: =1/I123 -> 0.08213552361
B123: 1 | C123: year | D123: =E123*D118 -> 31557600 | E123: =F123*E119 -> 525960 | F123: =G123*F120 -> 8766 | G123: 365.25 | H123: =G123/G121 -> 52.17857143 | I123: =G123/G122 -> 12.175 | J123: 1
B125: Volume
D126: liter | E126: gallon | F126: quart | G126: cubic inch | H126: cubic foot | I126: thousand cubic feet (MCF) | J126: million cubic feet (MMCF) | K126: cubic yard | L126: cubic meter
B127: 1 | C127: liter | D127: 1 | E127: 0.2641721 | F127: 1.056688 | G127: 61.02374 | H127: 0.03531467 | I127: 3.531467e-05 | J127: 3.531467e-08 | K127: 0.001307951 | L127: 0.001
B128: 1 | C128: gallon | D128: 3.785412 | E128: 1 | F128: 4 | G128: 231 | H128: 0.1336806 | I128: 0.0001336806 | J128: 1.336806e-07 | K128: 0.004951132 | L128: 0.003785412
B129: 1 | C129: quart | D129: 0.9463529 | E129: 0.25 | F129: 1 | G129: 57.75 | H129: 0.03342014 | I129: 3.342014e-05 | J129: 3.342014e-08 | K129: 0.001237783 | L129: 0.0009463529
B130: 1 | C130: cubic inch | D130: 0.01638706 | E130: 0.004329004 | F130: 0.01731602 | G130: 1 | H130: 0.0005787037 | I130: 5.787037e-07 | J130: 5.787037e-10 | K130: 2.143347e-05 | L130: 1.638706e-05
B131: 1 | C131: cubic foot | D131: 28.31685 | E131: 7.480519 | F131: 29.92208 | G131: 1728 | H131: 1 | I131: 0.001 | J131: 1e-06 | K131: 0.03703704 | L131: 0.02831685
B132: 1 | C132: thousand cubic feet (MCF) | D132: 28316.85 | E132: 7480.519 | F132: 29922.08 | G132: 1728000 | H132: 1000 | I132: 1 | J132: 0.001 | K132: 37.03704 | L132: 28.31685
B133: 1 | C133: million cubic feet (MMCF) | D133: 28316850 | E133: 7480519 | F133: 29922080 | G133: 1728000000 | H133: 1000000 | I133: 1000 | J133: 1 | K133: 37037.04 | L133: 28316.85
B134: 1 | C134: cubic yard | D134: 764.5549 | E134: 201.974 | F134: 807.8961 | G134: 46656 | H134: 27 | I134: 0.027 | J134: 2.7e-05 | K134: 1 | L134: 0.7645549
B135: 1 | C135: cubic meter | D135: 1000 | E135: 264.1721 | F135: 1056.688 | G135: 61023.74 | H135: 35.31467 | I135: 0.03531467 | J135: 3.531467e-05 | K135: 1.307951 | L135: 1
B136: 1 | C136: petroleum barrel | D136: =E136*D128 -> 158.987304 | E136: 42 | F136: =$E$136*F128 -> 168 | G136: =$E$136*G128 -> 9702 | H136: =$E$136*H128 -> 5.6145852 | I136: 0.0056145852 | J136: 5.6145852e-06 | K136: =$E$136*K128 -> 0.207947544 | L136: =$E$136*L128 -> 0.158987304
B140: Wood Conversions
C141: 1.25 | D141: short ton/cord | E141: EIA, Annual Energy Review 2007, Table B3
C142: 0.8 | D142: cords per ton | E142: EIA, Annual Energy Review 2007, Table B3

Sheet Fuel EFs (hidden)
B1: 1 | C1: 2 | D1: 3 | E1: 4 | F1: 5 | G1: 6 | H1: 7 | I1: 8 | J1: 9 | K1: 10 | L1: 11 | M1: 12 | N1: 13 | O1: 14 | P1: 15 | Q1: 16 | R1: 17 | S1: 18 | T1: 19 | U1: 20 | V1: 21 | W1: 22 | X1: 22
B2: Default Emission Factors for Stationary Combustion in the Energy Industries
D3: g of GHG per GJ on a Net Calorific Basis | P3: Density (kg/L) | Q3: Heating Values & Conversions (GJ/unit)
D4: CO2 | G4: CH4 | K4: N2O | N4: CO2E
B5: USAID CLEER Tool Name | C5: IPCC Name | D5: Default Emission Factor | E5: Lower | F5: Upper | G5: Default Emission Factor | H5: Lower | I5: Upper | J5: Default Emission Factor | K5: Lower | L5: Upper | M5: Default Emission Factor | N5: Lower | O5: Upper | Q5: Tonnes (t) | R5: Gallons (gal) | S5: Liter (L) | T5: Pounds (lbs.) | U5: Kilograms (kg) | V5: Million BTUs (MMBTU) | W5: Therms | X5: 100 Cubic Feet
C6: (intentional blank row) | Q6: (GJ/t) | R6: (GJ/gal) | S6: (GJ/L) | T6: (GJ/lbs) | U6: (GJ/kg) | V6: (GJ/MMBTU) | W6: (GJ/Therm) | X6: (GJ/Ccf)
A7: 48 | B7: Biofuel - Biodiesels | C7: Biodiesels | D7: 70800 | E7: 59800 | F7: 84300 | G7: 3 | H7: 1 | I7: 10 | J7: 0.6 | K7: 0.2 | L7: 2 | M7: =D7*Conversions!$L$4+'Fuel EFs'!G7*Conversions!$L$5+'Fuel EFs'!J7*Conversions!$L$6 -> 71053.8 | N7: =E7*Conversions!$L$4+'Fuel EFs'!H7*Conversions!$L$5+'Fuel EFs'!K7*Conversions!$L$6 -> 59884.6 | O7: =F7*Conversions!$L$4+'Fuel EFs'!I7*Conversions!$L$5+'Fuel EFs'!L7*Conversions!$L$6 -> 85146 | Q7: 27 | T7: =U7*Conversions!$E$84 -> 0.01224699399 | U7: =Q7*Conversions!$F$80 -> 0.027 | V7: =Conversions!$K$58 -> 1.055056 | W7: =Conversions!$K$59 -> 0.105506
A8: 47 | B8: Biofuel - Biogasoline | C8: Biogasoline | D8: 70800 | E8: 59800 | F8: 84300 | G8: 3 | H8: 1 | I8: 10 | J8: 0.6 | K8: 0.2 | L8: 2 | M8: =D8*Conversions!$L$4+'Fuel EFs'!G8*Conversions!$L$5+'Fuel EFs'!J8*Conversions!$L$6 -> 71053.8 | N8: =E8*Conversions!$L$4+'Fuel EFs'!H8*Conversions!$L$5+'Fuel EFs'!K8*Conversions!$L$6 -> 59884.6 | O8: =F8*Conversions!$L$4+'Fuel EFs'!I8*Conversions!$L$5+'Fuel EFs'!L8*Conversions!$L$6 -> 85146 | Q8: 27 | T8: =U8*Conversions!$E$84 -> 0.01224699399 | U8: =Q8*Conversions!$F$80 -> 0.027 | V8: =Conversions!$K$58 -> 1.055056 | W8: =Conversions!$K$59 -> 0.105506
A9: 49 | B9: Biofuel - Other Liquid Biofuels | C9: Other Liquid Biofuels | D9: 79600 | E9: 67100 | F9: 95300 | G9: 3 | H9: 1 | I9: 10 | J9: 0.6 | K9: 0.2 | L9: 2 | M9: =D9*Conversions!$L$4+'Fuel EFs'!G9*Conversions!$L$5+'Fuel EFs'!J9*Conversions!$L$6 -> 79853.8 | N9: =E9*Conversions!$L$4+'Fuel EFs'!H9*Conversions!$L$5+'Fuel EFs'!K9*Conversions!$L$6 -> 67184.6 | O9: =F9*Conversions!$L$4+'Fuel EFs'!I9*Conversions!$L$5+'Fuel EFs'!L9*Conversions!$L$6 -> 96146 | Q9: 27.4 | T9: =U9*Conversions!$E$84 -> 0.01242843094 | U9: =Q9*Conversions!$F$80 -> 0.0274 | V9: =Conversions!$K$58 -> 1.055056 | W9: =Conversions!$K$59 -> 0.105506
A10: 50 | B10: Biogas - Landfill Gas | C10: Landfill Gas | D10: 54600 | E10: 46200 | F10: 66000 | G10: 1 | H10: 0.3 | I10: 3 | J10: 0.1 | K10: 0.03 | L10: 0.3 | M10: =D10*Conversions!$L$4+'Fuel EFs'!G10*Conversions!$L$5+'Fuel EFs'!J10*Conversions!$L$6 -> 54654.8 | N10: =E10*Conversions!$L$4+'Fuel EFs'!H10*Conversions!$L$5+'Fuel EFs'!K10*Conversions!$L$6 -> 46216.44 | O10: =F10*Conversions!$L$4+'Fuel EFs'!I10*Conversions!$L$5+'Fuel EFs'!L10*Conversions!$L$6 -> 66164.4 | Q10: 50.4 | T10: =U10*Conversions!$E$84 -> 0.02286105545 | U10: =Q10*Conversions!$F$80 -> 0.0504 | V10: =Conversions!$K$58 -> 1.055056 | W10: =Conversions!$K$59 -> 0.105506
A11: 52 | B11: Biogas - Other Biogas | C11: Other Biogas | D11: 54600 | E11: 46200 | F11: 66000 | G11: 1 | H11: 0.3 | I11: 3 | J11: 0.1 | K11: 0.03 | L11: 0.3 | M11: =D11*Conversions!$L$4+'Fuel EFs'!G11*Conversions!$L$5+'Fuel EFs'!J11*Conversions!$L$6 -> 54654.8 | N11: =E11*Conversions!$L$4+'Fuel EFs'!H11*Conversions!$L$5+'Fuel EFs'!K11*Conversions!$L$6 -> 46216.44 | O11: =F11*Conversions!$L$4+'Fuel EFs'!I11*Conversions!$L$5+'Fuel EFs'!L11*Conversions!$L$6 -> 66164.4 | Q11: 50.4 | T11: =U11*Conversions!$E$84 -> 0.02286105545 | U11: =Q11*Conversions!$F$80 -> 0.0504 | V11: =Conversions!$K$58 -> 1.055056 | W11: =Conversions!$K$59 -> 0.105506
A12: 51 | B12: Biogas - Sludge Gas | C12: Sludge Gas | D12: 54600 | E12: 46200 | F12: 66000 | G12: 1 | H12: 0.3 | I12: 3 | J12: 0.1 | K12: 0.03 | L12: 0.3 | M12: =D12*Conversions!$L$4+'Fuel EFs'!G12*Conversions!$L$5+'Fuel EFs'!J12*Conversions!$L$6 -> 54654.8 | N12: =E12*Conversions!$L$4+'Fuel EFs'!H12*Conversions!$L$5+'Fuel EFs'!K12*Conversions!$L$6 -> 46216.44 | O12: =F12*Conversions!$L$4+'Fuel EFs'!I12*Conversions!$L$5+'Fuel EFs'!L12*Conversions!$L$6 -> 66164.4 | Q12: 50.4 | T12: =U12*Conversions!$E$84 -> 0.02286105545 | U12: =Q12*Conversions!$F$80 -> 0.0504 | V12: =Conversions!$K$58 -> 1.055056 | W12: =Conversions!$K$59 -> 0.105506
A13: 46 | B13: Biomass - Charcoal | C13: Charcoal | D13: 112000 | E13: 95000 | F13: 132000 | G13: 200 | H13: 70 | I13: 600 | J13: 4 | K13: 1.5 | L13: 15 | M13: =D13*Conversions!$L$4+'Fuel EFs'!G13*Conversions!$L$5+'Fuel EFs'!J13*Conversions!$L$6 -> 118192 | N13: =E13*Conversions!$L$4+'Fuel EFs'!H13*Conversions!$L$5+'Fuel EFs'!K13*Conversions!$L$6 -> 97197 | O13: =F13*Conversions!$L$4+'Fuel EFs'!I13*Conversions!$L$5+'Fuel EFs'!L13*Conversions!$L$6 -> 151470 | Q13: 29.5 | T13: =U13*Conversions!$E$84 -> 0.01338097492 | U13: =Q13*Conversions!$F$80 -> 0.0295 | V13: =Conversions!$K$58 -> 1.055056 | W13: =Conversions!$K$59 -> 0.105506
A14: 45 | B14: Biomass - Other Primary Solid | C14: Other Primary Solid Biomass | D14: 100000 | E14: 84700 | F14: 117000 | G14: 30 | H14: 10 | I14: 100 | J14: 4 | K14: 1.5 | L14: 15 | M14: =D14*Conversions!$L$4+'Fuel EFs'!G14*Conversions!$L$5+'Fuel EFs'!J14*Conversions!$L$6 -> 101942 | N14: =E14*Conversions!$L$4+'Fuel EFs'!H14*Conversions!$L$5+'Fuel EFs'!K14*Conversions!$L$6 -> 85397 | O14: =F14*Conversions!$L$4+'Fuel EFs'!I14*Conversions!$L$5+'Fuel EFs'!L14*Conversions!$L$6 -> 123970 | Q14: 11.6 | T14: =U14*Conversions!$E$84 -> 0.005261671492 | U14: =Q14*Conversions!$F$80 -> 0.0116 | V14: =Conversions!$K$58 -> 1.055056 | W14: =Conversions!$K$59 -> 0.105506
A15: 44 | B15: Biomass - Sulphite lyes (Black Liquor)a | C15: Sulphite lyes (Black Liquor)a | D15: 95300 | E15: 80700 | F15: 110000 | G15: 3 | H15: 1 | I15: 18 | J15: 2 | K15: 1 | L15: 21 | M15: =D15*Conversions!$L$4+'Fuel EFs'!G15*Conversions!$L$5+'Fuel EFs'!J15*Conversions!$L$6 -> 95971 | N15: =E15*Conversions!$L$4+'Fuel EFs'!H15*Conversions!$L$5+'Fuel EFs'!K15*Conversions!$L$6 -> 81023 | O15: =F15*Conversions!$L$4+'Fuel EFs'!I15*Conversions!$L$5+'Fuel EFs'!L15*Conversions!$L$6 -> 116708 | Q15: 11.8 | T15: =U15*Conversions!$E$84 -> 0.005352389966 | U15: =Q15*Conversions!$F$80 -> 0.0118 | V15: =Conversions!$K$58 -> 1.055056 | W15: =Conversions!$K$59 -> 0.105506
A16: 43 | B16: Biomass - Wood / Wood Waste | C16: Wood / Wood Waste | D16: 112000 | E16: 95000 | F16: 132000 | G16: 30 | H16: 10 | I16: 100 | J16: 4 | K16: 1.5 | L16: 15 | M16: =D16*Conversions!$L$4+'Fuel EFs'!G16*Conversions!$L$5+'Fuel EFs'!J16*Conversions!$L$6 -> 113942 | N16: =E16*Conversions!$L$4+'Fuel EFs'!H16*Conversions!$L$5+'Fuel EFs'!K16*Conversions!$L$6 -> 95697 | O16: =F16*Conversions!$L$4+'Fuel EFs'!I16*Conversions!$L$5+'Fuel EFs'!L16*Conversions!$L$6 -> 138970 | Q16: 15.6 | T16: =U16*Conversions!$E$84 -> 0.007076040972 | U16: =Q16*Conversions!$F$80 -> 0.0156 | V16: =Conversions!$K$58 -> 1.055056 | W16: =Conversions!$K$59 -> 0.105506
A17: 15 | B17: Bitumen | C17: Bitumen | D17: 80700 | E17: 73000 | F17: 89900 | G17: 3 | H17: 1 | I17: 10 | J17: 0.6 | K17: 0.2 | L17: 2 | M17: =D17*Conversions!$L$4+'Fuel EFs'!G17*Conversions!$L$5+'Fuel EFs'!J17*Conversions!$L$6 -> 80953.8 | N17: =E17*Conversions!$L$4+'Fuel EFs'!H17*Conversions!$L$5+'Fuel EFs'!K17*Conversions!$L$6 -> 73084.6 | O17: =F17*Conversions!$L$4+'Fuel EFs'!I17*Conversions!$L$5+'Fuel EFs'!L17*Conversions!$L$6 -> 90746 | Q17: 40.2 | T17: =U17*Conversions!$E$84 -> 0.01823441327 | U17: =Q17*Conversions!$F$80 -> 0.0402 | V17: =Conversions!$K$58 -> 1.055056 | W17: =Conversions!$K$59 -> 0.105506
A18: 36 | B18: Blast Furnace Gas | C18: Blast Furnace Gas | D18: 260000 | E18: 219000 | F18: 308000 | G18: 1 | H18: 0.3 | I18: 3 | J18: 0.1 | K18: 0.03 | L18: 0.3 | M18: =D18*Conversions!$L$4+'Fuel EFs'!G18*Conversions!$L$5+'Fuel EFs'!J18*Conversions!$L$6 -> 260054.8 | N18: =E18*Conversions!$L$4+'Fuel EFs'!H18*Conversions!$L$5+'Fuel EFs'!K18*Conversions!$L$6 -> 219016.44 | O18: =F18*Conversions!$L$4+'Fuel EFs'!I18*Conversions!$L$5+'Fuel EFs'!L18*Conversions!$L$6 -> 308164.4 | Q18: 2.47 | T18: =U18*Conversions!$E$84 -> 0.001120373154 | U18: =Q18*Conversions!$F$80 -> 0.00247 | V18: =Conversions!$K$58 -> 1.055056 | W18: =Conversions!$K$59 -> 0.105506
A19: 29 | B19: Brown Coal Briquettes | C19: Brown Coal Briquettes | D19: 97500 | E19: 87300 | F19: 109000 | G19: 1 | H19: 0.3 | I19: 3 | J19: 1.5 | K19: 0.5 | L19: 5 | M19: =D19*Conversions!$L$4+'Fuel EFs'!G19*Conversions!$L$5+'Fuel EFs'!J19*Conversions!$L$6 -> 97972 | N19: =E19*Conversions!$L$4+'Fuel EFs'!H19*Conversions!$L$5+'Fuel EFs'!K19*Conversions!$L$6 -> 87456.5 | O19: =F19*Conversions!$L$4+'Fuel EFs'!I19*Conversions!$L$5+'Fuel EFs'!L19*Conversions!$L$6 -> 110565 | Q19: 20.7 | T19: =U19*Conversions!$E$84 -> 0.009389362059 | U19: =Q19*Conversions!$F$80 -> 0.0207 | V19: =Conversions!$K$58 -> 1.055056 | W19: =Conversions!$K$59 -> 0.105506
A20: 23 | B20: Coal - Anthracite | C20: Anthracite | D20: 98300 | E20: 94600 | F20: 101000 | G20: 1 | H20: 0.3 | I20: 3 | J20: 1.5 | K20: 0.5 | L20: 5 | M20: =D20*Conversions!$L$4+'Fuel EFs'!G20*Conversions!$L$5+'Fuel EFs'!J20*Conversions!$L$6 -> 98772 | N20: =E20*Conversions!$L$4+'Fuel EFs'!H20*Conversions!$L$5+'Fuel EFs'!K20*Conversions!$L$6 -> 94756.5 | O20: =F20*Conversions!$L$4+'Fuel EFs'!I20*Conversions!$L$5+'Fuel EFs'!L20*Conversions!$L$6 -> 102565 | Q20: 26.7 | T20: =U20*Conversions!$E$84 -> 0.01211091628 | U20: =Q20*Conversions!$F$80 -> 0.0267 | V20: =Conversions!$K$58 -> 1.055056 | W20: =Conversions!$K$59 -> 0.105506
A21: 25 | B21: Coal - Bituminous | C21: Other Bituminous Coal | D21: 94600 | E21: 89500 | F21: 99700 | G21: 1 | H21: 0.3 | I21: 3 | J21: 1.5 | K21: 0.5 | L21: 5 | M21: =D21*Conversions!$L$4+'Fuel EFs'!G21*Conversions!$L$5+'Fuel EFs'!J21*Conversions!$L$6 -> 95072 | N21: =E21*Conversions!$L$4+'Fuel EFs'!H21*Conversions!$L$5+'Fuel EFs'!K21*Conversions!$L$6 -> 89656.5 | O21: =F21*Conversions!$L$4+'Fuel EFs'!I21*Conversions!$L$5+'Fuel EFs'!L21*Conversions!$L$6 -> 101265 | Q21: 25.8 | T21: =U21*Conversions!$E$84 -> 0.01170268315 | U21: =Q21*Conversions!$F$80 -> 0.0258 | V21: =Conversions!$K$58 -> 1.055056 | W21: =Conversions!$K$59 -> 0.105506
A22: 24 | B22: Coal - Coking Coal | C22: Coking Coal | D22: 94600 | E22: 87300 | F22: 101000 | G22: 1 | H22: 0.3 | I22: 3 | J22: 1.5 | K22: 0.5 | L22: 5 | M22: =D22*Conversions!$L$4+'Fuel EFs'!G22*Conversions!$L$5+'Fuel EFs'!J22*Conversions!$L$6 -> 95072 | N22: =E22*Conversions!$L$4+'Fuel EFs'!H22*Conversions!$L$5+'Fuel EFs'!K22*Conversions!$L$6 -> 87456.5 | O22: =F22*Conversions!$L$4+'Fuel EFs'!I22*Conversions!$L$5+'Fuel EFs'!L22*Conversions!$L$6 -> 102565 | Q22: 28.2 | T22: =U22*Conversions!$E$84 -> 0.01279130483 | U22: =Q22*Conversions!$F$80 -> 0.0282 | V22: =Conversions!$K$58 -> 1.055056 | W22: =Conversions!$K$59 -> 0.105506
A23: 27 | B23: Coal - Lignite | C23: Lignite | D23: 101000 | E23: 90900 | F23: 115000 | G23: 1 | H23: 0.3 | I23: 3 | J23: 1.5 | K23: 0.5 | L23: 5 | M23: =D23*Conversions!$L$4+'Fuel EFs'!G23*Conversions!$L$5+'Fuel EFs'!J23*Conversions!$L$6 -> 101472 | N23: =E23*Conversions!$L$4+'Fuel EFs'!H23*Conversions!$L$5+'Fuel EFs'!K23*Conversions!$L$6 -> 91056.5 | O23: =F23*Conversions!$L$4+'Fuel EFs'!I23*Conversions!$L$5+'Fuel EFs'!L23*Conversions!$L$6 -> 116565 | Q23: 11.9 | T23: =U23*Conversions!$E$84 -> 0.005397749203 | U23: =Q23*Conversions!$F$80 -> 0.0119 | V23: =Conversions!$K$58 -> 1.055056 | W23: =Conversions!$K$59 -> 0.105506
A24: 26 | B24: Coal - Sub-Bituminous | C24: Sub-Bituminous Coal | D24: 96100 | E24: 92800 | F24: 100000 | G24: 1 | H24: 0.3 | I24: 3 | J24: 1.5 | K24: 0.5 | L24: 5 | M24: =D24*Conversions!$L$4+'Fuel EFs'!G24*Conversions!$L$5+'Fuel EFs'!J24*Conversions!$L$6 -> 96572 | N24: =E24*Conversions!$L$4+'Fuel EFs'!H24*Conversions!$L$5+'Fuel EFs'!K24*Conversions!$L$6 -> 92956.5 | O24: =F24*Conversions!$L$4+'Fuel EFs'!I24*Conversions!$L$5+'Fuel EFs'!L24*Conversions!$L$6 -> 101565 | Q24: 18.9 | T24: =U24*Conversions!$E$84 -> 0.008572895793 | U24: =Q24*Conversions!$F$80 -> 0.0189 | V24: =Conversions!$K$58 -> 1.055056 | W24: =Conversions!$K$59 -> 0.105506
A25: 33 | B25: Coal Tar | C25: Coal Tar | D25: 80700 | E25: 68200 | F25: 95300 | G25: 1 | H25: 0.3 | I25: 3 | J25: 1.5 | K25: 0.5 | L25: 5 | M25: =D25*Conversions!$L$4+'Fuel EFs'!G25*Conversions!$L$5+'Fuel EFs'!J25*Conversions!$L$6 -> 81172 | N25: =E25*Conversions!$L$4+'Fuel EFs'!H25*Conversions!$L$5+'Fuel EFs'!K25*Conversions!$L$6 -> 68356.5 | O25: =F25*Conversions!$L$4+'Fuel EFs'!I25*Conversions!$L$5+'Fuel EFs'!L25*Conversions!$L$6 -> 96865 | Q25: 28 | T25: =U25*Conversions!$E$84 -> 0.01270058636 | U25: =Q25*Conversions!$F$80 -> 0.028 | V25: =Conversions!$K$58 -> 1.055056 | W25: =Conversions!$K$59 -> 0.105506
A26: 31 | B26: Coke - Coke Oven and Lignite | C26: Coke Oven Coke and Lignite Coke | D26: 107000 | E26: 95700 | F26: 119000 | G26: 1 | H26: 0.3 | I26: 3 | J26: 1.5 | K26: 0.5 | L26: 4 | M26: =D26*Conversions!$L$4+'Fuel EFs'!G26*Conversions!$L$5+'Fuel EFs'!J26*Conversions!$L$6 -> 107472 | N26: =E26*Conversions!$L$4+'Fuel EFs'!H26*Conversions!$L$5+'Fuel EFs'!K26*Conversions!$L$6 -> 95856.5 | O26: =F26*Conversions!$L$4+'Fuel EFs'!I26*Conversions!$L$5+'Fuel EFs'!L26*Conversions!$L$6 -> 120267 | Q26: 28.2 | T26: =U26*Conversions!$E$84 -> 0.01279130483 | U26: =Q26*Conversions!$F$80 -> 0.0282 | V26: =Conversions!$K$58 -> 1.055056 | W26: =Conversions!$K$59 -> 0.105506
A27: 32 | B27: Coke - Gas | C27: Gas Coke | D27: 107000 | E27: 95700 | F27: 119000 | G27: 1 | H27: 0.3 | I27: 3 | J27: 0.1 | K27: 0.03 | L27: 0.3 | M27: =D27*Conversions!$L$4+'Fuel EFs'!G27*Conversions!$L$5+'Fuel EFs'!J27*Conversions!$L$6 -> 107054.8 | N27: =E27*Conversions!$L$4+'Fuel EFs'!H27*Conversions!$L$5+'Fuel EFs'!K27*Conversions!$L$6 -> 95716.44 | O27: =F27*Conversions!$L$4+'Fuel EFs'!I27*Conversions!$L$5+'Fuel EFs'!L27*Conversions!$L$6 -> 119164.4 | Q27: 28.2 | T27: =U27*Conversions!$E$84 -> 0.01279130483 | U27: =Q27*Conversions!$F$80 -> 0.0282 | V27: =Conversions!$K$58 -> 1.055056 | W27: =Conversions!$K$59 -> 0.105506
A28: 35 | B28: Coke Oven Gas | C28: Coke Oven Gas | D28: 44400 | E28: 37300 | F28: 54100 | G28: 1 | H28: 0.3 | I28: 3 | J28: 0.1 | K28: 0.03 | L28: 0.3 | M28: =D28*Conversions!$L$4+'Fuel EFs'!G28*Conversions!$L$5+'Fuel EFs'!J28*Conversions!$L$6 -> 44454.8 | N28: =E28*Conversions!$L$4+'Fuel EFs'!H28*Conversions!$L$5+'Fuel EFs'!K28*Conversions!$L$6 -> 37316.44 | O28: =F28*Conversions!$L$4+'Fuel EFs'!I28*Conversions!$L$5+'Fuel EFs'!L28*Conversions!$L$6 -> 54264.4 | Q28: 38.7 | T28: =U28*Conversions!$E$84 -> 0.01755402472 | U28: =Q28*Conversions!$F$80 -> 0.0387 | V28: =Conversions!$K$58 -> 1.055056 | W28: =Conversions!$K$59 -> 0.105506
A29: 13 | B29: Ethane | C29: Ethane | D29: 61600 | E29: 56500 | F29: 68600 | G29: 1 | H29: 0.3 | I29: 3 | J29: 0.1 | K29: 0.03 | L29: 0.3 | M29: =D29*Conversions!$L$4+'Fuel EFs'!G29*Conversions!$L$5+'Fuel EFs'!J29*Conversions!$L$6 -> 61654.8 | N29: =E29*Conversions!$L$4+'Fuel EFs'!H29*Conversions!$L$5+'Fuel EFs'!K29*Conversions!$L$6 -> 56516.44 | O29: =F29*Conversions!$L$4+'Fuel EFs'!I29*Conversions!$L$5+'Fuel EFs'!L29*Conversions!$L$6 -> 68764.4 | Q29: 46.4 | T29: =U29*Conversions!$E$84 -> 0.02104668597 | U29: =Q29*Conversions!$F$80 -> 0.0464 | V29: =Conversions!$K$58 -> 1.055056 | W29: =Conversions!$K$59 -> 0.105506
A30: 34 | B30: Gas Works Gas | C30: Gas Works Gas | D30: 44400 | E30: 37300 | F30: 54100 | G30: 1 | H30: 0.3 | I30: 3 | J30: 0.1 | K30: 0.03 | L30: 0.3 | M30: =D30*Conversions!$L$4+'Fuel EFs'!G30*Conversions!$L$5+'Fuel EFs'!J30*Conversions!$L$6 -> 44454.8 | N30: =E30*Conversions!$L$4+'Fuel EFs'!H30*Conversions!$L$5+'Fuel EFs'!K30*Conversions!$L$6 -> 37316.44 | O30: =F30*Conversions!$L$4+'Fuel EFs'!I30*Conversions!$L$5+'Fuel EFs'!L30*Conversions!$L$6 -> 54264.4 | Q30: 38.7 | T30: =U30*Conversions!$E$84 -> 0.01755402472 | U30: =Q30*Conversions!$F$80 -> 0.0387 | V30: =Conversions!$K$58 -> 1.055056 | W30: =Conversions!$K$59 -> 0.105506
A31: 5 | B31: Gasoline - Aviation | C31: Aviation Gasoline | D31: 70000 | E31: 67500 | F31: 73000 | G31: 3 | H31: 1 | I31: 10 | J31: 0.6 | K31: 0.2 | L31: 2 | M31: =D31*Conversions!$L$4+'Fuel EFs'!G31*Conversions!$L$5+'Fuel EFs'!J31*Conversions!$L$6 -> 70253.8 | N31: =E31*Conversions!$L$4+'Fuel EFs'!H31*Conversions!$L$5+'Fuel EFs'!K31*Conversions!$L$6 -> 67584.6 | O31: =F31*Conversions!$L$4+'Fuel EFs'!I31*Conversions!$L$5+'Fuel EFs'!L31*Conversions!$L$6 -> 73846 | P31: 0.71 | Q31: 44.3 | R31: =S31*Conversions!$D$128 -> 0.1190625636 | S31: =P31*Conversions!$F$80*Q31 -> 0.031453 | T31: =U31*Conversions!$E$84 -> 0.02009414199 | U31: =Q31*Conversions!$F$80 -> 0.0443 | V31: =Conversions!$K$58 -> 1.055056 | W31: =Conversions!$K$59 -> 0.105506
A32: 6 | B32: Gasoline - Jet | C32: Jet Gasoline | D32: 70000 | E32: 67500 | F32: 73000 | G32: 3 | H32: 1 | I32: 10 | J32: 0.6 | K32: 0.2 | L32: 2 | M32: =D32*Conversions!$L$4+'Fuel EFs'!G32*Conversions!$L$5+'Fuel EFs'!J32*Conversions!$L$6 -> 70253.8 | N32: =E32*Conversions!$L$4+'Fuel EFs'!H32*Conversions!$L$5+'Fuel EFs'!K32*Conversions!$L$6 -> 67584.6 | O32: =F32*Conversions!$L$4+'Fuel EFs'!I32*Conversions!$L$5+'Fuel EFs'!L32*Conversions!$L$6 -> 73846 | Q32: 44.3 | T32: =U32*Conversions!$E$84 -> 0.02009414199 | U32: =Q32*Conversions!$F$80 -> 0.0443 | V32: =Conversions!$K$58 -> 1.055056 | W32: =Conversions!$K$59 -> 0.105506
A33: 4 | B33: Gasoline - Motor | C33: Motor Gasoline | D33: 69300 | E33: 67500 | F33: 73000 | G33: 3 | H33: 1 | I33: 10 | J33: 0.6 | K33: 0.2 | L33: 2 | M33: =D33*Conversions!$L$4+'Fuel EFs'!G33*Conversions!$L$5+'Fuel EFs'!J33*Conversions!$L$6 -> 69553.8 | N33: =E33*Conversions!$L$4+'Fuel EFs'!H33*Conversions!$L$5+'Fuel EFs'!K33*Conversions!$L$6 -> 67584.6 | O33: =F33*Conversions!$L$4+'Fuel EFs'!I33*Conversions!$L$5+'Fuel EFs'!L33*Conversions!$L$6 -> 73846 | P33: 0.74 | Q33: 44.3 | R33: =S33*Conversions!$D$128 -> 0.1240933762 | S33: =P33*Conversions!$F$80*Q33 -> 0.032782 | T33: =U33*Conversions!$E$84 -> 0.02009414199 | U33: =Q33*Conversions!$F$80 -> 0.0443 | V33: =Conversions!$K$58 -> 1.055056 | W33: =Conversions!$K$59 -> 0.105506
A34: 40 | B34: Industrial Wastes | C34: Industrial Wastes | D34: 143000 | E34: 110000 | F34: 183000 | G34: 30 | H34: 10 | I34: 100 | J34: 4 | K34: 1.5 | L34: 15 | M34: =D34*Conversions!$L$4+'Fuel EFs'!G34*Conversions!$L$5+'Fuel EFs'!J34*Conversions!$L$6 -> 144942 | N34: =E34*Conversions!$L$4+'Fuel EFs'!H34*Conversions!$L$5+'Fuel EFs'!K34*Conversions!$L$6 -> 110697 | O34: =F34*Conversions!$L$4+'Fuel EFs'!I34*Conversions!$L$5+'Fuel EFs'!L34*Conversions!$L$6 -> 189970 | Q34: NA | T34: NA | U34: NA | V34: =Conversions!$K$58 -> 1.055056 | W34: =Conversions!$K$59 -> 0.105506
A35: 7 | B35: Kerosene - Jet | C35: Jet Kerosene | D35: 71500 | E35: 69700 | F35: 74400 | G35: 3 | H35: 1 | I35: 10 | J35: 0.6 | K35: 0.2 | L35: 2 | M35: =D35*Conversions!$L$4+'Fuel EFs'!G35*Conversions!$L$5+'Fuel EFs'!J35*Conversions!$L$6 -> 71753.8 | N35: =E35*Conversions!$L$4+'Fuel EFs'!H35*Conversions!$L$5+'Fuel EFs'!K35*Conversions!$L$6 -> 69784.6 | O35: =F35*Conversions!$L$4+'Fuel EFs'!I35*Conversions!$L$5+'Fuel EFs'!L35*Conversions!$L$6 -> 75246 | P35: 0.79 | Q35: 44.1 | R35: =S35*Conversions!$D$128 -> 0.1318799687 | S35: =P35*Conversions!$F$80*Q35 -> 0.034839 | T35: =U35*Conversions!$E$84 -> 0.02000342352 | U35: =Q35*Conversions!$F$80 -> 0.0441 | V35: =Conversions!$K$58 -> 1.055056 | W35: =Conversions!$K$59 -> 0.105506
A36: 8 | B36: Kerosene - Other | C36: Other Kerosene | D36: 71900 | E36: 70800 | F36: 73700 | G36: 3 | H36: 1 | I36: 10 | J36: 0.6 | K36: 0.2 | L36: 2 | M36: =D36*Conversions!$L$4+'Fuel EFs'!G36*Conversions!$L$5+'Fuel EFs'!J36*Conversions!$L$6 -> 72153.8 | N36: =E36*Conversions!$L$4+'Fuel EFs'!H36*Conversions!$L$5+'Fuel EFs'!K36*Conversions!$L$6 -> 70884.6 | O36: =F36*Conversions!$L$4+'Fuel EFs'!I36*Conversions!$L$5+'Fuel EFs'!L36*Conversions!$L$6 -> 74546 | P36: 0.8 | Q36: 43.8 | R36: =S36*Conversions!$D$128 -> 0.1326408365 | S36: =P36*Conversions!$F$80*Q36 -> 0.03504 | T36: =U36*Conversions!$E$84 -> 0.01986734581 | U36: =Q36*Conversions!$F$80 -> 0.0438 | V36: =Conversions!$K$58 -> 1.055056 | W36: =Conversions!$K$59 -> 0.105506
A37: 12 | B37: Liquefied Petroleum Gases | C37: Liquefied Petroleum Gases | D37: 63100 | E37: 61600 | F37: 65600 | G37: 1 | H37: 0.3 | I37: 3 | J37: 0.1 | K37: 0.03 | L37: 0.3 | M37: =D37*Conversions!$L$4+'Fuel EFs'!G37*Conversions!$L$5+'Fuel EFs'!J37*Conversions!$L$6 -> 63154.8 | N37: =E37*Conversions!$L$4+'Fuel EFs'!H37*Conversions!$L$5+'Fuel EFs'!K37*Conversions!$L$6 -> 61616.44 | O37: =F37*Conversions!$L$4+'Fuel EFs'!I37*Conversions!$L$5+'Fuel EFs'!L37*Conversions!$L$6 -> 65764.4 | P37: 0.54 | Q37: 47.3 | R37: =S37*Conversions!$D$128 -> 0.0966869933 | S37: =P37*Conversions!$F$80*Q37 -> 0.025542 | T37: =U37*Conversions!$E$84 -> 0.0214549191 | U37: =Q37*Conversions!$F$80 -> 0.0473 | V37: =Conversions!$K$58 -> 1.055056 | W37: =Conversions!$K$59 -> 0.105506
A38: 16 | B38: Lubricants | C38: Lubricants | D38: 73300 | E38: 71900 | F38: 75200 | G38: 3 | H38: 1 | I38: 10 | J38: 0.6 | K38: 0.2 | L38: 2 | M38: =D38*Conversions!$L$4+'Fuel EFs'!G38*Conversions!$L$5+'Fuel EFs'!J38*Conversions!$L$6 -> 73553.8 | N38: =E38*Conversions!$L$4+'Fuel EFs'!H38*Conversions!$L$5+'Fuel EFs'!K38*Conversions!$L$6 -> 71984.6 | O38: =F38*Conversions!$L$4+'Fuel EFs'!I38*Conversions!$L$5+'Fuel EFs'!L38*Conversions!$L$6 -> 76046 | P38: 1 | Q38: 40.2 | R38: =S38*Conversions!$D$128 -> 0.1521735624 | S38: =P38*Conversions!$F$80*Q38 -> 0.0402 | T38: =U38*Conversions!$E$84 -> 0.01823441327 | U38: =Q38*Conversions!$F$80 -> 0.0402 | V38: =Conversions!$K$58 -> 1.055056 | W38: =Conversions!$K$59 -> 0.105506
A39: 53 | B39: Municipal Wastes (biomass fraction) | C39: Municipal Wastes (biomass fraction) | D39: 100000 | E39: 84700 | F39: 117000 | G39: 30 | H39: 10 | I39: 100 | J39: 4 | K39: 0.03 | L39: 15 | M39: =D39*Conversions!$L$4+'Fuel EFs'!G39*Conversions!$L$5+'Fuel EFs'!J39*Conversions!$L$6 -> 101942 | N39: =E39*Conversions!$L$4+'Fuel EFs'!H39*Conversions!$L$5+'Fuel EFs'!K39*Conversions!$L$6 -> 84958.94 | O39: =F39*Conversions!$L$4+'Fuel EFs'!I39*Conversions!$L$5+'Fuel EFs'!L39*Conversions!$L$6 -> 123970 | Q39: 11.6 | T39: =U39*Conversions!$E$84 -> 0.005261671492 | U39: =Q39*Conversions!$F$80 -> 0.0116 | V39: =Conversions!$K$58 -> 1.055056 | W39: =Conversions!$K$59 -> 0.105506
A40: 39 | B40: Municipal Wastes (nonbiomass fraction) | C40: Municipal Wastes (nonbiomass fraction) | D40: 91700 | E40: 73300 | F40: 121000 | G40: 30 | H40: 10 | I40: 100 | J40: 4 | K40: 1.5 | L40: 15 | M40: =D40*Conversions!$L$4+'Fuel EFs'!G40*Conversions!$L$5+'Fuel EFs'!J40*Conversions!$L$6 -> 93642 | N40: =E40*Conversions!$L$4+'Fuel EFs'!H40*Conversions!$L$5+'Fuel EFs'!K40*Conversions!$L$6 -> 73997 | O40: =F40*Conversions!$L$4+'Fuel EFs'!I40*Conversions!$L$5+'Fuel EFs'!L40*Conversions!$L$6 -> 127970 | Q40: 10 | T40: =U40*Conversions!$E$84 -> 0.0045359237 | U40: =Q40*Conversions!$F$80 -> 0.01 | V40: =Conversions!$K$58 -> 1.055056 | W40: =Conversions!$K$59 -> 0.105506
A41: 14 | B41: Naphtha | C41: Naphtha | D41: 73300 | E41: 69300 | F41: 76300 | G41: 3 | H41: 1 | I41: 10 | J41: 0.6 | K41: 0.2 | L41: 2 | M41: =D41*Conversions!$L$4+'Fuel EFs'!G41*Conversions!$L$5+'Fuel EFs'!J41*Conversions!$L$6 -> 73553.8 | N41: =E41*Conversions!$L$4+'Fuel EFs'!H41*Conversions!$L$5+'Fuel EFs'!K41*Conversions!$L$6 -> 69384.6 | O41: =F41*Conversions!$L$4+'Fuel EFs'!I41*Conversions!$L$5+'Fuel EFs'!L41*Conversions!$L$6 -> 77146 | P41: 0.77 | Q41: 44.5 | R41: =S41*Conversions!$D$128 -> 0.1297071422 | S41: =P41*Conversions!$F$80*Q41 -> 0.034265 | T41: =U41*Conversions!$E$84 -> 0.02018486046 | U41: =Q41*Conversions!$F$80 -> 0.0445 | V41: =Conversions!$K$58 -> 1.055056 | W41: =Conversions!$K$59 -> 0.105506
A42: 38 | B42: Natural Gas | C42: Natural Gas | D42: 56100 | E42: 54300 | F42: 58300 | G42: 1 | H42: 0.3 | I42: 3 | J42: 0.1 | K42: 0.03 | L42: 0.3 | M42: =D42*Conversions!$L$4+'Fuel EFs'!G42*Conversions!$L$5+'Fuel EFs'!J42*Conversions!$L$6 -> 56154.8 | N42: =E42*Conversions!$L$4+'Fuel EFs'!H42*Conversions!$L$5+'Fuel EFs'!K42*Conversions!$L$6 -> 54316.44 | O42: =F42*Conversions!$L$4+'Fuel EFs'!I42*Conversions!$L$5+'Fuel EFs'!L42*Conversions!$L$6 -> 58464.4 | Q42: 48 | T42: =U42*Conversions!$E$84 -> 0.02177243376 | U42: =Q42*Conversions!$F$80 -> 0.048 | V42: =Conversions!$K$58 -> 1.055056 | W42: =Conversions!$K$59 -> 0.105506 | X42: =1023*Conversions!H132/10*'Fuel EFs'!V42*Conversions!M57 -> 0.1079322288
A43: 3 | B43: Natural Gas Liquids | C43: Natural Gas Liquids | D43: 64200 | E43: 58300 | F43: 70400 | G43: 3 | H43: 1 | I43: 10 | J43: 0.6 | K43: 0.2 | L43: 2 | M43: =D43*Conversions!$L$4+'Fuel EFs'!G43*Conversions!$L$5+'Fuel EFs'!J43*Conversions!$L$6 -> 64453.8 | N43: =E43*Conversions!$L$4+'Fuel EFs'!H43*Conversions!$L$5+'Fuel EFs'!K43*Conversions!$L$6 -> 58384.6 | O43: =F43*Conversions!$L$4+'Fuel EFs'!I43*Conversions!$L$5+'Fuel EFs'!L43*Conversions!$L$6 -> 71246 | P43: 0.47 | Q43: 44.2 | R43: =S43*Conversions!$D$128 -> 0.07863814889 | S43: =P43*Conversions!$F$80*Q43 -> 0.020774 | T43: =U43*Conversions!$E$84 -> 0.02004878275 | U43: =Q43*Conversions!$F$80 -> 0.0442 | V43: =Conversions!$K$58 -> 1.055056 | W43: =Conversions!$K$59 -> 0.105506
A44: 1 | B44: Oil - Crude | C44: Crude Oil | D44: 73300 | E44: 71100 | F44: 75500 | G44: 3 | H44: 1 | I44: 10 | J44: 0.6 | K44: 0.2 | L44: 2 | M44: =D44*Conversions!$L$4+'Fuel EFs'!G44*Conversions!$L$5+'Fuel EFs'!J44*Conversions!$L$6 -> 73553.8 | N44: =E44*Conversions!$L$4+'Fuel EFs'!H44*Conversions!$L$5+'Fuel EFs'!K44*Conversions!$L$6 -> 71184.6 | O44: =F44*Conversions!$L$4+'Fuel EFs'!I44*Conversions!$L$5+'Fuel EFs'!L44*Conversions!$L$6 -> 76346 | P44: 0.8 | Q44: 42.3 | R44: =S44*Conversions!$D$128 -> 0.1280983421 | S44: =P44*Conversions!$F$80*Q44 -> 0.03384 | T44: =U44*Conversions!$E$84 -> 0.01918695725 | U44: =Q44*Conversions!$F$80 -> 0.0423 | V44: =Conversions!$K$58 -> 1.055056 | W44: =Conversions!$K$59 -> 0.105506
A45: 10 | B45: Oil - Gas/Diesel | C45: Gas/Diesel Oil | D45: 74100 | E45: 72600 | F45: 74800 | G45: 3 | H45: 1 | I45: 10 | J45: 0.6 | K45: 0.2 | L45: 2 | M45: =D45*Conversions!$L$4+'Fuel EFs'!G45*Conversions!$L$5+'Fuel EFs'!J45*Conversions!$L$6 -> 74353.8 | N45: =E45*Conversions!$L$4+'Fuel EFs'!H45*Conversions!$L$5+'Fuel EFs'!K45*Conversions!$L$6 -> 72684.6 | O45: =F45*Conversions!$L$4+'Fuel EFs'!I45*Conversions!$L$5+'Fuel EFs'!L45*Conversions!$L$6 -> 75646 | P45: 0.84 | Q45: 43 | R45: =S45*Conversions!$D$128 -> 0.1367290814 | S45: =P45*Conversions!$F$80*Q45 -> 0.03612 | T45: =U45*Conversions!$E$84 -> 0.01950447191 | U45: =Q45*Conversions!$F$80 -> 0.043 | V45: =Conversions!$K$58 -> 1.055056 | W45: =Conversions!$K$59 -> 0.105506
A46: 22 | B46: Oil - Other Petroleum | C46: Other Petroleum Products | D46: 73300 | E46: 72200 | F46: 74400 | G46: 3 | H46: 1 | I46: 10 | J46: 0.6 | K46: 0.2 | L46: 2 | M46: =D46*Conversions!$L$4+'Fuel EFs'!G46*Conversions!$L$5+'Fuel EFs'!J46*Conversions!$L$6 -> 73553.8 | N46: =E46*Conversions!$L$4+'Fuel EFs'!H46*Conversions!$L$5+'Fuel EFs'!K46*Conversions!$L$6 -> 72284.6 | O46: =F46*Conversions!$L$4+'Fuel EFs'!I46*Conversions!$L$5+'Fuel EFs'!L46*Conversions!$L$6 -> 75246 | Q46: 40.2 | T46: =U46*Conversions!$E$84 -> 0.01823441327 | U46: =Q46*Conversions!$F$80 -> 0.0402 | V46: =Conversions!$K$58 -> 1.055056 | W46: =Conversions!$K$59 -> 0.105506
A47: 20 | B47: Oil - Paraffin Waxes | C47: Paraffin Waxes | D47: 73300 | E47: 72200 | F47: 74400 | G47: 3 | H47: 1 | I47: 10 | J47: 0.6 | K47: 0.2 | L47: 2 | M47: =D47*Conversions!$L$4+'Fuel EFs'!G47*Conversions!$L$5+'Fuel EFs'!J47*Conversions!$L$6 -> 73553.8 | N47: =E47*Conversions!$L$4+'Fuel EFs'!H47*Conversions!$L$5+'Fuel EFs'!K47*Conversions!$L$6 -> 72284.6 | O47: =F47*Conversions!$L$4+'Fuel EFs'!I47*Conversions!$L$5+'Fuel EFs'!L47*Conversions!$L$6 -> 75246 | Q47: 40.2 | T47: =U47*Conversions!$E$84 -> 0.01823441327 | U47: =Q47*Conversions!$F$80 -> 0.0402 | V47: =Conversions!$K$58 -> 1.055056 | W47: =Conversions!$K$59 -> 0.105506
A48: 19 | B48: Oil - Refinery Gas | C48: Refinery Gas | D48: 57600 | E48: 48200 | F48: 69000 | G48: 1 | H48: 0.3 | I48: 3 | J48: 0.1 | K48: 0.03 | L48: 0.3 | M48: =D48*Conversions!$L$4+'Fuel EFs'!G48*Conversions!$L$5+'Fuel EFs'!J48*Conversions!$L$6 -> 57654.8 | N48: =E48*Conversions!$L$4+'Fuel EFs'!H48*Conversions!$L$5+'Fuel EFs'!K48*Conversions!$L$6 -> 48216.44 | O48: =F48*Conversions!$L$4+'Fuel EFs'!I48*Conversions!$L$5+'Fuel EFs'!L48*Conversions!$L$6 -> 69164.4 | Q48: 49.5 | T48: =U48*Conversions!$E$84 -> 0.02245282232 | U48: =Q48*Conversions!$F$80 -> 0.0495 | V48: =Conversions!$K$58 -> 1.055056 | W48: =Conversions!$K$59 -> 0.105506
A49: 11 | B49: Oil - Residual Fuel | C49: Residual Fuel Oil | D49: 77400 | E49: 75500 | F49: 78800 | G49: 3 | H49: 3 | I49: 30 | J49: 0.6 | K49: 0.2 | L49: 2 | M49: =D49*Conversions!$L$4+'Fuel EFs'!G49*Conversions!$L$5+'Fuel EFs'!J49*Conversions!$L$6 -> 77653.8 | N49: =E49*Conversions!$L$4+'Fuel EFs'!H49*Conversions!$L$5+'Fuel EFs'!K49*Conversions!$L$6 -> 75634.6 | O49: =F49*Conversions!$L$4+'Fuel EFs'!I49*Conversions!$L$5+'Fuel EFs'!L49*Conversions!$L$6 -> 80146 | P49: 0.94 | Q49: 40.4 | R49: =S49*Conversions!$D$128 -> 0.1437548061 | S49: =P49*Conversions!$F$80*Q49 -> 0.037976 | T49: =U49*Conversions!$E$84 -> 0.01832513175 | U49: =Q49*Conversions!$F$80 -> 0.0404 | V49: =Conversions!$K$58 -> 1.055056 | W49: =Conversions!$K$59 -> 0.105506
A50: 9 | B50: Oil - Shale | C50: Shale Oil | D50: 73300 | E50: 67800 | F50: 79200 | G50: 3 | H50: 1 | I50: 10 | J50: 0.6 | K50: 0.2 | L50: 2 | M50: =D50*Conversions!$L$4+'Fuel EFs'!G50*Conversions!$L$5+'Fuel EFs'!J50*Conversions!$L$6 -> 73553.8 | N50: =E50*Conversions!$L$4+'Fuel EFs'!H50*Conversions!$L$5+'Fuel EFs'!K50*Conversions!$L$6 -> 67884.6 | O50: =F50*Conversions!$L$4+'Fuel EFs'!I50*Conversions!$L$5+'Fuel EFs'!L50*Conversions!$L$6 -> 80046 | P50: 1 | Q50: 38.1 | R50: =S50*Conversions!$D$128 -> 0.1442241972 | S50: =P50*Conversions!$F$80*Q50 -> 0.0381 | T50: =U50*Conversions!$E$84 -> 0.0172818693 | U50: =Q50*Conversions!$F$80 -> 0.0381 | V50: =Conversions!$K$58 -> 1.055056 | W50: =Conversions!$K$59 -> 0.105506
A51: 21 | B51: Oil - White Spirit and SBP | C51: White Spirit and SBP | D51: 73300 | E51: 72200 | F51: 74400 | G51: 3 | H51: 1 | I51: 10 | J51: 0.6 | K51: 0.2 | L51: 2 | M51: =D51*Conversions!$L$4+'Fuel EFs'!G51*Conversions!$L$5+'Fuel EFs'!J51*Conversions!$L$6 -> 73553.8 | N51: =E51*Conversions!$L$4+'Fuel EFs'!H51*Conversions!$L$5+'Fuel EFs'!K51*Conversions!$L$6 -> 72284.6 | O51: =F51*Conversions!$L$4+'Fuel EFs'!I51*Conversions!$L$5+'Fuel EFs'!L51*Conversions!$L$6 -> 75246 | Q51: 40.2 | T51: =U51*Conversions!$E$84 -> 0.01823441327 | U51: =Q51*Conversions!$F$80 -> 0.0402 | V51: =Conversions!$K$58 -> 1.055056 | W51: =Conversions!$K$59 -> 0.105506
A52: 28 | B52: Oil Shale and Tar Sands | C52: Oil Shale and Tar Sands | D52: 107000 | E52: 90200 | F52: 125000 | G52: 1 | H52: 0.3 | I52: 3 | J52: 1.5 | K52: 0.5 | L52: 5 | M52: =D52*Conversions!$L$4+'Fuel EFs'!G52*Conversions!$L$5+'Fuel EFs'!J52*Conversions!$L$6 -> 107472 | N52: =E52*Conversions!$L$4+'Fuel EFs'!H52*Conversions!$L$5+'Fuel EFs'!K52*Conversions!$L$6 -> 90356.5 | O52: =F52*Conversions!$L$4+'Fuel EFs'!I52*Conversions!$L$5+'Fuel EFs'!L52*Conversions!$L$6 -> 126565 | Q52: 8.9 | T52: =U52*Conversions!$E$84 -> 0.004036972093 | U52: =Q52*Conversions!$F$80 -> 0.0089 | V52: =Conversions!$K$58 -> 1.055056 | W52: =Conversions!$K$59 -> 0.105506
A53: 2 | B53: Orimulsion | C53: Orimulsion | D53: 77000 | E53: 69300 | F53: 85400 | G53: 3 | H53: 1 | I53: 10 | J53: 0.6 | K53: 0.2 | L53: 2 | M53: =D53*Conversions!$L$4+'Fuel EFs'!G53*Conversions!$L$5+'Fuel EFs'!J53*Conversions!$L$6 -> 77253.8 | N53: =E53*Conversions!$L$4+'Fuel EFs'!H53*Conversions!$L$5+'Fuel EFs'!K53*Conversions!$L$6 -> 69384.6 | O53: =F53*Conversions!$L$4+'Fuel EFs'!I53*Conversions!$L$5+'Fuel EFs'!L53*Conversions!$L$6 -> 86246 | Q53: 27.5 | T53: =U53*Conversions!$E$84 -> 0.01247379018 | U53: =Q53*Conversions!$F$80 -> 0.0275 | V53: =Conversions!$K$58 -> 1.055056 | W53: =Conversions!$K$59 -> 0.105506
A54: 37 | B54: Oxygen Steel Furnace Gas | C54: Oxygen Steel Furnace Gas | D54: 182000 | E54: 145000 | F54: 202000 | G54: 1 | H54: 0.3 | I54: 3 | J54: 0.1 | K54: 0.03 | L54: 0.3 | M54: =D54*Conversions!$L$4+'Fuel EFs'!G54*Conversions!$L$5+'Fuel EFs'!J54*Conversions!$L$6 -> 182054.8 | N54: =E54*Conversions!$L$4+'Fuel EFs'!H54*Conversions!$L$5+'Fuel EFs'!K54*Conversions!$L$6 -> 145016.44 | O54: =F54*Conversions!$L$4+'Fuel EFs'!I54*Conversions!$L$5+'Fuel EFs'!L54*Conversions!$L$6 -> 202164.4 | Q54: 7.06 | T54: =U54*Conversions!$E$84 -> 0.003202362132 | U54: =Q54*Conversions!$F$80 -> 0.00706 | V54: =Conversions!$K$58 -> 1.055056 | W54: =Conversions!$K$59 -> 0.105506
A55: 30 | B55: Patent Fuel | C55: Patent Fuel | D55: 97500 | E55: 87300 | F55: 109000 | G55: 1 | H55: 0.3 | I55: 3 | J55: 1.5 | K55: 0.5 | L55: 5 | M55: =D55*Conversions!$L$4+'Fuel EFs'!G55*Conversions!$L$5+'Fuel EFs'!J55*Conversions!$L$6 -> 97972 | N55: =E55*Conversions!$L$4+'Fuel EFs'!H55*Conversions!$L$5+'Fuel EFs'!K55*Conversions!$L$6 -> 87456.5 | O55: =F55*Conversions!$L$4+'Fuel EFs'!I55*Conversions!$L$5+'Fuel EFs'!L55*Conversions!$L$6 -> 110565 | Q55: 20.7 | T55: =U55*Conversions!$E$84 -> 0.009389362059 | U55: =Q55*Conversions!$F$80 -> 0.0207 | V55: =Conversions!$K$58 -> 1.055056 | W55: =Conversions!$K$59 -> 0.105506
A56: 42 | B56: Peat | C56: Peata | D56: 106000 | E56: 100000 | F56: 108000 | G56: 1 | H56: 0.3 | I56: 3 | J56: 1.5 | K56: 0.5 | L56: 5 | M56: =D56*Conversions!$L$4+'Fuel EFs'!G56*Conversions!$L$5+'Fuel EFs'!J56*Conversions!$L$6 -> 106472 | N56: =E56*Conversions!$L$4+'Fuel EFs'!H56*Conversions!$L$5+'Fuel EFs'!K56*Conversions!$L$6 -> 100156.5 | O56: =F56*Conversions!$L$4+'Fuel EFs'!I56*Conversions!$L$5+'Fuel EFs'!L56*Conversions!$L$6 -> 109565 | Q56: 9.76 | T56: =U56*Conversions!$E$84 -> 0.004427061531 | U56: =Q56*Conversions!$F$80 -> 0.00976 | V56: =Conversions!$K$58 -> 1.055056 | W56: =Conversions!$K$59 -> 0.105506
A57: 17 | B57: Petroleum Coke | C57: Petroleum Coke | D57: 97500 | E57: 82900 | F57: 115000 | G57: 3 | H57: 1 | I57: 10 | J57: 0.6 | K57: 0.2 | L57: 2 | M57: =D57*Conversions!$L$4+'Fuel EFs'!G57*Conversions!$L$5+'Fuel EFs'!J57*Conversions!$L$6 -> 97753.8 | N57: =E57*Conversions!$L$4+'Fuel EFs'!H57*Conversions!$L$5+'Fuel EFs'!K57*Conversions!$L$6 -> 82984.6 | O57: =F57*Conversions!$L$4+'Fuel EFs'!I57*Conversions!$L$5+'Fuel EFs'!L57*Conversions!$L$6 -> 115846 | Q57: 32.5 | T57: =U57*Conversions!$E$84 -> 0.01474175203 | U57: =Q57*Conversions!$F$80 -> 0.0325 | V57: =Conversions!$K$58 -> 1.055056 | W57: =Conversions!$K$59 -> 0.105506
A58: 18 | B58: Refinery Feedstocks | C58: Refinery Feedstocks | D58: 73300 | E58: 68900 | F58: 76600 | G58: 3 | H58: 1 | I58: 10 | J58: 0.6 | K58: 0.2 | L58: 2 | M58: =D58*Conversions!$L$4+'Fuel EFs'!G58*Conversions!$L$5+'Fuel EFs'!J58*Conversions!$L$6 -> 73553.8 | N58: =E58*Conversions!$L$4+'Fuel EFs'!H58*Conversions!$L$5+'Fuel EFs'!K58*Conversions!$L$6 -> 68984.6 | O58: =F58*Conversions!$L$4+'Fuel EFs'!I58*Conversions!$L$5+'Fuel EFs'!L58*Conversions!$L$6 -> 77446 | Q58: 43 | T58: =U58*Conversions!$E$84 -> 0.01950447191 | U58: =Q58*Conversions!$F$80 -> 0.043 | V58: =Conversions!$K$58 -> 1.055056 | W58: =Conversions!$K$59 -> 0.105506
A59: 41 | B59: Waste Oils | C59: Waste Oils | D59: 73300 | E59: 72200 | F59: 74400 | G59: 30 | H59: 10 | I59: 100 | J59: 4 | K59: 1.5 | L59: 15 | M59: =D59*Conversions!$L$4+'Fuel EFs'!G59*Conversions!$L$5+'Fuel EFs'!J59*Conversions!$L$6 -> 75242 | N59: =E59*Conversions!$L$4+'Fuel EFs'!H59*Conversions!$L$5+'Fuel EFs'!K59*Conversions!$L$6 -> 72897 | O59: =F59*Conversions!$L$4+'Fuel EFs'!I59*Conversions!$L$5+'Fuel EFs'!L59*Conversions!$L$6 -> 81370 | Q59: 40.2 | T59: =U59*Conversions!$E$84 -> 0.01823441327 | U59: =Q59*Conversions!$F$80 -> 0.0402 | V59: =Conversions!$K$58 -> 1.055056 | W59: =Conversions!$K$59 -> 0.105506
B60: a Includes the biomass-derived CO2 emitted from the black liquor combustion unit and the biomass-derived CO2 emitted from the kraft mill lime kiln.
B62: Sources | P62: =50000*44.5 -> 2225000
B63: Fuel Emission Factors: 2006 IPCC Guidelines for National Greenhouse Gas Inventories - Chapter 2: Stationary Combustion.
B64: Table 2.2 - Default Emission Factors for Stationary Combustion in the Energy Industries (kg of greenhouse gas per TJ on a Net Calorific Basis)
B65: Note: Units converted to g of GHG per GJ for purposes of this tool
B66: Heating Value Factors: 2006 IPCC Guidelines for National Greenhouse Gas Inventories - Chapter 1: Introduction
B67: Tables 1.2 - Default Net Calorific Values (NCVs) in TJ per Gg
B68: Note: Units converted to GJ of energy per metric ton (mt) for purposes of this tool
B69: Fuel Density Factors: World Resources Institute - GHG Protocol for Stationary Combustion, 2005.
B70: Emission factors from Cross-cutting tools. Table 1.1 CO2 emission factors by fuel
B71: Heat content of Natural Gas, Btu per Cubic Foot, for 2011, End-Use Sectors is used. http://www.eia.gov/totalenergy/data/annual/showtext.cfm?t=ptb1204, http://www.eia.gov/totalenergy/data/monthly/pdf/sec13_4.pdf

Sheet LineLoss (hidden)
B2: IEA Electricity Information - Lineloss | E2: Regional Averages
A3: IEA Names | B3: Region/Country/Economy | C3: Grid Average Lineloss | E3: Region | F3: Grid Average Lineloss
A4: Afghanistan | B4: Afghanistan | C4: 0.05730004629 | E4: Africa | F4: 0.07571494693
A5: Albania | B5: Albania | C5: 0.1012017018 | E5: Asia | F5: 0.05730004629
A6: Algeria | B6: Algeria | C6: 0.09492160819 | E6: Europe | F6: 0.05810932301
A7: Andorra | B7: Andorra | C7: 0.05810932301 | E7: North America | F7: 0.05767936475
A8: Angola | B8: Angola | C8: 0.07427444358 | E8: Oceania | F8: 0.05200178566
A9: Antigua and Barbuda | B9: Antigua and Barbuda | C9: 0.05767936475 | E9: South America | F9: 0.08380835472
A10: Argentina | B10: Argentina | C10: 0.0848395274
A11: Armenia | B11: Armenia | C11: 0.08111783648
A12: Australia | B12: Australia | C12: 0.0510883071
A13: Austria | B13: Austria | C13: 0.04466872075
A14: Azerbaijan | B14: Azerbaijan | C14: 0.0921910289
A15: Bahamas, The | B15: Bahamas, The | C15: 0.05767936475
A16: Bahrain | B16: Bahrain | C16: 0.05652999654
A17: Bangladesh | B17: Bangladesh | C17: 0.0756347503
A18: Barbados | B18: Barbados | C18: 0.05767936475
A19: Belarus | B19: Belarus | C19: 0.07364560087
A20: Belgium | B20: Belgium | C20: 0.04266864083
A21: Belize | B21: Belize | C21: 0.05767936475
A22: Benin | B22: Benin | C22: 0.07571494693
A23: Bhutan | B23: Bhutan | C23: 0.05730004629
A24: Bolivia | B24: Bolivia | C24: 0.07374593312
A25: Bosnia and Herzegovina | B25: Bosnia and Herzegovina | C25: 0.0703046414
A26: Botswana | B26: Botswana | C26: 0.07571494693
A27: Brazil | B27: Brazil | C27: 0.08950058604
A28: Brunei Darussalam | B28: Brunei Darussalam | C28: 0.06070584111
A29: Bulgaria | B29: Bulgaria | C29: 0.0672753413
A30: Burkina Faso | B30: Burkina Faso | C30: 0.07571494693
A31: Burma | B31: Burma | C31: 0.1028454192
A32: Burundi | B32: Burundi | C32: 0.07571494693
A33: Cambodia | B33: Cambodia | C33: 0.1029562342
A34: Cameroon | B34: Cameroon | C34: 0.06891392247
A35: Canada | B35: Canada | C35: 0.06465087143
A36: Cape Verde | B36: Cape Verde | C36: 0.07571494693
A37: Central African Republic | B37: Central African Republic | C37: 0.07571494693
A38: Chad | B38: Chad | C38: 0.07571494693
A39: Chile | B39: Chile | C39: 0.06008554032
A40: China | B40: China | C40: 0.053072478
A41: Colombia | B41: Colombia | C41: 0.08256524015
A42: Comoros | B42: Comoros | C42: 0.07571494693
A43: Congo | B43: Congo | C43: 0.1640924929
A44: Congo, Democratic Republic | B44: Congo, Democratic Republic | C44: 0.05498898861
A45: Costa Rica | B45: Costa Rica | C45: 0.07217607684
A46: Côte d'Ivoire | B46: Côte d'Ivoire | C46: 0.09790035425
A47: Croatia | B47: Croatia | C47: 0.08775678566
A48: Cuba | B48: Cuba | C48: 0.08729144176
A49: Cyprus | B49: Cyprus | C49: 0.03401495746
A50: Czech Republic | B50: Czech Republic | C50: 0.04579332385
A51: Denmark | B51: Denmark | C51: 0.05570721059
A52: Djibouti | B52: Djibouti | C52: 0.07571494693
A53: Dominica | B53: Dominica | C53: 0.05767936475
A54: Dominican Republic | B54: Dominican Republic | C54: 0.07781567069
A55: Ecuador | B55: Ecuador | C55: 0.08744771585
A56: Egypt | B56: Egypt | C56: 0.07040063898
A57: El Salvador | B57: El Salvador | C57: 0.07469299447
A58: Equatorial Guinea | B58: Equatorial Guinea | C58: 0.07571494693
A59: Eritrea | B59: Eritrea | C59: 0.0832059099
A60: Estonia | B60: Estonia | C60: 0.0617412153
A61: Ethiopia | B61: Ethiopia | C61: 0.09073761218
A62: Fiji | B62: Fiji | C62: 0.05200178566
A63: Finland | B63: Finland | C63: 0.03487435012
A64: France | B64: France | C64: 0.05538464918
A65: Gabon | B65: Gabon | C65: 0.09526458562
A66: Gambia, The | B66: Gambia, The | C66: 0.07571494693
A67: Georgia | B67: Georgia | C67: 0.07321278245
A68: Germany | B68: Germany | C68: 0.03665258849
A69: Ghana | B69: Ghana | C69: 0.1012189047
A70: Greece | B70: Greece | C70: 0.04727855579
A71: Grenada | B71: Grenada | C71: 0.05767936475
A72: Guatemala | B72: Guatemala | C72: 0.08260653269
A73: Guinea | B73: Guinea | C73: 0.07571494693
A74: Guinea-Bissau | B74: Guinea-Bissau | C74: 0.07571494693
A75: Guyana | B75: Guyana | C75: 0.08380835472
A76: Haiti | B76: Haiti | C76: 0.1699705689
A77: Holy See | B77: Holy See | C77: 0.05810932301
A78: Honduras | B78: Honduras | C78: 0.1099996132
A79: Hungary | B79: Hungary | C79: 0.07276208818
A80: Iceland | B80: Iceland | C80: 0.02828181789
A81: India | B81: India | C81: 0.09493648464
A82: Indonesia | B82: Indonesia | C82: 0.06754843077
A83: Iran | B83: Iran | C83: 0.08531177295
A84: Iraq | B84: Iraq | C84: 0.1276612836
A85: Ireland | B85: Ireland | C85: 0.05989056166
A86: Israel | B86: Israel | C86: 0.0293049932
A87: Italy | B87: Italy | C87: 0.05798570324
A88: Jamaica | B88: Jamaica | C88: 0.1025743376
A89: Japan | B89: Japan | C89: 0.04180480263
A90: Jordan | B90: Jordan | C90: 0.08424121787
A91: Kazakhstan | B91: Kazakhstan | C91: 0.06441055863
A92: Kenya | B92: Kenya | C92: 0.09011737384
A93: Kiribati | B93: Kiribati | C93: 0.05200178566
A94: Korea, North | B94: Korea, North | C94: 0.0876244973
A95: Korea, South | B95: Korea, South | C95: 0.03231456339
A96: Kosovo | B96: Kosovo | C96: 0.08906937513
A97: Kuwait | B97: Kuwait | C97: 0.08126723712
A98: Kyrgyzstan | B98: Kyrgyzstan | C98: 0.1015076463
A99: Laos | B99: Laos | C99: 0.05730004629
A100: Latvia | B100: Latvia | C100: 0.07214345775
A101: Lebanon | B101: Lebanon | C101: 0.07435458008
A102: Lesotho | B102: Lesotho | C102: 0.07571494693
A103: Liberia | B103: Liberia | C103: 0.07571494693
A104: Libya | B104: Libya | C104: 0.09450131579
A105: Liechtenstein | B105: Liechtenstein | C105: 0.05810932301
A106: Lithuania | B106: Lithuania | C106: 0.08696689702
A107: Luxembourg | B107: Luxembourg | C107: 0.03064506106
A108: Macedonia, FYR | B108: Macedonia, FYR | C108: 0.09405482601
A109: Madagascar | B109: Madagascar | C109: 0.07571494693
A110: Malawi | B110: Malawi | C110: 0.07571494693
A111: Malaysia | B111: Malaysia | C111: 0.05516613961
A112: Maldives | B112: Maldives | C112: 0.05730004629
A113: Mali | B113: Mali | C113: 0.07571494693
A114: Malta | B114: Malta | C114: 0.07512786482
A115: Marshall Islands | B115: Marshall Islands | C115: 0.05200178566
A116: Mauritania | B116: Mauritania | C116: 0.07571494693
A117: Mauritius | B117: Mauritius | C117: 0.07571494693
A118: Mexico | B118: Mexico | C118: 0.08692230377
A119: Micronesia, Federated States of | B119: Micronesia, Federated States of | C119: 0.05200178566
A120: Moldova | B120: Moldova | C120: 0.1019902638
A121: Monaco | B121: Monaco | C121: 0.05810932301
A122: Mongolia | B122: Mongolia | C122: 0.08275755401
A123: Montenegro | B123: Montenegro | C123: 0.09891071908
A124: Morocco | B124: Morocco | C124: 0.08150880864
A125: Mozambique | B125: Mozambique | C125: 0.08651929489
A126: Namibia | B126: Namibia | C126: 0.1044605374
A127: Nauru | B127: Nauru | C127: 0.05200178566
A128: Nepal | B128: Nepal | C128: 0.1208302894
A129: Netherlands | B129: Netherlands | C129: 0.03794666441
A130: New Zealand | B130: New Zealand | C130: 0.05719899579
A131: Nicaragua | B131: Nicaragua | C131: 0.09121380307
A132: Niger | B132: Niger | C132: 0.07571494693
A133: Nigeria | B133: Nigeria | C133: 0.0753013736
A134: Norway | B134: Norway | C134: 0.05714087819
A135: Oman | B135: Oman | C135: 0.0843782988
A136: Pakistan | B136: Pakistan | C136: 0.0908214534
A137: Palau | B137: Palau | C137: 0.05200178566
A138: Panama | B138: Panama | C138: 0.08340054595
A139: Papua New Guinea | B139: Papua New Guinea | C139: 0.05200178566
A140: Paraguay | B140: Paraguay | C140: 0.0540418711
A141: Peru | B141: Peru | C141: 0.0644566397
A142: Philippines | B142: Philippines | C142: 0.07518104123
A143: Poland | B143: Poland | C143: 0.05817748471
A144: Portugal | B144: Portugal | C144: 0.06513299173
A145: Qatar | B145: Qatar | C145: 0.05499957781
A146: Romania | B146: Romania | C146: 0.07724103386
A147: Russia | B147: Russia | C147: 0.07071510836
A148: Rwanda | B148: Rwanda | C148: 0.07571494693
A149: Saint Kitts and Nevis | B149: Saint Kitts and Nevis | C149: 0.05767936475
A150: Saint Lucia | B150: Saint Lucia | C150: 0.05767936475
A151: Saint Vincent and the Grenadines | B151: Saint Vincent and the Grenadines | C151: 0.05767936475
A152: Samoa | B152: Samoa | C152: 0.05200178566
A153: San Marino | B153: San Marino | C153: 0.05810932301
A154: Sao Tome and Principe | B154: Sao Tome and Principe | C154: 0.07571494693
A155: Saudi Arabia | B155: Saudi Arabia | C155: 0.06390873685
A156: Senegal | B156: Senegal | C156: 0.08853339942
A157: Serbia | B157: Serbia | C157: 0.08622719394
A158: Seychelles | B158: Seychelles | C158: 0.07571494693
A159: Sierra Leone | B159: Sierra Leone | C159: 0.07571494693
A160: Singapore | B160: Singapore | C160: 0.02807076403
A161: Slovakia | B161: Slovakia | C161: 0.02839856771
A162: Slovenia | B162: Slovenia | C162: 0.04954663034
A163: Solomon Islands | B163: Solomon Islands | C163: 0.05200178566
A164: Somalia | B164: Somalia | C164: 0.07571494693
A165: South Africa | B165: South Africa | C165: 0.06563224303
A166: South Sudan | B166: South Sudan | C166: 0.05084745763
A167: Spain | B167: Spain | C167: 0.06495414982
A168: Sri Lanka | B168: Sri Lanka | C168: 0.08009601849
A169: Sudan | B169: Sudan | C169: 0.2290937378
A170: Suriname | B170: Suriname | C170: 0.08380835472
A171: Swaziland | B171: Swaziland | C171: 0.07571494693
A172: Sweden | B172: Sweden | C172: 0.05760729438
A173: Switzerland | B173: Switzerland | C173: 0.0563051175
A174: Syria | B174: Syria | C174: 0.09055960394
A175: Tajikistan | B175: Tajikistan | C175: 0.08414453656
A176: Tanzania | B176: Tanzania | C176: 0.1029420815
A177: Thailand | B177: Thailand | C177: 0.05491050395
A178: Timor-Leste | B178: Timor-Leste | C178: 0.05200178566
A179: Togo | B179: Togo | C179: 0.07571494693
A180: Tonga | B180: Tonga | C180: 0.05200178566
A181: Trinidad and Tobago | B181: Trinidad and Tobago | C181: 0.02796056255
A182: Tunisia | B182: Tunisia | C182: 0.08293450109
A183: Turkey | B183: Turkey | C183: 0.08546091569
A184: Turkmenistan | B184: Turkmenistan | C184: 0.08153977109
A185: Tuvalu | B185: Tuvalu | C185: 0.05200178566
A186: Uganda | B186: Uganda | C186: 0.07571494693
A187: Ukraine | B187: Ukraine | C187: 0.07460462749
A188: United Arab Emirates | B188: United Arab Emirates | C188: 0.05870511378
A189: United Kingdom | B189: United Kingdom | C189: 0.0596214388
A190: United States | B190: United States | C190: 0.05427651724
A191: Uruguay | B191: Uruguay | C191: 0.07753337883
A192: Uzbekistan | B192: Uzbekistan | C192: 0.06529240199
A193: Vanuatu | B193: Vanuatu | C193: 0.05200178566
A194: Venezuela | B194: Venezuela | C194: 0.0997012407
A195: Vietnam | B195: Vietnam | C195: 0.06764094858
A196: Yemen | B196: Yemen | C196: 0.1090084458
A197: Zambia | B197: Zambia | C197: 0.0865683864
A198: Zimbabwe | B198: Zimbabwe | C198: 0.09424919
B201: Country Dataset Sources
B202: Source: IEA Electricity Information - adjusted Supply and Loss data Access Date: 9/22/2015 Source: IEA Electricity Information - adjusted Supply and Loss data for South Sudan and Sudan Access Date: 3/23/2016
B209: Regional averages for lineloss rates were used where no data was available.

Sheet Grid EFs (hidden)
B2: IEA CO2 From Fossil Fuel - Grams CO2/kWh (2012) | H2: Regional Averages
A3: IEA Names | B3: Region/Country/Economy | C3: Grid Average | D3: Coal/Peat | E3: Oil | F3: Natural Gas | I3: IEA | M3: IGES
A4: Canada | B4: Canada | C4: 150.8889 | D4: 900.9834 | E4: 882.0182 | F4: 475.467 | H4: Region | I4: Average of Grams CO2 | J4: Coal/Peat | K4: Oil | L4: Natural Gas | M4: Region | N4: CDM CM (IGES)
A5: Chile | B5: Chile | C5: 599.67925 | D5: 868.7917 | E5: 984.1206 | F5: 438.0978 | H5: Africa | I5: 597.6623 | J5: 974.5395 | K5: 833.9727 | L5: 456.774 | M5: Africa | N5: 713.7850779
A6: Mexico | B6: Mexico | C6: 529.3917355 | D6: 963.501 | E6: 696.7303 | F6: 406.7951 | H6: Asia | I6: 736.1338 | J6: 1144.2709 | K6: 843.0648 | L6: 451.9748 | M6: Asia | N6: 852.1400565
A7: United States | B7: United States | C7: 480.6861 | D7: 912.4533 | E7: 671.133 | F7: 403.0654 | H7: Europe | I7: 331.064 | J7: 917.4832 | K7: 690.5793 | L7: 359.0744 | M7: Europe and Eurasia | N7: N/A
B8: OECD Americas | C8: 440.1614964 | D8: 911.43235 | E8: 808.500525 | F8: 430.856325
B9: Australia | C9: 798.9019 | D9: 993.7538 | E9: 679.1895 | F9: 522.1739 | H9: North America | I9: 439.4904 | J9: 912.4052 | K9: 718.4282 | L9: 407.0114 | M9: North America | N9: N/A
A10: Australia | B10: Israel | C10: 705.1178947 | D10: 851.5562 | E10: 869.5078 | F10: 364.5391 | H10: Oceania | I10: 578.4506 | J10: 931.3203 | K10: 633.5428 | L10: 439.2518 | M10: Pacific Islands | N10: N/A
A11: Israel | B11: Japan | C11: 852.1400565 | D11: 908.6031 | E11: 613.7461 | F11: 437.642 | H11: South America | I11: 200.8047 | J11: 1240.488 | K11: 671.3559 | L11: 502.8366 | M11: Latin America and the Caribbean | N11: 472.6513212
A12: Japan | B12: Korea, South | C12: 911.65 | D12: 924.706 | E12: 649.1121 | F12: 419.5862
A13: Korea | B13: New Zealand | C13: 173.282 | D13: 1127.9533 | E13: 1040.6667 | F13: 411.5426
A14: OECD Asia Oceania | B14: OECD Asia Oceania | C14: 688.2183702 | D14: 961.31448 | E14: 770.44444 | F14: 431.09676
A15: Austria | B15: Austria | C15: 164.791 | D15: 1057.8384 | E15: 578.3732 | F15: 320.4583
A16: Belgium | B16: Belgium | C16: 212.018 | D16: 1318.2679 | E16: 507.5213 | F16: 313.3031
A17: Czech Republic | B17: Czech Republic | C17: 551.8495 | D17: 1008.5516 | E17: 925.9844 | F17: 419.2575
A18: Denmark | B18: Denmark | C18: 257.2642 | D18: 579.9076 | E18: 602.4329 | F18: 270.1276
A19: Estonia | B19: Estonia | C19: 911.9931 | D19: 1050.2034 | E19: 840.8053 | F19: 240.0607
A20: Finland | B20: Finland | C20: 134.1499 | D20: 661.4776 | E20: 570.2242 | F20: 241.481
A21: France | B21: France | C21: 69.2542 | D21: 1046.1799 | E21: 623.3133 | F21: 457.6925
A22: Germany | B22: Germany | C22: 475.4081 | D22: 894.913 | E22: 606.7778 | F22: 331.2401
A23: Greece | B23: Greece | C23: 684.6103 | D23: 1024.2321 | E23: 737.7259 | F23: 387.5806
A24: Hungary | B24: Hungary | C24: 314.0124 | D24: 1085.4237 | E24: 851.2849 | F24: 370.639
A25: Iceland | B25: Iceland | C25: 0.1779 | D25: 917.4832 | E25: 1040.6667 | F25: 359.0744
A26: Ireland | B26: Ireland | C26: 456.5836 | D26: 857.8432 | E26: 710.49 | F26: 385.3494
A27: Italy | B27: Italy | C27: 385.0408 | D27: 900.3957 | E27: 757.4991 | F27: 370.9352
A28: Luxembourg | B28: Luxembourg | C28: 340.3408 | D28: 917.4832 | E28: 690.5793 | F28: 357.6546
A29: Netherlands | B29: Netherlands | C29: 440.6966 | D29: 912.8992 | E29: 703.0788 | F29: 300.1351
A30: Norway | B30: Norway | C30: 8.0573 | D30: 1191.7299 | E30: 304.373 | F30: 338.7871
A31: Poland | B31: Poland | C31: 755.8353 | D31: 874.2164 | E31: 484.0102 | F31: 337.3387
A32: Portugal | B32: Portugal | C32: 363.9591 | D32: 861.5916 | E32: 528.9271 | F32: 351.4578
A33: Slovak Republic | B33: Slovakia | C33: 194.3861 | D33: 1043.6219 | E33: 767.2523 | F33: 336.152
A34: Slovenia | B34: Slovenia | C34: 331.4761 | D34: 952.6692 | E34: 1041 | F34: 371.8492
A35: Spain | B35: Spain | C35: 305.3554 | D35: 927.6879 | E35: 708.7365 | F35: 356.8221
A36: Sweden | B36: Sweden | C36: 12.3579 | D36: 704.7671 | E36: 398.2251 | F36: 214.3813
A37: Switzerland | B37: Switzerland | C37: 28.0363 | D37: 917.4832 | E37: 424.6532 | F37: 257.9893
A38: Turkey | B38: Turkey | C38: 459.1454 | D38: 1024.619 | E38: 642.7138 | F38: 373.3943
A39: United Kingdom | B39: United Kingdom | C39: 479.4783 | D39: 892.9789 | E39: 761.7866 | F39: 386.8966
A40: OECD Europe | B40: OECD Europe | C40: 333.451104 | D40: 944.978592 | E40: 672.337396 | F40: 338.0023
A41: Albania | B41: Albania | C41: 393.4 | D41: 919.0507 | E41: 785.5197 | F41: 527.4198
A42: Armenia | B42: Andorra | C42: 331.064 | D42: 917.4832 | E42: 690.5793 | F42: 359.0744
A43: Azerbaijan | B43: Armenia | C43: 435.9666667 | D43: 919.0507 | E43: 785.5197 | F43: 417.3284
A44: Belarus | B44: Azerbaijan | C44: 589.76 | D44: 919.0507 | E44: 627.9523 | F44: 533.8971
A45: Bosnia and Herzegovina | B45: Belarus | C45: 425.1181 | D45: 1487.011 | E45: 583.2028 | F45: 422.5169
A46: Bulgaria | B46: Bosnia and Herzegovina | C46: 973.15 | D46: 1395.2871 | E46: 765.8214 | F46: 694.4231
A47: Croatia | B47: Bulgaria | C47: 531.6944 | D47: 1042.7764 | E47: 782.3285 | F47: 311.9086
A48: Cyprus | B48: Croatia | C48: 311.063 | D48: 868.7399 | E48: 638.5863 | F48: 365.6484
A49: Georgia | B49: Cyprus | C49: 798.22 | D49: 919.0507 | E49: 768.1473 | F49: 527.4198
A50: Kazakhstan | B50: Georgia | C50: 402.466 | D50: 919.0507 | E50: 785.5197 | F50: 458.9167
A51: Kosovo | B51: Holy See | C51: 331.064 | D51: 917.4832 | E51: 690.5793 | F51: 359.0744
A52: Kyrgyzstan | B52: Kazakhstan | C52: 852.1400565 | D52: 491.5597 | E52: 301.5941 | F52: 573.9888
A53: Latvia | B53: Kosovo | C53: 1026.3259 | D53: 1040.9362 | E53: 1110.4794 | F53: 527.4198
A54: Lithuania | B54: Kyrgyzstan | C54: 852.1400565 | D54: 443.4517 | E54: 936.1333 | F54: 448.2129
A55: FYR of Macedonia | B55: Latvia | C55: 91.0837 | D55: 919.0507 | E55: 702.4696 | F55: 256.6483
A56: Malta | B56: Liechtenstein | C56: 331.064 | D56: 917.4832 | E56: 690.5793 | F56: 359.0744
A57: Republic of Moldova | B57: Lithuania | C57: 271.1924 | D57: 919.0507 | E57: 916.4777 | F57: 350.495
A58: Montenegro | B58: Macedonia, FYR | C58: 861.2333333 | D58: 1069.4612 | E58: 800.75 | F58: 351.517
A59: Romania | B59: Malta | C59: 871.5258 | D59: 919.0507 | E59: 881.1453 | F59: 527.4198
A60: Russian Federation | B60: Moldova | C60: 497.1248 | D60: 919.0507 | E60: 785.5197 | F60: 521.7553
A61: Serbia | B61: Monaco | C61: 331.064 | D61: 917.4832 | E61: 690.5793 | F61: 359.0744
A62: Tajikistan | B62: Montenegro | C62: 983.6 | D62: 1132.5757 | E62: 785.5197 | F62: 527.4198
A63: Turkmenistan | B63: Romania | C63: 480.6278 | D63: 1056.0931 | E63: 721.2728 | F63: 393.2112
A64: Ukraine | B64: Russia | C64: 428.779 | D64: 935.5045 | E64: 801.7231 | F64: 520.057
B65: San Marino | C65: 331.064 | D65: 917.4832 | E65: 690.5793 | F65: 359.0744
B66: Serbia | C66: 1099.111373 | D66: 1031.1309 | E66: 463.3784 | F66: 474.06
B67: Tajikistan | C67: 852.1400565 | D67: 919.0507 | E67: 785.5197 | F67: 293.8376
B68: Turkmenistan | C68: 852.1400565 | D68: 919.0507 | E68: 785.5197 | F68: 986.7447
B69: Ukraine | C69: 459.9758 | D69: 1057.3423 | E69: 750.4111 | F69: 371.6543
A70: Uzbekistan | B70: Uzbekistan | C70: 593 | D70: 1565.6725 | E70: 783.7481 | F70: 643.0795
A71: Non-OECD Europe and Eurasia | B71: Non-OECD Europe and Eurasia | C71: 586.27661 | D71: 977.15053 | E71: 742.9051967 | F71: 460.7457267
B72: Algeria | C72: 713.7850779 | D72: 974.5395 | E72: 935.3821 | F72: 528.5084
B73: Angola | C73: 840.8 | D73: 974.5395 | E73: 1343.4219 | F73: 456.774
B74: Benin | C74: 713.7850779 | D74: 974.5395 | E74: 725.1481 | F74: 456.774
B75: Botswana | C75: 713.7850779 | D75: 1478.836 | E75: 833.9727 | F75: 456.774
B76: Burkina Faso | C76: 368.25 | D76: 974.5395 | E76: 833.9727 | F76: 456.774
B77: Burundi | C77: 713.7850779 | D77: 974.5395 | E77: 833.9727 | F77: 456.774
B78: Cameroon | C78: 713.7850779 | D78: 974.5395 | E78: 859.7422 | F78: 537.8502
B79: Cape Verde | C79: 713.7850779 | D79: 974.5395 | E79: 833.9727 | F79: 456.774
B80: Central African Republic | C80: 713.7850779 | D80: 974.5395 | E80: 833.9727 | F80: 456.774
B81: Chad | C81: 713.7850779 | D81: 974.5395 | E81: 833.9727 | F81: 456.774
B82: Comoros | C82: 713.7850779 | D82: 974.5395 | E82: 833.9727 | F82: 456.774
B83: Congo | C83: 713.7850779 | D83: 974.5395 | E83: 1058.4444 | F83: 584.1387
B84: Congo, Democratic Republic | C84: 713.7850779 | D84: 974.5395 | E84: 1058.1667 | F84: 573.2069
B85: Côte d'Ivoire | C85: 660.375 | D85: 974.5395 | E85: 928.7009 | F85: 642.9379
B86: Djibouti | C86: 713.7850779 | D86: 974.5395 | E86: 833.9727 | F86: 456.774
B87: Egypt | C87: 538.91 | D87: 974.5395 | E87: 834.9802 | F87: 418.2891
B88: Equatorial Guinea | C88: 713.7850779 | D88: 974.5395 | E88: 833.9727 | F88: 456.774
B89: Eritrea | C89: 713.7850779 | D89: 974.5395 | E89: 854.098 | F89: 456.774
B90: Ethiopia | C90: 713.7850779 | D90: 974.5395 | E90: 1111.275 | F90: 456.774
B91: Gabon | C91: 713.7850779 | D91: 974.5395 | E91: 714.5831 | F91: 763.5163
B92: Gambia, The | C92: 713.7850779 | D92: 974.5395 | E92: 833.9727 | F92: 456.774
B93: Ghana | C93: 478.515 | D93: 974.5395 | E93: 869.6315 | F93: 566.9185
B94: Guinea | C94: 713.7850779 | D94: 974.5395 | E94: 833.9727 | F94: 456.774
B95: Guinea-Bissau | C95: 713.7850779 | D95: 974.5395 | E95: 833.9727 | F95: 456.774
B96: Kenya | C96: 603.2338462 | D96: 974.5395 | E96: 898.1282 | F96: 456.774
B97: Lesotho | C97: 713.7850779 | D97: 974.5395 | E97: 833.9727 | F97: 456.774
B98: Liberia | C98: 713.7850779 | D98: 974.5395 | E98: 833.9727 | F98: 456.774
A99: Algeria | B99: Libya | C99: 793.7 | D99: 974.5395 | E99: 858.2318 | F99: 383.4342
A100: Angola | B100: Madagascar | C100: 552 | D100: 974.5395 | E100: 833.9727 | F100: 456.774
A101: Benin | B101: Malawi | C101: 713.7850779 | D101: 974.5395 | E101: 833.9727 | F101: 456.774
A102: Botswana | B102: Mali | C102: 582.2 | D102: 974.5395 | E102: 833.9727 | F102: 456.774
A103: Cameroon | B103: Mauritania | C103: 713.7850779 | D103: 974.5395 | E103: 833.9727 | F103: 456.774
A104: Congo | B104: Mauritius | C104: 975.25 | D104: 974.5395 | E104: 833.9727 | F104: 456.774
A105: Dem. Rep. of Congo | B105: Morocco | C105: 660.7643333 | D105: 986.8203 | E105: 723.5885 | F105: 376.7347
A106: Côte d'Ivoire | B106: Mozambique | C106: 713.7850779 | D106: 974.5395 | E106: 833.9727 | F106: 853.8095
A107: Egypt | B107: Namibia | C107: 920 | D107: 1402.5333 | E107: 1110.3333 | F107: 456.774
A108: Eritrea | B108: Niger | C108: 713.7850779 | D108: 974.5395 | E108: 833.9727 | F108: 456.774
A109: Ethiopia | B109: Nigeria | C109: 573.28 | D109: 974.5395 | E109: 833.9727 | F109: 502.2322
A110: Gabon | B110: Rwanda | C110: 654 | D110: 974.5395 | E110: 833.9727 | F110: 456.774
A111: Ghana | B111: Sao Tome and Principe | C111: 713.7850779 | D111: 974.5395 | E111: 833.9727 | F111: 456.774
A112: Kenya | B112: Senegal | C112: 682.6 | D112: 974.5395 | E112: 709.804 | F112: 368.4214
A113: Libya | B113: Seychelles | C113: 713.7850779 | D113: 974.5395 | E113: 833.9727 | F113: 456.774
A114: Morocco | B114: Sierra Leone | C114: 402 | D114: 974.5395 | E114: 833.9727 | F114: 456.774
A115: Mozambique | B115: Somalia | C115: 713.7850779 | D115: 974.5395 | E115: 833.9727 | F115: 456.774
A116: Namibia | B116: South Africa | C116: 954.527027 | D116: 972.8592 | E116: 762.3608 | F116: 456.774
A117: Nigeria | B117: South Sudan | C117: 713.7850779 | D117: 974.5395 | E117: 833.9727 | F117: 456.774
A118: Senegal | B118: Sudan | C118: 305 | D118: 974.5395 | E118: 676.4885 | F118: 456.774
A119: South Africa | B119: Swaziland | C119: 713.7850779 | D119: 974.5395 | E119: 833.9727 | F119: 456.774
A120: Sudan | B120: Tanzania | C120: 529 | D120: 974.5395 | E120: 1051.8036 | F120: 542.3939
A121: United Rep. of Tanzania | B121: Togo | C121: 713.7850779 | D121: 974.5395 | E121: 1118.4118 | F121: 456.774
A122: Togo | B122: Tunisia | C122: 553.64 | D122: 974.5395 | E122: 833.9727 | F122: 473.0899
A123: Tunisia | B123: Uganda | C123: 529.0266667 | D123: 974.5395 | E123: 833.9727 | F123: 456.774
A124: Zambia | B124: Zambia | C124: 713.7850779 | D124: 974.5395 | E124: 871.1944 | F124: 456.774
A125: Zimbabwe | B125: Zimbabwe | C125: 713.7850779 | D125: 903.095 | E125: 2116.7407 | F125: 456.774
A126: Other Africa | B126: Africa | C126: 679.8514712 | D126: 990.6773944 | E126: 889.7002481 | F126: 480.1790333
A127: Africa | B127: Afghanistan | C127: 852.1400565 | D127: 919.0507 | E127: 785.5197 | F127: 527.4198
A128: Bangladesh | B128: Bangladesh | C128: 640.685 | D128: 1037.0159 | E128: 598.7265 | F128: 572.8531
B129: Bhutan | C129: 779 | D129: 1144.2709 | E129: 843.0648 | F129: 451.9748
B130: Brunei Darussalam | C130: 852.1400565 | D130: 1144.2709 | E130: 858.1081 | F130: 721.7504
B131: Burma | C131: 713.4 | D131: 939.9922 | E131: 809.3333 | F131: 724.9576
B132: Cambodia | C132: 665.06 | D132: 1062.6486 | E132: 839.2182 | F132: 451.9748
B133: Fiji | C133: 596.5 | D133: 1144.2709 | E133: 843.0648 | F133: 451.9748
B134: India | C134: 898.5771708 | D134: 1218.9636 | E134: 1098.298 | F134: 440.042
B135: Indonesia | C135: 757.7393443 | D135: 1111.7001 | E135: 869.3255 | F135: 529.6983
B136: Kiribati | C136: 736.1338 | D136: 1144.2709 | E136: 843.0648 | F136: 451.9748
B137: Korea, North | C137: 631.5822439 | D137: 1255.8557 | E137: 1380.2613 | F137: 451.9748
B138: Korea, North | C138: 631.5822439 | D138: 1255.8557 | E138: 1380.2613 | F138: 451.9748
B139: Laos | C139: 554.05 | D139: 1144.2709 | E139: 843.0648 | F139: 451.9748
B140: Malaysia | C140: 668.0804878 | D140: 983.6777 | E140: 720.2802 | F140: 494.7696
B141: Maldives | C141: 852.1400565 | D141: 1144.2709 | E141: 843.0648 | F141: 451.9748
B142: Marshall Islands | C142: 736.1338 | D142: 1144.2709 | E142: 843.0648 | F142: 451.9748
B143: Micronesia, Federated States of | C143: 736.1338 | D143: 1144.2709 | E143: 843.0648 | F143: 451.9748
B144: Mongolia | C144: 1061 | D144: 875.5542 | E144: 1038.2815 | F144: 451.9748
B145: Nauru | C145: 736.1338 | D145: 1144.2709 | E145: 843.0648 | F145: 451.9748
B146: Nepal | C146: 852.1400565 | D146: 1144.2709 | E146: 712.9474 | F146: 451.9748
A147: Brunei Darussalam | B147: Pakistan | C147: 540.26 | D147: 2334.2459 | E147: 702.8311 | F147: 579.9952
A148: Cambodia | B148: Palau | C148: 736.1338 | D148: 1144.2709 | E148: 843.0648 | F148: 451.9748
A149: Chinese Taipei | B149: Papua New Guinea | C149: 678.5714286 | D149: 1144.2709 | E149: 843.0648 | F149: 451.9748
A150: India | B150: Philippines | C150: 510.8944444 | D150: 936.7683 | E150: 726.1904 | F150: 358.5276
A151: Indonesia | B151: Samoa | C151: 736.1338 | D151: 1144.2709 | E151: 843.0648 | F151: 451.9748
A152: DPR of Korea | B152: Singapore | C152: 486.2333333 | D152: 1144.2709 | E152: 827.1882 | F152: 398.0943
A153: Malaysia | B153: Solomon Islands | C153: 736.1338 | D153: 1144.2709 | E153: 843.0648 | F153: 451.9748
A154: Mongolia | B154: Sri Lanka | C154: 690.785 | D154: 1209.5292 | E154: 677.3915 | F154: 451.9748
A155: Myanmar | B155: Thailand | C155: 547.4492248 | D155: 1011.3687 | E155: 687.8129 | F155: 409.8274
A156: Nepal | B156: Timor-Leste | C156: 852.1400565 | D156: 1144.2709 | E156: 843.0648 | F156: 451.9748
A157: Pakistan | B157: Tonga | C157: 736.1338 | D157: 1144.2709 | E157: 843.0648 | F157: 451.9748
A158: Philippines | B158: Tuvalu | C158: 736.1338 | D158: 1144.2709 | E158: 843.0648 | F158: 451.9748
A159: Singapore | B159: Vanuatu | C159: 736.1338 | D159: 1144.2709 | E159: 843.0648 | F159: 451.9748
A160: Sri Lanka | B160: Vietnam | C160: 563.7586122 | D160: 987.5522 | E160: 1083.2944 | F160: 403.939
A161: Thailand | B161: Asia | C161: 712.8602005 | D161: 1143.556641 | E161: 861.3031265 | F161: 473.6858794
A162: Vietnam | B162: Antigua and Barbuda | C162: 472.6513212 | D162: 1240.488 | E162: 671.3559 | F162: 502.8366
A163: Other Asia | B163: Argentina | C163: 521.4944118 | D163: 1165.1775 | E163: 731.7614 | F163: 476.0554
A164: Asia | B164: Bahamas, The | C164: 723 | D164: 1240.488 | E164: 671.3559 | F164: 502.8366
A165: People's Rep. of China | B165: Barbados | C165: 472.6513212 | D165: 1240.488 | E165: 671.3559 | F165: 502.8366
A166: Hong Kong, China | B166: Belize | C166: 151.9 | D166: 1240.488 | E166: 671.3559 | F166: 502.8366
A167: China | B167: Bolivia | C167: 711 | D167: 1240.488 | E167: 942.2581 | F167: 634.0785
A168: Argentina | B168: Brazil | C168: 298.765812 | D168: 1409.4494 | E168: 726.969 | F168: 428.3065
A169: Bolivia | B169: China | C169: 884.3590239 | D169: 948.2106 | E169: 755.2116 | F169: 508.3844
A170: Brazil | B170: Colombia | C170: 332.5883333 | D170: 959.6617 | E170: 921.2711 | F170: 451.8582
A171: Colombia | B171: Costa Rica | C171: 280.6957143 | D171: 1240.488 | E171: 666.3482 | F171: 502.8366
A172: Costa Rica | B172: Cuba | C172: 873.5 | D172: 1240.488 | E172: 989.4932 | F172: 502.2323
A173: Cuba | B173: Dominica | C173: 472.6513212 | D173: 1240.488 | E173: 671.3559 | F173: 502.8366
A174: Dominican Republic | B174: Dominican Republic | C174: 654.1428571 | D174: 953.6987 | E174: 616.9241 | F174: 458.2333
A175: Ecuador | B175: Ecuador | C175: 590.2160714 | D175: 1240.488 | E175: 752.9636 | F175: 490.9927
B176: El Salvador | C176: 677.6555556 | D176: 1240.488 | E176: 662.9535 | F176: 502.8366
B177: Grenada | C177: 472.6513212 | D177: 1240.488 | E177: 671.3559 | F177: 502.8366
B178: Guatemala | C178: 651.3210526 | D178: 960.2254 | E178: 640.8159 | F178: 502.8366
B179: Guyana | C179: 948.3 | D179: 1240.488 | E179: 671.3559 | F179: 502.8366
B180: Haiti | C180: 472.6513212 | D180: 1240.488 | E180: 687.301 | F180: 502.8366
B181: Honduras | C181: 665.5344828 | D181: 927.0775 | E181: 637.2848 | F181: 502.8366
B182: Jamaica | C182: 783.2 | D182: 1240.488 | E182: 704.7283 | F182: 502.8366
B183: Nicaragua | C183: 689.9 | D183: 1240.488 | E183: 711.1093 | F183: 502.8366
B184: Panama | C184: 606.8 | D184: 1113.2176 | E184: 813.4096 | F184: 502.8366
B185: Paraguay | C185: 472.6513212 | D185: 1240.488 | E185: 671.3559 | F185: 502.8366
B186: Peru | C186: 593.7960377 | D186: 1173.7519 | E186: 905.2915 | F186: 586.4426
A187: El Salvador | B187: Saint Kitts and Nevis | C187: 472.6513212 | D187: 1240.488 | E187: 671.3559 | F187: 502.8366
A188: Guatemala | B188: Saint Lucia | C188: 472.6513212 | D188: 1240.488 | E188: 671.3559 | F188: 502.8366
A189: Haiti | B189: Saint Vincent and the Grenadines | C189: 472.6513212 | D189: 1240.488 | E189: 671.3559 | F189: 502.8366
A190: Honduras | B190: Suriname | C190: 472.6513212 | D190: 1240.488 | E190: 671.3559 | F190: 502.8366
A191: Jamaica | B191: Trinidad and Tobago | C191: 472.6513212 | D191: 1240.488 | E191: 789.5417 | F191: 676.0725
A192: Netherlands Antilles | B192: Uruguay | C192: 574.0913043 | D192: 1240.488 | E192: 714.8782 | F192: 496
A193: Nicaragua | B193: Venezuela | C193: 472.6513212 | D193: 1240.488 | E193: 942.3051 | F193: 606.2665
A194: Panama | B194: Non-OECD Americas | C194: 558.877391 | D194: 1191.927947 | E194: 730.2840625 | F194: 511.6142156
A195: Paraguay | B195: Bahrain | C195: 852.1400565 | D195: 1144.2709 | E195: 915.4122 | F195: 754.7189
A196: Peru | B196: Iran | C196: 632.265 | D196: 1144.2709 | E196: 905.7585 | F196: 473.0845
A197: Trinidad and Tobago | B197: Iraq | C197: 852.1400565 | D197: 1144.2709 | E197: 1945.5879 | F197: 330.7998
A198: Uruguay | B198: Jordan | C198: 583.8666667 | D198: 1144.2709 | E198: 670.1731 | F198: 499.3649
A199: Venezuela | B199: Kuwait | C199: 780 | D199: 1144.2709 | E199: 842.0952 | F199: 573.9241
A200: Other Non-OECD Americas | B200: Lebanon | C200: 650 | D200: 1144.2709 | E200: 864.3483 | F200: 547.4264
A201: Non-OECD Americas | B201: Oman | C201: 852.1400565 | D201: 1144.2709 | E201: 766.205 | F201: 598.0085
... 20 more rows

Sheet Assumptions (hidden)
B2: Decisions and assumptions made for the development of the Solar PV Worksheet
B3: Date | C3: Assumption
B4: 2012-12-07 | C4: For countries that did not have specific IEA grid emission factors or line loss values, regional averages were used as a proxy
B5: 2012-12-07 | C5: Project emissions for solar projects are 0. Activity generation is assumed equal to the baseline consumption.
B6: 2012-12-18 | C6: Average Daily Insolation (HS) in hours equals annual average insolation in kWh/m2/day
B7: 2012-12-18 | C7: Assumes default array tilt angle is equal to the latitude angle of the location.
B8: 2012-12-28 | C8: For countries without country-specific grid emission factors, the "Other Countries" category within the region was used instead. If the "Other Countries" category was not available, the regional average was use.
B9: 2012-12-29 | C9: Fuel Emission Factors assume a net calorific basis of combustion

Sheet Diesel Efficiency Estimator (hidden)
C3: http://www.dieselserviceandsupply.com/Diesel_Fuel_Consumption.aspx | I3: Efficiencies for Individual mode of operation
I4: 0.25 | J4: 0.5 | K4: 0.75 | L4: 1
C5: Generator Size (kW) | D5: 1/4 Load (gal/hr) | E5: 1/2 Load (gal/hr) | F5: 3/4 Load (gal/hr) | G5: Full Load (gal/hr) | I5: 1/4 Load (gal/hr) | J5: 1/2 Load (gal/hr) | K5: 3/4 Load (gal/hr) | L5: Full Load (gal/hr)
C6: 20 | D6: 0.6 | E6: 0.9 | F6: 1.3 | G6: 1.6 | I6: =1/(D6/$C6/I$4*$D$35/$D$37) -> 0.2194119911 | J6: 0.2925493215 | K6: 0.3038012184 | L6: 0.3291179866
C7: 30 | D7: 1.3 | E7: 1.8 | F7: 2.4 | G7: 2.9 | I7: 0.1519006092 | J7: 0.2194119911 | K7: 0.24683849 | L7: 0.2723735062
C8: 40 | D8: 1.6 | E8: 2.3 | F8: 3.2 | G8: 4 | I8: 0.1645589933 | J8: 0.2289516429 | K8: 0.24683849 | L8: 0.2632943893
C9: 60 | D9: 1.8 | E9: 2.9 | F9: 3.8 | G9: 4.8 | I9: 0.2194119911 | J9: 0.2723735062 | K9: 0.3117959874 | L9: 0.3291179866
C10: 75 | D10: 2.4 | E10: 3.4 | F10: 4.6 | G10: 6.1 | I10: 0.2056987417 | J10: 0.2903982235 | K10: 0.3219632478 | L10: 0.3237226098
C11: 100 | D11: 2.6 | E11: 4.1 | F11: 5.8 | G11: 7.4 | I11: 0.253167682 | J11: 0.3210907187 | K11: 0.3404668827 | L11: 0.3558032288
C12: 125 | D12: 3.1 | E12: 5 | F12: 7.1 | G12: 9.1 | I12: 0.2654177312 | J12: 0.3291179866 | K12: 0.3476598451 | L12: 0.3616681172
C13: 135 | D13: 3.3 | E13: 5.4 | F13: 7.6 | G13: 9.8 | I13: 0.2692783527 | J13: 0.3291179866 | K13: 0.3507704858 | L13: 0.3627014547
C14: 150 | D14: 3.6 | E14: 5.9 | F14: 8.4 | G14: 10.9 | I14: 0.2742649889 | J14: 0.3346962576 | K14: 0.3526264143 | L14: 0.3623317284
C15: 175 | D15: 4.1 | E15: 6.8 | F15: 9.7 | G15: 12.7 | I15: 0.2809543788 | J15: 0.3387979274 | K15: 0.3562617381 | L15: 0.3628072294
C16: 200 | D16: 4.7 | E16: 7.7 | F16: 11 | G16: 14.4 | I16: 0.2801004142 | J16: 0.3419407654 | K16: 0.3590378036 | L16: 0.3656866518
C17: 230 | D17: 5.3 | E17: 8.8 | F17: 12.5 | G17: 16.6 | I17: 0.2856495733 | J17: 0.3440778951 | K17: 0.3633462573 | L17: 0.3648054792
C18: 250 | D18: 5.7 | E18: 9.5 | F18: 13.6 | G18: 18 | I18: 0.2886999883 | J18: 0.3464399859 | K18: 0.3629977794 | L18: 0.3656866518
C19: 300 | D19: 6.8 | E19: 11.3 | F19: 16.1 | G19: 21.5 | I19: 0.2903982235 | J19: 0.3495058265 | K19: 0.3679579975 | L19: 0.36738752
C20: 350 | D20: 7.9 | E20: 13.1 | F20: 18.7 | G20: 25.1 | I20: 0.2916235325 | J20: 0.351729146 | K20: 0.369597739 | L20: 0.3671435708
C21: 400 | D21: 8.9 | E21: 14.9 | F21: 21.3 | G21: 28.6 | I21: 0.2958363925 | J21: 0.3534152877 | K21: 0.3708371681 | L21: 0.3682439011
C22: 500 | D22: 11 | E22: 18.5 | F22: 26.4 | G22: 35.7 | I22: 0.2991981697 | J22: 0.3558032288 | K22: 0.3739977121 | L22: 0.3687596489
C23: 600 | D23: 13.2 | E23: 22 | F23: 31.5 | G23: 42.8 | I23: 0.2991981697 | J23: 0.3590378036 | K23: 0.3761348419 | L23: 0.3691042841
C24: 750 | D24: 16.3 | E24: 27.4 | F24: 39.3 | G24: 53.4 | I24: 0.3028693129 | J24: 0.3603481606 | K24: 0.3768526565 | L24: 0.3697954906
C25: 1000 | D25: 21.6 | E25: 36.4 | F25: 52.1 | G25: 71.1 | I25: 0.3047388765 | J25: 0.3616681172 | K25: 0.3790226334 | L25: 0.3703155968
C26: 1250 | D26: 26.9 | E26: 45.3 | F26: 65 | G26: 88.8 | I26: 0.3058717348 | J26: 0.3632648859 | K26: 0.3797515231 | L26: 0.3706283633
C27: 1500 | D27: 32.2 | E27: 54.3 | F27: 77.8 | G27: 106.5 | I27: 0.3066316646 | J27: 0.3636662836 | K27: 0.3807277481 | L27: 0.3708371681
C28: 1750 | D28: 37.5 | E28: 63.2 | F28: 90.7 | G28: 124.2 | I28: 0.3071767875 | J28: 0.3645294156 | K28: 0.381007592 | L28: 0.3709864584
C29: 2000 | D29: 42.8 | E29: 72.2 | F29: 103.5 | G29: 141.9 | I29: 0.3075869034 | J29: 0.3646736694 | K29: 0.3815860715 | L29: 0.371098505
C30: 2250 | D30: 48.1 | E30: 81.1 | F30: 116.4 | G30: 159.6 | I30: 0.3079066403 | J30: 0.3652357435 | K30: 0.3817090051 | L30: 0.3711856992
I31: =AVERAGE(I6:I30) -> 0.2711020737 | J31: =AVERAGE(J6:J30) -> 0.3320736711 | K31: =AVERAGE(K6:K30) -> 0.3513434931 | L31: =AVERAGE(L6:L30) -> 0.3541841291 | M31: =AVERAGE(I6:L30) -> 0.3271758418
C32: Slope | D32: =LINEST(D6:D30,$C$6:$C$30,FALSE) -> 0.02151397557 | E32: =LINEST(E6:E30,$C$6:$C$30,FALSE) -> 0.03623278391 | F32: =LINEST(F6:F30,$C$6:$C$30,FALSE) -> 0.05194804502 | G32: =LINEST(G6:G30,$C$6:$C$30,FALSE) -> 0.07103192511 | H32: [gal/hr]/[kW] | M32: =MEDIAN(I6:L30) -> 0.3485828358
C33: Load | D33: 0.25 | E33: 0.5 | F33: 0.75 | G33: 1
C34: Fuel Consumption per kWh | D34: =D32/D33 -> 0.08605590228 | E34: =E32/E33 -> 0.07246556782 | F34: =F32/F33 -> 0.06926406003 | G34: =G32/G33 -> 0.07103192511 | H34: [gal/kWh] or [gal diesel/kWh electricity]
C35: GJ/gal Diesel | D35: ='Fuel EFs'!R45 -> 0.1367290814 | H35: Energy content of diesel
C36: GJ diesel/kWh electricity | D36: =D34*$D$35 -> 0.01176634447 | E36: =E34*$D$35 -> 0.009908150525 | F36: =F34*$D$35 -> 0.009470411304 | G36: =G34*$D$35 -> 0.009712129873 | H36: GJ of diesel required to create 1 kWh electricity
C37: GJ/kWh | D37: =Conversions!K50 -> 0.0036
C38: GJ diesel/GJ electricity | D38: =D36/$D$37 -> 3.26842902 | E38: =E36/$D$37 -> 2.752264035 | F38: =F36/$D$37 -> 2.630669807 | G38: =G36/$D$37 -> 2.697813854 | H38: GJ of diesel required to create 1 GJ of electricity
C39: GJ kWh/GJ diesel | D39: =1/D38 -> 0.3059573862 | E39: =1/E38 -> 0.3633372334 | F39: =1/F38 -> 0.3801313253 | G39: =1/G38 -> 0.3706704963 | H39: [Efficiency] - GJ of electricity created by 1 GJ of diesel

Sheet PlotData (hidden)
B2: For Bar Plot
B3: Baseline Emissions | E3: =IF(Results!D23="",0,Results!D23) -> 0
B4: Activity Emissions | E4: =IF(Results!F23="",0,Results!F23) -> 0
B5: Emission Reductions | E5: =IF(Results!H23="",0,Results!H23) -> 0
B7: For Line Plot
B8: Coordinates | C8: Action | D8: Baseline
B9: 0.75 | C9: =E4+E5/100 -> 0 | D9: =E3+E5/100 -> 0
B10: 1.25 | C10: =E4+E5/100 -> 0 | D10: =E3+E5/100 -> 0
